Service Area,Service Division,Expense Type,Expense Code,Detailed Expense Type,Payment Date,Transaction Number,Amount Exc Vat,Supplier Name
Neighbourhood Services,Direct Services,Third Party Payments,430100,Rendered by Private Contractors,01-Oct-2015,3028973-2178,605.00,A & J GUTHRIE.
Neighbourhood Services,Direct Services,Third Party Payments,430100,Rendered by Private Contractors,01-Oct-2015,3028973-2179,"3,633.75",A & J GUTHRIE.
Neighbourhood Services,Direct Services,Third Party Payments,430100,Rendered by Private Contractors,01-Oct-2015,3028973-2183,"1,375.00",A & J GUTHRIE.
Neighbourhood Services,Technical Services,Supplies and Services,304221,Equipment and Materials,01-Oct-2015,3028981-22020071,"1,070.15",AGGREGATE INDUSTRIES UK LTD.
Neighbourhood Services,Technical Services,Supplies and Services,304221,Equipment and Materials,01-Oct-2015,3028981-22020177,689.06,AGGREGATE INDUSTRIES UK LTD.
Neighbourhood Services,Technical Services,Supplies and Services,304221,Equipment and Materials,01-Oct-2015,3028981-22020178,"1,264.03",AGGREGATE INDUSTRIES UK LTD.
Neighbourhood Services,Technical Services,Supplies and Services,304221,Equipment and Materials,01-Oct-2015,3028981-22020179,950.73,AGGREGATE INDUSTRIES UK LTD.
Neighbourhood Services,Technical Services,Supplies and Services,304221,Equipment and Materials,01-Oct-2015,3028981-22020180,"1,022.95",AGGREGATE INDUSTRIES UK LTD.
Neighbourhood Services,Technical Services,Supplies and Services,338027,Services,01-Oct-2015,3028999-15022227,"1,825.98",ATKINS GLOBAL.
Neighbourhood Services,Technical Services,Supplies and Services,338027,Services,01-Oct-2015,3028999-15022244,"3,768.24",ATKINS GLOBAL.
Neighbourhood Services,Direct Services,Supplies and Services,304221,Equipment and Materials,01-Oct-2015,3029002-1530,"1,478.00",AWR ROOFING & ALUMIN RAINWATER SYSTEMS LTD.
Regeneration & Economic Development,Transport and Contracted Services,Supplies and Services,344033,Telephones,01-Oct-2015,3029003-11521472,"4,116.00",AZZURRI COMMUNICATIONS LTD.
Resources,I.C.T. Services,Supplies and Services,308011,Furniture,01-Oct-2015,3029005-39148,591.00,BACK CARE SOLUTIONS LTD.
Regeneration & Economic Development,Transport and Contracted Services,Vehicles Equipment Furniture and Fittings,912529,Purchase-equipment,01-Oct-2015,3029011-36215,"6,988.39",BAYDALE CONTROL SYSTEMS LTD.
Children and Adult Services,Commissioning inc Supporting People,Third Party Payments,442002,Supporting People,01-Oct-2015,3029016-1963153,"16,448.04",BID SERVICES WITH DEAF PEOPLE.
Regeneration & Economic Development,Economic Development and Housing,Supplies and Services,324117,Provisions,01-Oct-2015,3029017-62987335,698.40,BIDVEST FOODSERVICE (FORMERLY 3663).
Children and Adult Services,Childrens Services,Supplies and Services,338099,Services,01-Oct-2015,3029029-00005,"1,500.00",BRIGHT FUTURES TRUST CIC.
Regeneration & Economic Development,Spatial Policy Planning Assets & Environment,Supplies and Services,384199,Miscellaneous Expenses,01-Oct-2015,3029036-5ROOMSX2DAYS,"1,211.00",BURNOPFIELD COMMUNITY ASSOCIATION.
Children and Adult Services,Childrens Services,Third Party Payments,425018,Rendered by Voluntary Organisations,01-Oct-2015,3029039-IN000153,"16,470.92",CAMBIAN CHILDCARE LTD.
Children and Adult Services,Childrens Services,Third Party Payments,425018,Rendered by Voluntary Organisations,01-Oct-2015,3029039-IN000154,"19,162.34",CAMBIAN CHILDCARE LTD.
Children and Adult Services,Planning & Service Strategy,Supplies and Services,338091,Services,01-Oct-2015,3029044-C4T-ILMLEVEL5,"15,000.00",CAPITAL 4 TRAINING LTD
Children and Adult Services,Head of Adults,Supplies and Services,338367,Services,01-Oct-2015,3029045-26750,"4,911.00",CARE ABILITY.
Children and Adult Services,Head of Adults,Supplies and Services,338367,Services,01-Oct-2015,3029045-26828,675.00,CARE ABILITY.
Children and Adult Services,Childrens Services,Supplies and Services,308013,Furniture,01-Oct-2015,3029046-37462,810.76,CARPETTIME LTD.
Children and Adult Services,Childrens Services,Supplies and Services,308013,Furniture,01-Oct-2015,3029046-37476,553.48,CARPETTIME LTD.
Neighbourhood Services,Direct Services,Third Party Payments,430100,Rendered by Private Contractors,01-Oct-2015,3029046-37477,"3,136.96",CARPETTIME LTD.
Neighbourhood Services,Direct Services,Third Party Payments,430100,Rendered by Private Contractors,01-Oct-2015,3029047-462896,522.65,CARRS BILLINGTON AGRICULTURE.
Regeneration & Economic Development,Spatial Policy Planning Assets & Environment,Supplies and Services,338066,Services,01-Oct-2015,3029050-50BCD00013879,"1,690.00",CBRE LTD.
Children and Adult Services,Childrens Services,Employees,080025,Agency Staff,01-Oct-2015,3029053-2313248,"1,760.00",CELSIAN.
Neighbourhood Services,Culture & Sport,Supplies and Services,304040,Equipment and Materials,01-Oct-2015,3029054-959,"4,185.00",CENTRE STAGE ENGINEERING LTD.
Assistant Chief Executive,Partnerships & Community Engagement Div.,Cap Exp on Grants & Other Financial Assistance (REFCUS),918004,Contributions to other bodies,01-Oct-2015,3029060-15NB-CHES019,"2,000.00",CHESTER LE ST PRIMARY SCHOOLS ATHLETICS ASSOCIATION.
Children and Adult Services,Commissioning inc Supporting People,Third Party Payments,442002,Supporting People,01-Oct-2015,3029063-1963180,"3,452.04",CHILDREN NORTH EAST.
Regeneration & Economic Development,Econ Dev and Regen Financing,Creditors,952146,Creditor-Section 106 agreement,01-Oct-2015,3029065-RES-10-2015-002,"23,300.00",CHILTON TOWN COUNCIL.
Neighbourhood Services,Technical Services,Third Party Payments,460254,Contract Payments,01-Oct-2015,3029069-3111918,"1,795.00",CIPFA BUSINESS LTD.
Neighbourhood Services,Direct Services,Third Party Payments,430100,Rendered by Private Contractors,01-Oct-2015,3029072-4301,"3,476.00",CITY FABRICATIONS.
Resources,Legal & Democratic Services,Supplies and Services,338025,Services,01-Oct-2015,3029079-S44995-01087,850.00,CO-OPERATIVE FUNERAL CARE.
Regeneration & Economic Development,Economic Development and Housing,Cap Exp on Grants & Other Financial Assistance (REFCUS),918401,Capital grants,01-Oct-2015,3029094-RED-09-2015-190,"3,500.00",REDACTED - PAYMENT TO INDIVIDUAL
Children and Adult Services,Commissioning inc Supporting People,Third Party Payments,442002,Supporting People,01-Oct-2015,3029099-1963086,"19,868.48",CREATIVE SUPPORT LTD.
Regeneration & Economic Development,Economic Development and Housing,Cap Exp on Grants & Other Financial Assistance (REFCUS),918401,Capital grants,01-Oct-2015,3029101-RED-09-2015-198,"5,150.00",CUMMINGS CONTRACTORS.
Regeneration & Economic Development,Transport and Contracted Services,Supplies and Services,338099,Services,01-Oct-2015,3029108-2774320,"2,280.60",DARLINGTON BOROUGH COUNCIL.
Children and Adult Services,Commissioning inc Supporting People,Third Party Payments,442002,Supporting People,01-Oct-2015,3029121-1963084,"5,668.48",DISC LTD.
Children and Adult Services,Commissioning inc Supporting People,Third Party Payments,442002,Supporting People,01-Oct-2015,3029121-1963110,"27,885.68",DISC LTD.
Children and Adult Services,Planning & Service Strategy,Supplies and Services,338094,Services,01-Oct-2015,3029123-85396,"1,200.00",DISTANCE LEARNING COLLEGE & TRAINING LTD.
Children and Adult Services,Commissioning inc Supporting People,Third Party Payments,441001,Supporting People,01-Oct-2015,3029126-1963111,"20,819.76",DURHAM ACTION ON SINGLE HOUSING.
Children and Adult Services,Commissioning inc Supporting People,Third Party Payments,443001,Supporting People,01-Oct-2015,3029126-1963112,922.45,DURHAM ACTION ON SINGLE HOUSING.
Children and Adult Services,Commissioning inc Supporting People,Third Party Payments,443001,Supporting People,01-Oct-2015,3029126-1963116,"3,505.31",DURHAM ACTION ON SINGLE HOUSING.
Children and Adult Services,Childrens Services,Supplies and Services,384638,Miscellaneous Expenses,01-Oct-2015,3029127-03-2015-16,"1,300.00",DURHAM AREA DISABILITY LEISURE GROUP.
Children and Adult Services,Childrens Services,Supplies and Services,384638,Miscellaneous Expenses,01-Oct-2015,3029127-04-2015-16,"1,500.00",DURHAM AREA DISABILITY LEISURE GROUP.
Children and Adult Services,Commissioning inc Supporting People,Third Party Payments,479111,Purchase of Care,01-Oct-2015,3029130-DCC023,"4,614.78",DURHAM DEAFENED SUPPORT.
Neighbourhood Services,Direct Services,Third Party Payments,430100,Rendered by Private Contractors,01-Oct-2015,3029137-12931,650.00,EASI GEARS LTD.
Children and Adult Services,Commissioning inc Supporting People,Third Party Payments,441001,Supporting People,01-Oct-2015,3029138-1963120,"5,483.40",EAST DURHAM COMMUNITY INITIATIVES LTD.
Neighbourhood Services,Projects and Business services,Third Party Payments,430121,Rendered by Private Contractors,01-Oct-2015,3029149-10053,743.54,ELECTROSERVE UK LTD.
Neighbourhood Services,Projects and Business services,Third Party Payments,430121,Rendered by Private Contractors,01-Oct-2015,3029149-10069,565.70,ELECTROSERVE UK LTD.
Resources,Legal & Democratic Services,Supplies and Services,338057,Services,01-Oct-2015,3029151-1292,512.60,ELYSIAN PATHOLOGY SERVICES LTD.
Regeneration & Economic Development,Economic Development and Housing,Creditors,952029,Creditor-returnable bonds,01-Oct-2015,3029152-RED-10-2015-001,"1,000.00",EMERGE (NE) LTD T/A NORTH EAST STATIONERY LTD.
Neighbourhood Services,Direct Services,Supplies and Services,304358,Equipment and Materials,01-Oct-2015,3029153-0000048272,665.00,EURO ENVIRONMENTAL GROUP.
Neighbourhood Services,Direct Services,Supplies and Services,304358,Equipment and Materials,01-Oct-2015,3029155-0000048182,825.00,EURO ENVIRONMENTAL GROUP.
Children and Adult Services,Commissioning inc Supporting People,Third Party Payments,442002,Supporting People,01-Oct-2015,3029162-1963087,"30,071.20",FOUNDATION.
Neighbourhood Services,Technical Services,Supplies and Services,304357,Equipment and Materials,01-Oct-2015,3029171-DCC200915,"10,492.36",GAP GROUP LTD.
Neighbourhood Services,Technical Services,Supplies and Services,304357,Equipment and Materials,01-Oct-2015,3029171-DCC240515,"11,997.45",GAP GROUP LTD.
Regeneration & Economic Development,Econ Dev and Regen Financing,Creditors,952146,Creditor-Section 106 agreement,01-Oct-2015,3029180-RES-10-2015-001,"2,743.00",GREENCROFT PARISH COUNCIL.
Assistant Chief Executive,Partnerships & Community Engagement Div.,Cap Exp on Grants & Other Financial Assistance (REFCUS),918004,Contributions to other bodies,01-Oct-2015,3029183-15NB-EDUR019,"2,000.00",GULLY HOUSE RESIDENTS ASSOCIATION.
Children and Adult Services,Commissioning inc Supporting People,Third Party Payments,442002,Supporting People,01-Oct-2015,3029187-1963121,"5,995.44",HANOVER HOUSING ASSOCIATION.
Children and Adult Services,Commissioning inc Supporting People,Third Party Payments,441001,Supporting People,01-Oct-2015,3029189-1963088,"18,082.80",HARBOUR SUPPORT SERVICES.
Neighbourhood Services,Direct Services,Transport,215005,Running Costs of Vehicles,01-Oct-2015,3029191-551188,"16,049.71",HARVEST ENERGY LTD.
Regeneration & Economic Development,Economic Development and Housing,Supplies and Services,384899,Miscellaneous Expenses,01-Oct-2015,3029196-RED-09-2015-201,"7,758.00",HERITAGE CRAFT ALLIANCE LTD.
Resources,I.C.T. Services,Supplies and Services,304303,Equipment and Materials,01-Oct-2015,3029197-1073119,"2,623.88",HIGHLANDER COMPUTING SOLUTIONS LTD.
Children and Adult Services,Education,Supplies and Services,338094,Services,01-Oct-2015,3029200-HYCA/ALSS/15-07,780.00,HORDEN YOUTH & COMMUNITY ASSOCIATION.
Neighbourhood Services,Direct Services,Third Party Payments,430100,Rendered by Private Contractors,01-Oct-2015,3029203-INV11643,"5,222.50",HYDRATEC LIFT SERVICES LTD.
Neighbourhood Services,Technical Services,Supplies and Services,304358,Equipment and Materials,01-Oct-2015,3029205-C265,561.60,IAN WILSON.
Neighbourhood Services,Technical Services,Supplies and Services,304358,Equipment and Materials,01-Oct-2015,3029205-C268,"3,901.60",IAN WILSON.
Children and Adult Services,Education,Construction Work,908105,Construction work,01-Oct-2015,3029209-DURH/0655,"567,582.89",INSPIREDSPACES DURHAM LTD.
Neighbourhood Services,Technical Services,Stock,926900,Stock in hand-Inventory system,01-Oct-2015,3029210-501748,"2,424.80",INSTARMAC GROUP PLC.
Neighbourhood Services,Direct Services,Third Party Payments,430100,Rendered by Private Contractors,01-Oct-2015,3029219-3104,"1,511.62",JAMES INGLEFORD SCAFFOLDING LTD.
Neighbourhood Services,Direct Services,Third Party Payments,430100,Rendered by Private Contractors,01-Oct-2015,3029219-3109,650.16,JAMES INGLEFORD SCAFFOLDING LTD.
Children and Adult Services,Education,Transport,230007,Contract Hire,01-Oct-2015,3029221-2444,"1,889.80",JEFF ANDERSON COACHES LTD.
Neighbourhood Services,Technical Services,Stock,926900,Stock in hand-Inventory system,01-Oct-2015,3029225-NI029011,"18,437.40",JOHN MACLEAN & SONS ELECTRICAL (DINGWALL) LTD.
Neighbourhood Services,Technical Services,Supplies and Services,304221,Equipment and Materials,01-Oct-2015,3029233-CNI23003/D,556.00,JT DOVE LTD.
Neighbourhood Services,Technical Services,Supplies and Services,304358,Equipment and Materials,01-Oct-2015,3029235-1168,"2,715.25",KEVIN SNOWDON GROUNDWORKS LTD.
Neighbourhood Services,Technical Services,Supplies and Services,304358,Equipment and Materials,01-Oct-2015,3029261-1843,870.25,MARTIN JEWITT PLANT HIRE.
Neighbourhood Services,Technical Services,Supplies and Services,304358,Equipment and Materials,01-Oct-2015,3029261-1844,"1,081.00",MARTIN JEWITT PLANT HIRE.
Children and Adult Services,Commissioning inc Supporting People,Third Party Payments,442002,Supporting People,01-Oct-2015,3029267-1963089,"5,469.72",MENTAL HEALTH MATTERS.
Neighbourhood Services,Direct Services,Third Party Payments,430100,Rendered by Private Contractors,01-Oct-2015,3029268-1353854093,"3,000.00",MITCHELL POWERSYSTEMS.
Children and Adult Services,Commissioning inc Supporting People,Third Party Payments,442002,Supporting People,01-Oct-2015,3029273-1963085,"5,240.36",MOVING ON.
Children and Adult Services,Childrens Services,Supplies and Services,364301,Grants to Voluntary Organisations,01-Oct-2015,3029281-CAS-09-2015-118,513.00,REDACTED - PAYMENT TO INDIVIDUAL
Assistant Chief Executive,Policy & Communications Division,Supplies and Services,312009,Newspapers Books and Periodicals,01-Oct-2015,3029293-12471950,"5,000.00",NEWSQUEST (YORKSHIRE & NORTH EAST) LTD.
Children and Adult Services,Head of Adults,Third Party Payments,479102,Purchase of Care,01-Oct-2015,3029300-0000019636,"1,372.85",NORTH EAST AUTISM SOCIETY.
Neighbourhood Services,Direct Services,Third Party Payments,430100,Rendered by Private Contractors,01-Oct-2015,3029302-1375042,515.35,NORTH EAST TRUCK & VAN LTD.
Neighbourhood Services,Technical Services,Premises,120009,Energy Costs,01-Oct-2015,3029307-NNO7QMMY,"39,119.84",NPOWER.
Neighbourhood Services,Direct Services,Third Party Payments,430100,Rendered by Private Contractors,01-Oct-2015,3029311-5481-01,"254,225.70",OPUS BUILDING SERVICES LTD.
Neighbourhood Services,Direct Services,Third Party Payments,430100,Rendered by Private Contractors,01-Oct-2015,3029312-41970,"1,129.26",ORANGE PLANT LTD.
Neighbourhood Services,Direct Services,Third Party Payments,430100,Rendered by Private Contractors,01-Oct-2015,3029316-644,787.20,PARAMOUNT CEILINGS & PARTITIONS.
Neighbourhood Services,Direct Services,Supplies and Services,304221,Equipment and Materials,01-Oct-2015,3029317-BR527246,"2,270.93",PARK ELECTRICAL DISTRIBUTORS LTD.
Neighbourhood Services,Direct Services,Supplies and Services,304221,Equipment and Materials,01-Oct-2015,3029317-BR529386,820.00,PARK ELECTRICAL DISTRIBUTORS LTD.
Neighbourhood Services,Technical Services,Stock,926900,Stock in hand-Inventory system,01-Oct-2015,3029317-XL152297,"1,105.00",PARK ELECTRICAL DISTRIBUTORS LTD.
Children and Adult Services,Education,Transport,230008,Contract Hire,01-Oct-2015,3029327-0393,702.00,PETER`S PRIVATE HIRE/PETER BEST.
Neighbourhood Services,Direct Services,Supplies and Services,304221,Equipment and Materials,01-Oct-2015,3029341-136040,"1,600.00",PREMIER TRAFFIC MANAGEMENT LTD.
Regeneration & Economic Development,Transport and Contracted Services,Supplies and Services,384199,Miscellaneous Expenses,01-Oct-2015,3029341-136065,626.00,PREMIER TRAFFIC MANAGEMENT LTD.
Neighbourhood Services,Technical Services,Third Party Payments,430100,Rendered by Private Contractors,01-Oct-2015,3029341-136066,"111,257.30",PREMIER TRAFFIC MANAGEMENT LTD.
Neighbourhood Services,Direct Services,Third Party Payments,430100,Rendered by Private Contractors,01-Oct-2015,3029347-80871,550.00,PROTECTOR SECURITY GROUP LTD.
Neighbourhood Services,Technical Services,Stock,926900,Stock in hand-Inventory system,01-Oct-2015,3029348-36475,578.00,PROTEUS EQUIPMENT LTD.
Regeneration & Economic Development,Economic Development and Housing,Cap Exp on Grants & Other Financial Assistance (REFCUS),918501,Exp assets not owned by authority,01-Oct-2015,3029353-RED-09-2015-194,"18,292.56",R TINDALE (BUILDER) LTD.
Children and Adult Services,Commissioning inc Supporting People,Third Party Payments,442002,Supporting People,01-Oct-2015,3029362-1963095,"7,356.72",RICHMOND FELLOWSHIP.
Children and Adult Services,Commissioning inc Supporting People,Third Party Payments,444002,Supporting People,01-Oct-2015,3029362-1963096,"4,068.24",RICHMOND FELLOWSHIP.
Children and Adult Services,Commissioning inc Supporting People,Third Party Payments,441001,Supporting People,01-Oct-2015,3029362-1963108,"9,423.88",RICHMOND FELLOWSHIP.
Neighbourhood Services,Direct Services,Third Party Payments,430100,Rendered by Private Contractors,01-Oct-2015,3029366-IV83913,562.50,RIVERSIDE TRUCK RENTAL LTD (RTR).
Resources,I.C.T. Services,Supplies and Services,304040,Equipment and Materials,01-Oct-2015,3029367-DE4076325,"16,970.00",RM EDUCATION PLC.
Children and Adult Services,Planning & Service Strategy,Supplies and Services,338089,Services,01-Oct-2015,3029369-15-11,"1,056.70",ROGER KENNINGTON CONSULTING.
Neighbourhood Services,Direct Services,Third Party Payments,430100,Rendered by Private Contractors,01-Oct-2015,3029374-2109,"3,515.20",SAFE STRIP UK LTD.
Neighbourhood Services,Direct Services,Third Party Payments,430100,Rendered by Private Contractors,01-Oct-2015,3029374-2132,"1,880.00",SAFE STRIP UK LTD.
Neighbourhood Services,Direct Services,Third Party Payments,430100,Rendered by Private Contractors,01-Oct-2015,3029374-2143,"3,329.92",SAFE STRIP UK LTD.
Children and Adult Services,Commissioning inc Supporting People,Third Party Payments,442002,Supporting People,01-Oct-2015,3029386-1963090,"9,044.36",SHAID.
Regeneration & Economic Development,Economic Development and Housing,Cap Exp on Grants & Other Financial Assistance (REFCUS),918401,Capital grants,01-Oct-2015,3029387-RED-09-2015-197,"7,725.00",SHAPE ADAPTATIONS LTD.
Neighbourhood Services,Direct Services,Supplies and Services,304221,Equipment and Materials,01-Oct-2015,3029388-CD970264137,714.30,SHERRIFF AMENITY.
Neighbourhood Services,Technical Services,Supplies and Services,304358,Equipment and Materials,01-Oct-2015,3029389-2015067,"1,610.20",SHIREHAVEN LTD.
Children and Adult Services,Commissioning inc Supporting People,Third Party Payments,442002,Supporting People,01-Oct-2015,3029406-1963079,"145,778.32",STONHAM HOUSING ASSOCIATION LTD.
Children and Adult Services,Commissioning inc Supporting People,Third Party Payments,442002,Supporting People,01-Oct-2015,3029406-1963094,"29,343.52",STONHAM HOUSING ASSOCIATION LTD.
Children and Adult Services,Commissioning inc Supporting People,Third Party Payments,443001,Supporting People,01-Oct-2015,3029406-1963130,"21,292.46",STONHAM HOUSING ASSOCIATION LTD.
Children and Adult Services,Commissioning inc Supporting People,Third Party Payments,443001,Supporting People,01-Oct-2015,3029406-1963140,"14,378.58",STONHAM HOUSING ASSOCIATION LTD.
Children and Adult Services,Commissioning inc Supporting People,Third Party Payments,443001,Supporting People,01-Oct-2015,3029406-1963158,690.56,STONHAM HOUSING ASSOCIATION LTD.
Children and Adult Services,Commissioning inc Supporting People,Third Party Payments,443001,Supporting People,01-Oct-2015,3029406-1963170,611.04,STONHAM HOUSING ASSOCIATION LTD.
Children and Adult Services,Commissioning inc Supporting People,Third Party Payments,442002,Supporting People,01-Oct-2015,3029406-1963172,"23,639.04",STONHAM HOUSING ASSOCIATION LTD.
Children and Adult Services,Commissioning inc Supporting People,Third Party Payments,441001,Supporting People,01-Oct-2015,3029406-1963173,"67,257.36",STONHAM HOUSING ASSOCIATION LTD.
Neighbourhood Services,Direct Services,Third Party Payments,430100,Rendered by Private Contractors,01-Oct-2015,3029415-7178,"51,812.98",TEAMS ROOFING LTD.
Regeneration & Economic Development,Economic Development and Housing,Supplies and Services,384899,Miscellaneous Expenses,01-Oct-2015,3029418-RED-09-2015-200,"2,645.75",TEESDALE MARKETING LTD.
Neighbourhood Services,Direct Services,Supplies and Services,304221,Equipment and Materials,01-Oct-2015,3029420-P23428,943.51,TERRY GROUP LTD.
Children and Adult Services,Commissioning inc Supporting People,Third Party Payments,441001,Supporting People,01-Oct-2015,3029425-1963122,"19,231.20",THE CYRENIANS LTD T/A CHANGING LIVES.
Children and Adult Services,Commissioning inc Supporting People,Third Party Payments,441001,Supporting People,01-Oct-2015,3029431-1963092,"9,924.64",THIRTEEN CARE & SUPPORT.
Children and Adult Services,Commissioning inc Supporting People,Third Party Payments,441001,Supporting People,01-Oct-2015,3029431-1963109,"7,510.04",THIRTEEN CARE & SUPPORT.
Children and Adult Services,Commissioning inc Supporting People,Third Party Payments,442002,Supporting People,01-Oct-2015,3029431-1963154,"9,366.16",THIRTEEN CARE & SUPPORT.
Children and Adult Services,Commissioning inc Supporting People,Third Party Payments,441001,Supporting People,01-Oct-2015,3029431-1963157,"26,009.80",THIRTEEN CARE & SUPPORT.
Children and Adult Services,Commissioning inc Supporting People,Third Party Payments,442002,Supporting People,01-Oct-2015,3029431-1963181,"1,519.52",THIRTEEN CARE & SUPPORT.
Children and Adult Services,Commissioning inc Supporting People,Third Party Payments,442002,Supporting People,01-Oct-2015,3029433-1963078,"36,446.00",THREE RIVERS HOUSING ASSOCIATION LTD.
Regeneration & Economic Development,Economic Development and Housing,Cap Exp on Grants & Other Financial Assistance (REFCUS),918401,Capital grants,01-Oct-2015,3029435-RED-09-2015-196,"3,995.00",THYSSENKRUPP ENCASA A DIVISION OF THYSSENKRUPP ACCESS LTD.
Regeneration & Economic Development,Transport and Contracted Services,Supplies and Services,304259,Equipment and Materials,01-Oct-2015,3029445-10267702,"1,268.40",TUNSTALL HEALTHCARE (UK) LTD.
Children and Adult Services,Childrens Services,Supplies and Services,364358,Grants to Voluntary Organisations,01-Oct-2015,3029449-CAS-09-2015-116,"4,772.50",UNIVERSITY OF NORTHUMBRIA.
Resources,I.C.T. Services,Employees,040149,Recruitment Instruction and Training,01-Oct-2015,3029450-4041120,995.00,UNIVERSITY OF SUNDERLAND ENTERPRISES LTD.
Children and Adult Services,Commissioning inc Supporting People,Third Party Payments,441001,Supporting People,01-Oct-2015,3029463-1963123,"1,183.60",WADDINGTON STREET CENTRE LTD.
Children and Adult Services,Commissioning inc Supporting People,Third Party Payments,443001,Supporting People,01-Oct-2015,3029463-1963124,930.08,WADDINGTON STREET CENTRE LTD.
Children and Adult Services,Commissioning inc Supporting People,Third Party Payments,441001,Supporting People,01-Oct-2015,3029466-1963091,"7,157.00",WEAR VALLEY WOMENS AID.
Resources,I.C.T. Services,Supplies and Services,342033,Computers and Communications,01-Oct-2015,3029479-Y904854,"2,972.70",XMA LTD.
Resources,I.C.T. Services,Supplies and Services,338099,Services,02-Oct-2015,3029503,"13,895.47",BT GLOBAL SERVICES.
Children and Adult Services,Education,Transport,230008,Contract Hire,02-Oct-2015,3029485-A220767,"1,787.00",A MURRAY TRAVEL.
Neighbourhood Services,Technical Services,Supplies and Services,304221,Equipment and Materials,02-Oct-2015,3029486-22026289,869.82,AGGREGATE INDUSTRIES UK LTD.
Neighbourhood Services,Technical Services,Supplies and Services,304221,Equipment and Materials,02-Oct-2015,3029486-22026399,"1,208.68",AGGREGATE INDUSTRIES UK LTD.
Neighbourhood Services,Technical Services,Supplies and Services,304221,Equipment and Materials,02-Oct-2015,3029486-22026400,"1,266.54",AGGREGATE INDUSTRIES UK LTD.
Neighbourhood Services,Technical Services,Supplies and Services,304221,Equipment and Materials,02-Oct-2015,3029486-22026401,952.87,AGGREGATE INDUSTRIES UK LTD.
Neighbourhood Services,Technical Services,Supplies and Services,304221,Equipment and Materials,02-Oct-2015,3029486-22026404,959.32,AGGREGATE INDUSTRIES UK LTD.
Neighbourhood Services,Technical Services,Supplies and Services,304221,Equipment and Materials,02-Oct-2015,3029486-22026407,"2,481.59",AGGREGATE INDUSTRIES UK LTD.
Children and Adult Services,Education,Transport,230008,Contract Hire,02-Oct-2015,3029487-388136,800.00,ALAN SOUTHERN T/A ALANS TAXIS PELTON FELL.
Children and Adult Services,Education,Transport,230008,Contract Hire,02-Oct-2015,3029487-388236,"1,564.50",ALAN SOUTHERN T/A ALANS TAXIS PELTON FELL.
Neighbourhood Services,Direct Services,Third Party Payments,430100,Rendered by Private Contractors,02-Oct-2015,3029491-5835,"25,300.00",AMBIENT AIR CONDITIONING UK LTD T/A AMBIENT HVAC.
Dedicated Schools Grant,Dedicated Schools Grant,Transport,230201,Contract Hire,02-Oct-2015,3029494-RI0001207568,808.16,ARVAL UK LTD.
Dedicated Schools Grant,Dedicated Schools Grant,Transport,230201,Contract Hire,02-Oct-2015,3029494-RI0001292153,808.16,ARVAL UK LTD.
Dedicated Schools Grant,Dedicated Schools Grant,Transport,230201,Contract Hire,02-Oct-2015,3029494-RI0001432094,808.16,ARVAL UK LTD.
Neighbourhood Services,Projects and Business services,Third Party Payments,430103,Rendered by Private Contractors,02-Oct-2015,3029497-NEI-EXP-10-2015-004,820.44,BARNARDO SERVICES LTD.
Children and Adult Services,Education,Transport,230008,Contract Hire,02-Oct-2015,3029500-1385,"1,855.70",BOBBY DOVE.
Children and Adult Services,Education,Transport,230008,Contract Hire,02-Oct-2015,3029500-1386,"3,193.20",BOBBY DOVE.
Regeneration & Economic Development,Transport and Contracted Services,Construction Work,908105,Construction work,02-Oct-2015,3029504-22427,"2,542.78",BUS SHELTERS LTD.
Regeneration & Economic Development,Transport and Contracted Services,Construction Work,908105,Construction work,02-Oct-2015,3029504-NO22464,"2,263.43",BUS SHELTERS LTD.
Resources,Legal & Democratic Services,Creditors,952238,Chairmans Charity,02-Oct-2015,3029505-RES-10-2015-006,"5,327.96",BUTTERWICK HOSPICE RETAIL LTD.
Neighbourhood Services,Culture & Sport,Supplies and Services,324001,Provisions,02-Oct-2015,3029508-841871956,951.15,CARLSBERG UK LTD.
Neighbourhood Services,Direct Services,Supplies and Services,304259,Equipment and Materials,02-Oct-2015,3029509-462726,518.00,CARRS BILLINGTON AGRICULTURE.
Neighbourhood Services,Direct Services,Third Party Payments,430100,Rendered by Private Contractors,02-Oct-2015,3029510-17074,917.04,CATHEDRAL LOCK & SAFE SERVICES LTD.
Neighbourhood Services,Direct Services,Third Party Payments,430100,Rendered by Private Contractors,02-Oct-2015,3029510-17247,"1,616.00",CATHEDRAL LOCK & SAFE SERVICES LTD.
Neighbourhood Services,Direct Services,Third Party Payments,430100,Rendered by Private Contractors,02-Oct-2015,3029510-17249,806.71,CATHEDRAL LOCK & SAFE SERVICES LTD.
Neighbourhood Services,Direct Services,Third Party Payments,430100,Rendered by Private Contractors,02-Oct-2015,3029510-17269,500.96,CATHEDRAL LOCK & SAFE SERVICES LTD.
Neighbourhood Services,Direct Services,Third Party Payments,430100,Rendered by Private Contractors,02-Oct-2015,3029510-17272,"2,082.40",CATHEDRAL LOCK & SAFE SERVICES LTD.
Neighbourhood Services,Direct Services,Third Party Payments,430100,Rendered by Private Contractors,02-Oct-2015,3029510-17286,613.44,CATHEDRAL LOCK & SAFE SERVICES LTD.
Neighbourhood Services,Direct Services,Third Party Payments,430100,Rendered by Private Contractors,02-Oct-2015,3029510-17317,"1,035.35",CATHEDRAL LOCK & SAFE SERVICES LTD.
Resources,Financial Services,Supplies and Services,364999,Grants to Voluntary Organisations,02-Oct-2015,3029511-CACD175,"59,500.00",CITIZENS ADVICE COUNTY DURHAM.
Resources,Financial Services,Supplies and Services,364999,Grants to Voluntary Organisations,02-Oct-2015,3029511-CACD176,"95,075.50",CITIZENS ADVICE COUNTY DURHAM.
Resources,Financial Services,Supplies and Services,364999,Grants to Voluntary Organisations,02-Oct-2015,3029511-CACD177,"15,000.00",CITIZENS ADVICE COUNTY DURHAM.
Children and Adult Services,Education,Transport,230008,Contract Hire,02-Oct-2015,3029524-62,"1,211.40",D CROOK T/A CK TAXIS.
Children and Adult Services,Education,Transport,230008,Contract Hire,02-Oct-2015,3029528-0915-001,"1,412.40",DCM TAXIS.
Resources,Human Resources,Supplies and Services,342033,Computers and Communications,02-Oct-2015,3029529-7402233815,675.81,DELL COMPUTER CORPORATION LTD.
Regeneration & Economic Development,Spatial Policy Planning Assets & Environment,Vehicles Equipment Furniture and Fittings,912701,Computer equipment,02-Oct-2015,3029529-7402233963,"1,218.00",DELL COMPUTER CORPORATION LTD.
Resources,Legal & Democratic Services,Supplies and Services,338042,Services,02-Oct-2015,3029530-312934/INVCSM149,850.00,DERE STREET BARRISTERS.
Resources,Legal & Democratic Services,Supplies and Services,338042,Services,02-Oct-2015,3029530-314472/INVKA88,800.00,DERE STREET BARRISTERS.
Assistant Chief Executive,Planning & Performance Division,Supplies and Services,384199,Miscellaneous Expenses,02-Oct-2015,3029531-INV-1516062,"8,000.00",DISABLED ENABLED LTD T/A DISABLED GO.
Regeneration & Economic Development,Economic Development and Housing,Cap Exp on Grants & Other Financial Assistance (REFCUS),918501,Exp assets not owned by authority,02-Oct-2015,3029532-RED-10-2015-020,"21,817.70",DOH CONSTRUCTION.
Resources,Legal & Democratic Services,Creditors,952027,Creditor-lab grp-deds frm memb all,02-Oct-2015,3029534-RES-10-2015-003,"7,365.38",DURHAM COUNTY COUNCIL LABOUR GROUP.
Regeneration & Economic Development,Spatial Policy Planning Assets & Environment,Supplies and Services,338066,Services,02-Oct-2015,3029537-1100,"3,187.50",ECONOMICS FOR THE ENVIRONMENT CONSULTANCY LTD (EFTEC).
Children and Adult Services,Childrens Services,Third Party Payments,425040,Rendered by Voluntary Organisations,02-Oct-2015,3029542-630166172,"3,128.40",FOSTER CARE ASSOCIATES LTD.
Children and Adult Services,Childrens Services,Third Party Payments,425040,Rendered by Voluntary Organisations,02-Oct-2015,3029543-124395,730.00,FOSTER CARES LTD.
Children and Adult Services,Childrens Services,Third Party Payments,425040,Rendered by Voluntary Organisations,02-Oct-2015,3029543-124400,"1,180.00",FOSTER CARES LTD.
Children and Adult Services,Childrens Services,Third Party Payments,425040,Rendered by Voluntary Organisations,02-Oct-2015,3029543-124405,820.00,FOSTER CARES LTD.
Children and Adult Services,Childrens Services,Third Party Payments,425040,Rendered by Voluntary Organisations,02-Oct-2015,3029543-124406,820.00,FOSTER CARES LTD.
Children and Adult Services,Childrens Services,Third Party Payments,425040,Rendered by Voluntary Organisations,02-Oct-2015,3029543-124407,730.00,FOSTER CARES LTD.
Children and Adult Services,Childrens Services,Third Party Payments,425040,Rendered by Voluntary Organisations,02-Oct-2015,3029543-124414,730.00,FOSTER CARES LTD.
Children and Adult Services,Childrens Services,Third Party Payments,425040,Rendered by Voluntary Organisations,02-Oct-2015,3029543-124417,730.00,FOSTER CARES LTD.
Children and Adult Services,Childrens Services,Third Party Payments,425040,Rendered by Voluntary Organisations,02-Oct-2015,3029543-124422,730.00,FOSTER CARES LTD.
Children and Adult Services,Childrens Services,Third Party Payments,425040,Rendered by Voluntary Organisations,02-Oct-2015,3029543-124423,730.00,FOSTER CARES LTD.
Children and Adult Services,Childrens Services,Third Party Payments,425040,Rendered by Voluntary Organisations,02-Oct-2015,3029543-124429,730.00,FOSTER CARES LTD.
Children and Adult Services,Childrens Services,Third Party Payments,425040,Rendered by Voluntary Organisations,02-Oct-2015,3029543-124430,730.00,FOSTER CARES LTD.
Neighbourhood Services,Culture & Sport,Supplies and Services,304259,Equipment and Materials,02-Oct-2015,3029545-1162,"1,865.95",FUSION LX LTD.
Children and Adult Services,Education,Transport,230005,Contract Hire,02-Oct-2015,3029547-1945,819.00,GEM TRAVEL.
Neighbourhood Services,Technical Services,Supplies and Services,304358,Equipment and Materials,02-Oct-2015,3029548-10165,730.00,GEORGE VARDY HAULAGE.
Children and Adult Services,Head of Adults,Transport,230005,Contract Hire,02-Oct-2015,3029551-50A,649.00,GRAEME AGNEW T/A STREETCARS.
Children and Adult Services,Education,Transport,230008,Contract Hire,02-Oct-2015,3029551-50B,583.00,GRAEME AGNEW T/A STREETCARS.
Resources,Legal & Democratic Services,Creditors,952238,Chairmans Charity,02-Oct-2015,3029552-RES-10-2015-005,"5,327.95",GREAT NORTH AIR AMBULANCE SERVICE TRADING CO LTD.
Neighbourhood Services,Technical Services,Third Party Payments,430100,Rendered by Private Contractors,02-Oct-2015,3029556-1505\048,"1,100.00",HALL CONSTRUCTION SERVICES LTD.
Neighbourhood Services,Technical Services,Third Party Payments,430100,Rendered by Private Contractors,02-Oct-2015,3029556-1508\059,"1,650.00",HALL CONSTRUCTION SERVICES LTD.
Neighbourhood Services,Technical Services,Third Party Payments,430100,Rendered by Private Contractors,02-Oct-2015,3029556-1508\060,600.00,HALL CONSTRUCTION SERVICES LTD.
Neighbourhood Services,Direct Services,Transport,215005,Running Costs of Vehicles,02-Oct-2015,3029560-551185,"4,473.50",HARVEST ENERGY LTD.
Neighbourhood Services,Direct Services,Transport,215005,Running Costs of Vehicles,02-Oct-2015,3029560-551186,"10,700.40",HARVEST ENERGY LTD.
Assistant Chief Executive,Policy & Communications Division,Supplies and Services,312009,Newspapers Books and Periodicals,02-Oct-2015,3029562-341038/377321/2015,833.00,HEMMING GROUP LTD.
Neighbourhood Services,Direct Services,Third Party Payments,430101,Rendered by Private Contractors,02-Oct-2015,3029565-5067546488,619.53,HI Q TYRESERVICES.
Neighbourhood Services,Technical Services,Employees,040149,Recruitment Instruction and Training,02-Oct-2015,3029566-1956,900.00,HSF TRAINING LTD.
Neighbourhood Services,Culture & Sport,Supplies and Services,384199,Miscellaneous Expenses,02-Oct-2015,3029567-14815,"1,738.00",HUSSEY SEATWAY LTD.
Neighbourhood Services,Technical Services,Stock,926900,Stock in hand-Inventory system,02-Oct-2015,3029568-093011,"1,596.40",HYDRAM ENGINEERING LTD.
Children and Adult Services,Education,Supplies and Services,338027,Services,02-Oct-2015,3029569-10136,"2,191.30",INDEPENDENT THINKING LTD.
Regeneration & Economic Development,Transport and Contracted Services,Premises,108099,Service Repairs and Maintenance,02-Oct-2015,3029572-11006,598.00,JC MAINTENANCE SERVICES LTD.
Neighbourhood Services,Technical Services,Supplies and Services,304221,Equipment and Materials,02-Oct-2015,3029576-CNI23058/D,"3,995.50",JT DOVE LTD.
Neighbourhood Services,Technical Services,Stock,926900,Stock in hand-Inventory system,02-Oct-2015,3029576-STI425770,924.43,JT DOVE LTD.
Neighbourhood Services,Technical Services,Stock,926900,Stock in hand-Inventory system,02-Oct-2015,3029576-STI425781,838.80,JT DOVE LTD.
Neighbourhood Services,Technical Services,Third Party Payments,430100,Rendered by Private Contractors,02-Oct-2015,3029577-9302,"9,145.00",KAEFER C & D - KD SCAFFOLDING DIVISION.
Children and Adult Services,Head of Adults,Supplies and Services,338365,Services,02-Oct-2015,3029582-35704,"2,248.00",LOCKWISE LTD.
Children and Adult Services,Head of Adults,Transport,230005,Contract Hire,02-Oct-2015,3029587-66179,"1,804.00",MR GN ROBBINS T/A GNR MINIBUS HIRE.
Children and Adult Services,Head of Adults,Transport,230005,Contract Hire,02-Oct-2015,3029587-66180,"1,315.60",MR GN ROBBINS T/A GNR MINIBUS HIRE.
Regeneration & Economic Development,Transport and Contracted Services,Third Party Payments,430108,Rendered by Private Contractors,02-Oct-2015,3029591-1800007606507,"54,825.75",NEWCASTLE UPON TYNE CITY COUNCIL.
Neighbourhood Services,Technical Services,Third Party Payments,430100,Rendered by Private Contractors,02-Oct-2015,3029594-DI20223557,"4,679.68",NORTHERN POWERGRID (NORTHEAST) LTD.
Children and Adult Services,Education,Construction Work,908105,Construction work,02-Oct-2015,3029594-NEI-EXP-10-2015-001,882.00,NORTHERN POWERGRID (NORTHEAST) LTD.
Regeneration & Economic Development,Economic Development and Housing,Cap Exp on Grants & Other Financial Assistance (REFCUS),918401,Capital grants,02-Oct-2015,3029594-RED-10-2015-021,891.60,NORTHERN POWERGRID (NORTHEAST) LTD.
Neighbourhood Services,Technical Services,Third Party Payments,430100,Rendered by Private Contractors,02-Oct-2015,3029596-913565199,700.00,NORTHUMBRIAN WATER LTD.
Neighbourhood Services,Technical Services,Stock,926900,Stock in hand-Inventory system,02-Oct-2015,3029599-XL152364,"2,759.60",PARK ELECTRICAL DISTRIBUTORS LTD.
Dedicated Schools Grant,Dedicated Schools Grant,Third Party Payments,425005,Rendered by Voluntary Organisations,02-Oct-2015,3029600-GD/AT/15,"9,034.13",PARKSIDE HOUSE SCHOOL.
Children and Adult Services,Head of Adults,Transport,230005,Contract Hire,02-Oct-2015,3029602-0398,968.00,PETER`S PRIVATE HIRE/PETER BEST.
Children and Adult Services,Head of Adults,Transport,230005,Contract Hire,02-Oct-2015,3029602-0399,828.00,PETER`S PRIVATE HIRE/PETER BEST.
Neighbourhood Services,Technical Services,Stock,926900,Stock in hand-Inventory system,02-Oct-2015,3029604-10286,958.60,PLUMBING & HEATING SUPPLIES LTD.
Neighbourhood Services,Technical Services,Third Party Payments,430100,Rendered by Private Contractors,02-Oct-2015,3029612-2580/150868,"42,688.86",RAINTON CONSTRUCTION LTD.
Neighbourhood Services,Culture & Sport,Third Party Payments,430100,Rendered by Private Contractors,02-Oct-2015,3029617-I/CONSETT35641,"12,423.05",ROBERTSON FACILITIES MANAGEMENT.
Neighbourhood Services,Culture & Sport,Third Party Payments,430100,Rendered by Private Contractors,02-Oct-2015,3029617-I/CONSETT35689,"9,656.34",ROBERTSON FACILITIES MANAGEMENT.
Neighbourhood Services,Technical Services,Supplies and Services,304221,Equipment and Materials,02-Oct-2015,3029622-714518211888,"1,200.00",SIG TRADING LTD.
Children and Adult Services,Education,Transport,230008,Contract Hire,02-Oct-2015,3029624-90A,"2,090.00",SIMONS TAXIS.
Children and Adult Services,Head of Adults,Transport,230005,Contract Hire,02-Oct-2015,3029624-91A,932.00,SIMONS TAXIS.
Children and Adult Services,Childrens Services,Third Party Payments,425040,Rendered by Voluntary Organisations,02-Oct-2015,3029643-25408,"3,128.57",TEAM FOSTERING.
Children and Adult Services,Childrens Services,Third Party Payments,425040,Rendered by Voluntary Organisations,02-Oct-2015,3029643-25574,"3,232.86",TEAM FOSTERING.
Children and Adult Services,Childrens Services,Third Party Payments,425040,Rendered by Voluntary Organisations,02-Oct-2015,3029643-25751,"2,085.71",TEAM FOSTERING.
Neighbourhood Services,Technical Services,Stock,926900,Stock in hand-Inventory system,02-Oct-2015,3029645-001258,976.50,TINTFIT WINDOW FILMS LTD.
Neighbourhood Services,Culture & Sport,Supplies and Services,384700,Miscellaneous Expenses,02-Oct-2015,3029648-NEI-EXP-10-2015-002,800.00,WEAR ARCHERS JUNIOR CLUB.
Neighbourhood Services,Technical Services,Stock,926900,Stock in hand-Inventory system,02-Oct-2015,3029651-25778750,593.55,WOLSELEY UK LTD.
Resources,I.C.T. Services,Stock,926900,Stock in hand-Inventory system,02-Oct-2015,3029652-Y920126,"2,614.70",XMA LTD.
Neighbourhood Services,Technical Services,Supplies and Services,304358,Equipment and Materials,02-Oct-2015,3029654-5061,646.00,YOULL CONSTRUCTION LTD.
Neighbourhood Services,Technical Services,Supplies and Services,304358,Equipment and Materials,02-Oct-2015,3029654-5062,"1,292.00",YOULL CONSTRUCTION LTD.
Neighbourhood Services,Technical Services,Supplies and Services,304358,Equipment and Materials,02-Oct-2015,3029654-5066,"1,299.00",YOULL CONSTRUCTION LTD.
Neighbourhood Services,Direct Services,Supplies and Services,304221,Equipment and Materials,05-Oct-2015,3029660-2191,"1,237.50",A & J GUTHRIE.
Children and Adult Services,Education,Transport,230008,Contract Hire,05-Oct-2015,3029661-M010/16,"1,350.51",A & P TAXIS.
Children and Adult Services,Education,Transport,230008,Contract Hire,05-Oct-2015,3029662-528SEPT,525.00,A BARKER.
Children and Adult Services,Education,Transport,230006,Contract Hire,05-Oct-2015,3029662-529SEPT,528.00,A BARKER.
Neighbourhood Services,Culture & Sport,Supplies and Services,304259,Equipment and Materials,05-Oct-2015,3029664-116267918,"1,497.94",AC ENTERTAINMENT TECHNOLOGIES.
Regeneration & Economic Development,Spatial Policy Planning Assets & Environment,Supplies and Services,338005,Services,05-Oct-2015,3029667-0132257,"2,079.00",ADDISONS CHARTERED SURVEYORS.
Regeneration & Economic Development,Spatial Policy Planning Assets & Environment,Supplies and Services,338005,Services,05-Oct-2015,3029667-0132271,558.75,ADDISONS CHARTERED SURVEYORS.
Neighbourhood Services,Direct Services,Third Party Payments,430100,Rendered by Private Contractors,05-Oct-2015,3029669-30594854-61,"2,065.31",ADT FIRE & SECURITY PLC.
Neighbourhood Services,Technical Services,Supplies and Services,304221,Equipment and Materials,05-Oct-2015,3029670-22032920,"1,210.79",AGGREGATE INDUSTRIES UK LTD.
Neighbourhood Services,Technical Services,Supplies and Services,304221,Equipment and Materials,05-Oct-2015,3029670-22032921,"1,256.51",AGGREGATE INDUSTRIES UK LTD.
Neighbourhood Services,Technical Services,Supplies and Services,304221,Equipment and Materials,05-Oct-2015,3029670-22032922,"1,588.92",AGGREGATE INDUSTRIES UK LTD.
Neighbourhood Services,Technical Services,Supplies and Services,304221,Equipment and Materials,05-Oct-2015,3029670-22040058,656.19,AGGREGATE INDUSTRIES UK LTD.
Neighbourhood Services,Technical Services,Supplies and Services,304221,Equipment and Materials,05-Oct-2015,3029670-22040153,"2,279.98",AGGREGATE INDUSTRIES UK LTD.
Neighbourhood Services,Technical Services,Supplies and Services,304221,Equipment and Materials,05-Oct-2015,3029670-22040160,"1,152.82",AGGREGATE INDUSTRIES UK LTD.
Neighbourhood Services,Technical Services,Supplies and Services,304221,Equipment and Materials,05-Oct-2015,3029670-22040161,"1,269.05",AGGREGATE INDUSTRIES UK LTD.
Neighbourhood Services,Technical Services,Supplies and Services,304221,Equipment and Materials,05-Oct-2015,3029670-22040162,636.04,AGGREGATE INDUSTRIES UK LTD.
Neighbourhood Services,Technical Services,Supplies and Services,304221,Equipment and Materials,05-Oct-2015,3029670-22040164,580.49,AGGREGATE INDUSTRIES UK LTD.
Resources,I.C.T. Services,Supplies and Services,332029,Printing Stationery and Gen Off Exps,05-Oct-2015,3029671-214287,"3,797.00",AGNE LTD T/A ALPHAGRAPHICS.
Resources,I.C.T. Services,Supplies and Services,332029,Printing Stationery and Gen Off Exps,05-Oct-2015,3029671-214288,"1,108.00",AGNE LTD T/A ALPHAGRAPHICS.
Neighbourhood Services,Technical Services,Third Party Payments,430100,Rendered by Private Contractors,05-Oct-2015,3029672-J1530/70/B,"4,741.67",AK (LIGHTING & SIGNS) LTD.
Children and Adult Services,Education,Transport,230008,Contract Hire,05-Oct-2015,3029673-266136,990.00,ALAN SOUTHERN T/A ALANS TAXIS PELTON FELL.
Neighbourhood Services,Culture & Sport,Premises,106082,Centrally Controlled Rep and Maint,05-Oct-2015,3029679-27970,782.90,BARR & WRAY LTD.
Children and Adult Services,Education,Construction Work,908105,Construction work,05-Oct-2015,3029679-28895,"4,496.00",BARR & WRAY LTD.
Children and Adult Services,Education,Transport,230008,Contract Hire,05-Oct-2015,3029680-48,"2,215.01",BEELINE TAXIS.
Regeneration & Economic Development,Economic Development and Housing,Supplies and Services,304259,Equipment and Materials,05-Oct-2015,3029684-FLGA2813597,866.39,BNP PARIBAS LEASE GROUP (RENTALS).
Children and Adult Services,Head of Adults,Transport,230005,Contract Hire,05-Oct-2015,3029685-2039,"1,024.00",BOBBY DOVE.
Assistant Chief Executive,Partnerships & Community Engagement Div.,Supplies and Services,384085,Miscellaneous Expenses,05-Oct-2015,3029689-ARMB10,500.00,CARDIAC RISK IN THE YOUNG (CRY).
Neighbourhood Services,Culture & Sport,Supplies and Services,324117,Provisions,05-Oct-2015,3029691-841882031,776.15,CARLSBERG UK LTD.
Neighbourhood Services,Technical Services,Stock,926900,Stock in hand-Inventory system,05-Oct-2015,3029695-9950/01663165,"2,479.68",CERAMIC TILE DISTRIBUTORS (CTD).
Assistant Chief Executive,Partnerships & Community Engagement Div.,Supplies and Services,384085,Miscellaneous Expenses,05-Oct-2015,3029696-CORJ10,700.00,CHESTER LE STREET SCC.
Children and Adult Services,Education,Third Party Payments,440999,Other Third Party Payments,05-Oct-2015,3029697-960,"6,317.88",CHILDRENS FOUNDATION LTD.
Resources,I.C.T. Services,Supplies and Services,338099,Services,05-Oct-2015,3029700-2803028053,"1,855.00",CITY OF SUNDERLAND.
Children and Adult Services,Education,Transport,230007,Contract Hire,05-Oct-2015,3029704-C/8899,"6,691.02",COCHRANES T/A KELVIN TRAVEL.
Children and Adult Services,Education,Transport,230007,Contract Hire,05-Oct-2015,3029704-C/8900,"3,121.86",COCHRANES T/A KELVIN TRAVEL.
Children and Adult Services,Education,Transport,230007,Contract Hire,05-Oct-2015,3029704-C/8901,"2,923.41",COCHRANES T/A KELVIN TRAVEL.
Children and Adult Services,Education,Transport,230007,Contract Hire,05-Oct-2015,3029704-C/8902,"5,257.56",COCHRANES T/A KELVIN TRAVEL.
Children and Adult Services,Education,Transport,230008,Contract Hire,05-Oct-2015,3029705-244,"1,340.00",COLIN HOLMES.
Children and Adult Services,Education,Transport,230008,Contract Hire,05-Oct-2015,3029706-615,"1,974.00",CONNORS MINI BUSES.
Regeneration & Economic Development,Economic Development and Housing,Premises,120021,Energy Costs,05-Oct-2015,3029708-10473696,712.31,CORONA ENERGY RETAIL 2 LTD.
Children and Adult Services,Education,Transport,230008,Contract Hire,05-Oct-2015,3029714-1420,"1,180.00",DA TAXIS.
Children and Adult Services,Education,Transport,230008,Contract Hire,05-Oct-2015,3029714-1424,"1,213.40",DA TAXIS.
Children and Adult Services,Education,Transport,230008,Contract Hire,05-Oct-2015,3029715-145,"1,260.00",DA TRAVEL.
Children and Adult Services,Commissioning inc Supporting People,Third Party Payments,472113,Purchase of Care,05-Oct-2015,3029717-AL17,"11,250.00",DALE CARE LTD.
Children and Adult Services,Childrens Services,Supplies and Services,384899,Miscellaneous Expenses,05-Oct-2015,3029722-2927228,"1,760.65",DEPARTMENT FOR WORK & PENSIONS.
Regeneration & Economic Development,Economic Development and Housing,Cap Exp on Grants & Other Financial Assistance (REFCUS),918401,Capital grants,05-Oct-2015,3029725-RED-09-2015-195,"4,886.09",EASIBATHE LTD.
Children and Adult Services,Education,Income,740298,Other Income,05-Oct-2015,3029726-CAS-10-2015-010,"4,699.27",EASINGTON ACADEMY.
Neighbourhood Services,Direct Services,Supplies and Services,304221,Equipment and Materials,05-Oct-2015,3029730-059-169317,"3,620.00",EDMUNDSON ELECTRICAL LTD.
Neighbourhood Services,Direct Services,Supplies and Services,304221,Equipment and Materials,05-Oct-2015,3029730-059-169594,"2,406.41",EDMUNDSON ELECTRICAL LTD.
Neighbourhood Services,Technical Services,Stock,926900,Stock in hand-Inventory system,05-Oct-2015,3029730-059-171268,880.00,EDMUNDSON ELECTRICAL LTD.
Neighbourhood Services,Direct Services,Supplies and Services,304259,Equipment and Materials,05-Oct-2015,3029731-IN108679,"11,400.00",EGBERT H TAYLOR & CO LTD.
Neighbourhood Services,Direct Services,Supplies and Services,336005,Advertising,05-Oct-2015,3029734-20825740,"2,550.00",ESTATES GAZETTE.
Children and Adult Services,Education,Transport,230008,Contract Hire,05-Oct-2015,3029737-A060/012,650.00,FERRYHILL VILLAGE TRAVEL.
Children and Adult Services,Education,Transport,230008,Contract Hire,05-Oct-2015,3029737-S007/034,"2,408.00",FERRYHILL VILLAGE TRAVEL.
Children and Adult Services,Childrens Services,Third Party Payments,425040,Rendered by Voluntary Organisations,05-Oct-2015,3029739-0000056943,"3,277.14",FIVE RIVERS CHILD CARE LTD.
Neighbourhood Services,Direct Services,Supplies and Services,304221,Equipment and Materials,05-Oct-2015,3029740-1509-224061,890.17,FLAME HEATING SPARES LTD.
Resources,I.C.T. Services,Employees,040149,Recruitment Instruction and Training,05-Oct-2015,3029741-17746,"1,890.00",FOCUS ON TRAINING.
Children and Adult Services,Childrens Services,Third Party Payments,425040,Rendered by Voluntary Organisations,05-Oct-2015,3029742-124477,730.00,FOSTER CARE ASSOCIATES LTD.
Children and Adult Services,Childrens Services,Third Party Payments,425040,Rendered by Voluntary Organisations,05-Oct-2015,3029743-124443,730.00,FOSTER CARES LTD.
Children and Adult Services,Childrens Services,Third Party Payments,425040,Rendered by Voluntary Organisations,05-Oct-2015,3029743-124448,"1,180.00",FOSTER CARES LTD.
Children and Adult Services,Childrens Services,Third Party Payments,425040,Rendered by Voluntary Organisations,05-Oct-2015,3029743-124453,820.00,FOSTER CARES LTD.
Children and Adult Services,Childrens Services,Third Party Payments,425040,Rendered by Voluntary Organisations,05-Oct-2015,3029743-124454,820.00,FOSTER CARES LTD.
Children and Adult Services,Childrens Services,Third Party Payments,425040,Rendered by Voluntary Organisations,05-Oct-2015,3029743-124455,730.00,FOSTER CARES LTD.
Children and Adult Services,Childrens Services,Third Party Payments,425040,Rendered by Voluntary Organisations,05-Oct-2015,3029743-124462,730.00,FOSTER CARES LTD.
Children and Adult Services,Childrens Services,Third Party Payments,425040,Rendered by Voluntary Organisations,05-Oct-2015,3029743-124465,730.00,FOSTER CARES LTD.
Children and Adult Services,Childrens Services,Third Party Payments,425040,Rendered by Voluntary Organisations,05-Oct-2015,3029743-124470,730.00,FOSTER CARES LTD.
Children and Adult Services,Childrens Services,Third Party Payments,425040,Rendered by Voluntary Organisations,05-Oct-2015,3029743-124471,730.00,FOSTER CARES LTD.
Children and Adult Services,Childrens Services,Third Party Payments,425040,Rendered by Voluntary Organisations,05-Oct-2015,3029743-124478,730.00,FOSTER CARES LTD.
Neighbourhood Services,Projects and Business services,Third Party Payments,430103,Rendered by Private Contractors,05-Oct-2015,3029750-NEI-EXP-09-2015-024,805.71,GREAT NORTH AIR AMBULANCE SERVICE TRADING CO LTD.
Neighbourhood Services,Direct Services,Transport,215005,Running Costs of Vehicles,05-Oct-2015,3029752-551182,"13,315.64",HARVEST ENERGY LTD.
Neighbourhood Services,Direct Services,Transport,215005,Running Costs of Vehicles,05-Oct-2015,3029752-551183,"10,660.32",HARVEST ENERGY LTD.
Neighbourhood Services,Direct Services,Transport,215005,Running Costs of Vehicles,05-Oct-2015,3029752-551184,"4,437.31",HARVEST ENERGY LTD.
Children and Adult Services,Education,Income,740298,Other Income,05-Oct-2015,3029755-CAS-10-2015-009,"4,903.59",HERMITAGE ACADEMY.
Children and Adult Services,Planning & Service Strategy,Supplies and Services,338089,Services,05-Oct-2015,3029758-1972,600.00,HSF TRAINING LTD.
Children and Adult Services,Education,Supplies and Services,375001,Private Finance Initiative,05-Oct-2015,3029761-ISD0144,"642,663.93",INSPIREDSPACES DURHAM (PROJECTCO1) LTD.
Neighbourhood Services,Technical Services,Supplies and Services,304221,Equipment and Materials,05-Oct-2015,3029762-501999,657.44,INSTARMAC GROUP PLC.
Neighbourhood Services,Technical Services,Construction Work,908108,Capital - Surface Dressing,05-Oct-2015,3029767-11603,607.22,JACK COUPE & SONS LTD T/A COUPE LINE.
Regeneration & Economic Development,Economic Development and Housing,Construction Work,908113,Capital - Landscaping,05-Oct-2015,3029768-018,"1,380.00",JAYDEN MARRISON T/A 4NATURE.
Neighbourhood Services,Culture & Sport,Supplies and Services,304083,Equipment and Materials,05-Oct-2015,3029769-30154,"1,320.00",JBL SERVICES LTD.
Children and Adult Services,Education,Transport,230008,Contract Hire,05-Oct-2015,3029770-779,"1,435.20",JDS PRIVATE HIRE DURHAM.
Children and Adult Services,Education,Transport,230008,Contract Hire,05-Oct-2015,3029770-781,"1,365.60",JDS PRIVATE HIRE DURHAM.
Children and Adult Services,Education,Transport,230009,Contract Hire,05-Oct-2015,3029770-783,"1,160.00",JDS PRIVATE HIRE DURHAM.
Children and Adult Services,Education,Transport,230008,Contract Hire,05-Oct-2015,3029770-791,"2,730.00",JDS PRIVATE HIRE DURHAM.
Neighbourhood Services,Technical Services,Stock,926900,Stock in hand-Inventory system,05-Oct-2015,3029772-7376,761.00,JG UNIFORMS.
Neighbourhood Services,Technical Services,Supplies and Services,336005,Advertising,05-Oct-2015,3029776-3134519,507.60,JOHNSTON PUBLISHING LTD.
Neighbourhood Services,Technical Services,Stock,926900,Stock in hand-Inventory system,05-Oct-2015,3029779-STI425836,"1,697.60",JT DOVE LTD.
Resources,I.C.T. Services,Supplies and Services,304303,Equipment and Materials,05-Oct-2015,3029780-37350,"3,895.00",KBR IT & NETWORKING SOLUTIONS.
Children and Adult Services,Education,Transport,230008,Contract Hire,05-Oct-2015,3029781-SEP15,"2,520.00",KD TAXIS.
Neighbourhood Services,Technical Services,Supplies and Services,304221,Equipment and Materials,05-Oct-2015,3029783-7211,"1,464.40",KEN THOMAS (SITE CLEARANCE LTD).
Neighbourhood Services,Direct Services,Supplies and Services,304221,Equipment and Materials,05-Oct-2015,3029783-7217,667.08,KEN THOMAS (SITE CLEARANCE LTD).
Neighbourhood Services,Culture & Sport,Supplies and Services,304259,Equipment and Materials,05-Oct-2015,3029784-I0615012,621.00,KEY INDUSTRIAL EQUIPMENT LTD.
Neighbourhood Services,Technical Services,Construction Work,908108,Capital - Surface Dressing,05-Oct-2015,3029785-15539,"184,434.93",KIELY BROS LTD.
Neighbourhood Services,Direct Services,Third Party Payments,430100,Rendered by Private Contractors,05-Oct-2015,3029786-15030003,"116,758.22",KIER NORTH TYNESIDE LTD.
Children and Adult Services,Head of Adults,Transport,230005,Contract Hire,05-Oct-2015,3029788-DW108/1,"1,320.00",KT TAXIS.
Neighbourhood Services,Technical Services,Third Party Payments,430100,Rendered by Private Contractors,05-Oct-2015,3029789-1873,"27,885.82",L & G PLANT HIRE & SALES LTD.
Neighbourhood Services,Technical Services,Third Party Payments,430100,Rendered by Private Contractors,05-Oct-2015,3029791-INV00822623,"1,564.50",LANES GROUP PLC.
Neighbourhood Services,Technical Services,Third Party Payments,430100,Rendered by Private Contractors,05-Oct-2015,3029791-INV00822624,"5,280.00",LANES GROUP PLC.
Neighbourhood Services,Technical Services,Third Party Payments,430100,Rendered by Private Contractors,05-Oct-2015,3029791-INV00822996,"5,280.00",LANES GROUP PLC.
Children and Adult Services,Childrens Services,Premises,125009,Rents,05-Oct-2015,3029792-D714,"9,806.00",LANGLEY MOOR B3 LTD.
Children and Adult Services,Childrens Services,Premises,125009,Rents,05-Oct-2015,3029792-D789,"2,312.50",LANGLEY MOOR B3 LTD.
Children and Adult Services,Childrens Services,Premises,125009,Rents,05-Oct-2015,3029792-D834,"3,765.50",LANGLEY MOOR B3 LTD.
Neighbourhood Services,Direct Services,Third Party Payments,430100,Rendered by Private Contractors,05-Oct-2015,3029793-15274,"11,225.00",LANGUARD LTD.
Resources,Financial Services,Supplies and Services,384199,Miscellaneous Expenses,05-Oct-2015,3029797-93492,"10,041.83",LIBERATA UK LTD T/A CAPACITYGRID.
Regeneration & Economic Development,Transport and Contracted Services,Third Party Payments,430100,Rendered by Private Contractors,05-Oct-2015,3029798-6128006371,830.00,LIBERTY PRINTERS (AR & RF REDDIN) LTD.
Children and Adult Services,Childrens Services,Supplies and Services,364305,Grants to Voluntary Organisations,05-Oct-2015,3029801-CAS-09-2015-106,"1,171.84",REDACTED - PAYMENT TO INDIVIDUAL
Resources,I.C.T. Services,Supplies and Services,342051,Computers and Communications,05-Oct-2015,3029802-IN172173,"2,850.00",LOGMEIN IRELAND LTD.
Neighbourhood Services,Culture & Sport,Construction Work,908105,Construction work,05-Oct-2015,3029803-24773,550.00,LUCION ENVIRONMENTAL LLP LTD.
Regeneration & Economic Development,Economic Development and Housing,Construction Work,908105,Construction work,05-Oct-2015,3029803-24777,550.00,LUCION ENVIRONMENTAL LLP LTD.
Children and Adult Services,Education,Transport,230008,Contract Hire,05-Oct-2015,3029804-31,920.00,LUMLEY TAXIS.
Children and Adult Services,Education,Transport,230008,Contract Hire,05-Oct-2015,3029806-88,"2,584.50",M BUTCHER T/A KIDDI CABS.
Children and Adult Services,Education,Transport,230008,Contract Hire,05-Oct-2015,3029808-12,"1,470.00",MALCOLM CARR T/A CARLY CABS.
Children and Adult Services,Education,Transport,230008,Contract Hire,05-Oct-2015,3029810-091501,"3,334.50",MARK & JOHN CHISHOLM T/A (CHEVRON).
Dedicated Schools Grant,Dedicated Schools Grant,Transport,230010,Contract Hire,05-Oct-2015,3029810-091502,"1,246.00",MARK & JOHN CHISHOLM T/A (CHEVRON).
Children and Adult Services,Education,Transport,230008,Contract Hire,05-Oct-2015,3029810-091503,"1,540.00",MARK & JOHN CHISHOLM T/A (CHEVRON).
Dedicated Schools Grant,Dedicated Schools Grant,Transport,230010,Contract Hire,05-Oct-2015,3029810-091504,"1,368.00",MARK & JOHN CHISHOLM T/A (CHEVRON).
Children and Adult Services,Education,Transport,230008,Contract Hire,05-Oct-2015,3029810-091505,"1,218.00",MARK & JOHN CHISHOLM T/A (CHEVRON).
Children and Adult Services,Education,Transport,230008,Contract Hire,05-Oct-2015,3029810-091506,"1,052.00",MARK & JOHN CHISHOLM T/A (CHEVRON).
Dedicated Schools Grant,Dedicated Schools Grant,Transport,230010,Contract Hire,05-Oct-2015,3029810-091507,"1,332.00",MARK & JOHN CHISHOLM T/A (CHEVRON).
Dedicated Schools Grant,Dedicated Schools Grant,Transport,230010,Contract Hire,05-Oct-2015,3029810-091508,"1,680.00",MARK & JOHN CHISHOLM T/A (CHEVRON).
Dedicated Schools Grant,Dedicated Schools Grant,Transport,230010,Contract Hire,05-Oct-2015,3029810-091509,"1,008.00",MARK & JOHN CHISHOLM T/A (CHEVRON).
Children and Adult Services,Education,Transport,230008,Contract Hire,05-Oct-2015,3029813-14,"1,650.00",MAURICE & SONS.
Children and Adult Services,Education,Transport,230008,Contract Hire,05-Oct-2015,3029814-INV-86,"1,824.00",MICHAEL COBB (T/A HAIL TAXIS).
Children and Adult Services,Education,Transport,230008,Contract Hire,05-Oct-2015,3029817-KDC010915,"2,265.50",MJ TIMNEY T/A KDC & C&M TAXIS.
Children and Adult Services,Education,Transport,230008,Contract Hire,05-Oct-2015,3029818-583,"2,520.00",MOLLYS TAXIS.
Children and Adult Services,Education,Transport,230008,Contract Hire,05-Oct-2015,3029818-584,"2,332.05",MOLLYS TAXIS.
Children and Adult Services,Education,Transport,230007,Contract Hire,05-Oct-2015,3029822-02-1200,"1,180.00",MR KJB BOWERY T/A KJB TAXIS.
Children and Adult Services,Education,Transport,230008,Contract Hire,05-Oct-2015,3029823-AA324,"3,112.61",MR T GUNN.
Children and Adult Services,Childrens Services,Supplies and Services,384606,Miscellaneous Expenses,05-Oct-2015,3029825-INV0099037,"1,435.00",NCVO.
Regeneration & Economic Development,Spatial Policy Planning Assets & Environment,Supplies and Services,336005,Advertising,05-Oct-2015,3029831-12549126,781.29,NEWSQUEST (YORKSHIRE & NORTH EAST) LTD.
Children and Adult Services,Education,Supplies and Services,304259,Equipment and Materials,05-Oct-2015,3029834-INV0910750,899.00,NORMANS (BURTON ON TRENT) LTD.
Regeneration & Economic Development,Economic Development and Housing,Supplies and Services,377015,County Durham Development,05-Oct-2015,3029836-627248,"2,000.00",NORTH EAST CHAMBER OF COMMERCE (TRAINING) LTD.
Children and Adult Services,Head of Adults,Third Party Payments,478151,Purchase of Care,05-Oct-2015,3029839-22521,"2,065.04",OAKLEA TRUST.
Children and Adult Services,Head of Adults,Third Party Payments,478151,Purchase of Care,05-Oct-2015,3029839-22594,"2,530.10",OAKLEA TRUST.
Neighbourhood Services,Technical Services,Stock,926900,Stock in hand-Inventory system,05-Oct-2015,3029843-XL152553,"2,435.40",PARK ELECTRICAL DISTRIBUTORS LTD.
Children and Adult Services,Education,Income,740298,Other Income,05-Oct-2015,3029844-CAS-10-2015-008,"2,043.16",PARK VIEW ACADEMY.
Dedicated Schools Grant,Dedicated Schools Grant,Supplies and Services,304259,Equipment and Materials,05-Oct-2015,3029847-2591310578,"3,288.00",PHONAK UK LTD.
Children and Adult Services,Education,Third Party Payments,440999,Other Third Party Payments,05-Oct-2015,3029851-3-2015,"12,517.20",PRE SCHOOL LEARNING ALLIANCE.
Dedicated Schools Grant,Dedicated Schools Grant,Third Party Payments,440080,Other Third Party Payments,05-Oct-2015,3029854-1571,"12,532.48",QUEEN ELIZABETH 6TH FORM COLLEGE.
Neighbourhood Services,Direct Services,Supplies and Services,304221,Equipment and Materials,05-Oct-2015,3029856-RSIN0152849,"2,015.52",RIGBY TAYLOR LTD.
Resources,Legal & Democratic Services,Premises,125009,Rents,05-Oct-2015,3029858-7345,537.28,RIVERGREEN DEVELOPMENTS PLC.
Resources,Legal & Democratic Services,Supplies and Services,338025,Services,05-Oct-2015,3029859-0000021102,"1,005.00",ROAR FORENSICS LTD.
Regeneration & Economic Development,Economic Development and Housing,Cap Exp on Grants & Other Financial Assistance (REFCUS),918401,Capital grants,05-Oct-2015,3029860-RED-09-2015-199,813.00,RONDEN PROPERTIES LTD.
Neighbourhood Services,Direct Services,Supplies and Services,338078,Services,05-Oct-2015,3029865-4603,"2,156.00",SAFEGUARD SECURITY (NE) LTD.
Neighbourhood Services,Direct Services,Supplies and Services,338078,Services,05-Oct-2015,3029865-4723,"2,009.00",SAFEGUARD SECURITY (NE) LTD.
Children and Adult Services,Education,Third Party Payments,440999,Other Third Party Payments,05-Oct-2015,3029872-201031,"24,773.84",SKILLSHARE NORTH EAST LTD.
Children and Adult Services,Childrens Services,Transport,240045,Car Allowances,05-Oct-2015,3029873-4486,"27,124.67",SOCIAL RESOURCE CENTRE LTD.
Assistant Chief Executive,Partnerships & Community Engagement Div.,Supplies and Services,384085,Miscellaneous Expenses,05-Oct-2015,3029875-DEAK05,"1,000.00",SOUTH STANLEY PARTNERSHIP.
Neighbourhood Services,Direct Services,Third Party Payments,430100,Rendered by Private Contractors,05-Oct-2015,3029877-4954,"8,947.84",ST ASTIER LTD.
Children and Adult Services,Education,Supplies and Services,338094,Services,05-Oct-2015,3029879-0000000553,500.00,ST JOHN`S SCHOOL & SIXTH FORM COLLEGE A CATHOLIC ACADEMY.
Children and Adult Services,Education,Supplies and Services,338027,Services,05-Oct-2015,3029879-0000000587,"7,200.00",ST JOHN`S SCHOOL & SIXTH FORM COLLEGE A CATHOLIC ACADEMY.
Children and Adult Services,Education,Supplies and Services,338027,Services,05-Oct-2015,3029879-0000000692,"1,200.00",ST JOHN`S SCHOOL & SIXTH FORM COLLEGE A CATHOLIC ACADEMY.
Children and Adult Services,Head of Adults,Transport,230005,Contract Hire,05-Oct-2015,3029881-001SEPT,622.00,STEPHEN REED T/A STEVE`S TAXIS.
Neighbourhood Services,Technical Services,Supplies and Services,304221,Equipment and Materials,05-Oct-2015,3029883-075183,"1,170.28",STONEGRAVE AGGREGATES LTD.
Children and Adult Services,Planning & Service Strategy,Supplies and Services,332047,Printing Stationery and Gen Off Exps,05-Oct-2015,3029885-7691780,875.05,SUPPLIES TEAM LTD (NOW KNOWN AS BANNER).
Neighbourhood Services,Technical Services,Stock,926900,Stock in hand-Inventory system,05-Oct-2015,3029886-IV25020168/2,"1,274.40",SW DIRECTIONAL DRILLING LTD T/A TEESSIDE INDUSTRIAL SUPPLIES.
Neighbourhood Services,Technical Services,Stock,926900,Stock in hand-Inventory system,05-Oct-2015,3029886-IV25020176/2,966.90,SW DIRECTIONAL DRILLING LTD T/A TEESSIDE INDUSTRIAL SUPPLIES.
Neighbourhood Services,Technical Services,Stock,926900,Stock in hand-Inventory system,05-Oct-2015,3029886-IV25020177/2,604.40,SW DIRECTIONAL DRILLING LTD T/A TEESSIDE INDUSTRIAL SUPPLIES.
Children and Adult Services,Head of Adults,Supplies and Services,308011,Furniture,05-Oct-2015,3029888-134792,749.99,SWITCH ON.
Children and Adult Services,Head of Adults,Supplies and Services,308011,Furniture,05-Oct-2015,3029888-134793,539.99,SWITCH ON.
Neighbourhood Services,Direct Services,Supplies and Services,304221,Equipment and Materials,05-Oct-2015,3029889-1720812,671.77,T CROSSLING & CO LTD.
Neighbourhood Services,Direct Services,Supplies and Services,304221,Equipment and Materials,05-Oct-2015,3029889-1721460,"11,382.00",T CROSSLING & CO LTD.
Neighbourhood Services,Technical Services,Third Party Payments,430100,Rendered by Private Contractors,05-Oct-2015,3029891-02864A,"19,221.40",TARMAC TRADING LTD.
Children and Adult Services,Central Charges (CYPS),Debtors,930062,Debtor-school meals suspense,05-Oct-2015,3029892-SI-TSD-1000703,"180,648.15",TAYLOR SHAW LTD.
Children and Adult Services,Childrens Services,Third Party Payments,486044,Service Level Agreements,05-Oct-2015,3029894-4810005426,"3,560.67",TEES ESK & WEAR VALLEYS NHS FOUNDATION TRUST.
Children and Adult Services,Childrens Services,Third Party Payments,486044,Service Level Agreements,05-Oct-2015,3029894-4810005604,"3,560.67",TEES ESK & WEAR VALLEYS NHS FOUNDATION TRUST.
Children and Adult Services,Childrens Services,Third Party Payments,486044,Service Level Agreements,05-Oct-2015,3029894-4810005766,"3,560.67",TEES ESK & WEAR VALLEYS NHS FOUNDATION TRUST.
Children and Adult Services,Education,Income,740298,Other Income,05-Oct-2015,3029895-CAS-10-2015-013,"10,150.17",TEESDALE EDUCATION TRUST.
Children and Adult Services,Education,Employees,040001,Recruitment Instruction and Training,05-Oct-2015,3029897-TARINV/15387684,710.10,TES GLOBAL LTD.
Children and Adult Services,Education,Employees,040001,Recruitment Instruction and Training,05-Oct-2015,3029897-TARINV/15387832,710.10,TES GLOBAL LTD.
Children and Adult Services,Education,Employees,040001,Recruitment Instruction and Training,05-Oct-2015,3029897-TARINV/15387886,"4,302.00",TES GLOBAL LTD.
Assistant Chief Executive,Partnerships & Community Engagement Div.,Supplies and Services,384085,Miscellaneous Expenses,05-Oct-2015,3029898-MASJ19-15,500.00,THE CLARKE LISTER BRAIN HAEMORRHAGE FOUNDATION (BHF).
Neighbourhood Services,Technical Services,Stock,926900,Stock in hand-Inventory system,05-Oct-2015,3029902-N/IN154921,569.84,THOMAS OWEN & SONS (NEWCASTLE) LTD.
Neighbourhood Services,Technical Services,Stock,926900,Stock in hand-Inventory system,05-Oct-2015,3029902-N/IN154922,"2,113.75",THOMAS OWEN & SONS (NEWCASTLE) LTD.
Neighbourhood Services,Technical Services,Stock,926900,Stock in hand-Inventory system,05-Oct-2015,3029902-N/IN154923,630.00,THOMAS OWEN & SONS (NEWCASTLE) LTD.
Neighbourhood Services,Technical Services,Supplies and Services,342215,Computers and Communications,05-Oct-2015,3029903-29687,"14,425.00",TRACKYOU LTD.
Children and Adult Services,Education,Supplies and Services,338027,Services,05-Oct-2015,3029904-H0830/H547,700.00,UNICEF UK.
Regeneration & Economic Development,Spatial Policy Planning Assets & Environment,Premises,125009,Rents,05-Oct-2015,3029905-RN19913,"2,000.00",UPPER TEESDALE ESTATE.
Neighbourhood Services,Projects and Business services,Third Party Payments,430100,Rendered by Private Contractors,05-Oct-2015,3029906-13863,"1,660.00",UR PROMOTIONS LTD.
Dedicated Schools Grant,Dedicated Schools Grant,Transport,230010,Contract Hire,05-Oct-2015,3029910-487836,940.00,WENDYS` TAXIS.
Resources,Corporate Finance,Employees,050005,Pensions Increases Act payments,05-Oct-2015,3029912-89000027694,"10,632.76",WEST YORKSHIRE PENSION FUND.
Children and Adult Services,Education,Transport,230006,Contract Hire,05-Oct-2015,3029913-30915,750.00,WIL TRAVEL.
Neighbourhood Services,Culture & Sport,Supplies and Services,304337,Equipment and Materials,05-Oct-2015,3029917-12/9/15,750.00,WILLOW RESEARCH.
Neighbourhood Services,Technical Services,Stock,926900,Stock in hand-Inventory system,05-Oct-2015,3029920-25809439,823.16,WOLSELEY UK LTD.
Resources,I.C.T. Services,Vehicles Equipment Furniture and Fittings,912701,Computer equipment,05-Oct-2015,3029921-Y929266,"1,265.00",XMA LTD.
Children and Adult Services,Childrens Services,Third Party Payments,440015,Other Third Party Payments,06-Oct-2015,3030258-1056743,"1,386.64",REDACTED - PAYMENT TO INDIVIDUAL
Children and Adult Services,Childrens Services,Third Party Payments,440016,Other Third Party Payments,06-Oct-2015,3030400-1056691,"1,410.06",REDACTED - PAYMENT TO INDIVIDUAL
Children and Adult Services,Childrens Services,Third Party Payments,440016,Other Third Party Payments,06-Oct-2015,3030400-1056692,"1,278.00",REDACTED - PAYMENT TO INDIVIDUAL
Children and Adult Services,Childrens Services,Third Party Payments,440016,Other Third Party Payments,06-Oct-2015,3030421-1056657,901.08,REDACTED - PAYMENT TO INDIVIDUAL
Children and Adult Services,Childrens Services,Third Party Payments,440015,Other Third Party Payments,06-Oct-2015,3030442-CAS-10-2015-016,540.00,REDACTED - PAYMENT TO INDIVIDUAL
Children and Adult Services,Education,Transport,230008,Contract Hire,06-Oct-2015,3030541-91502,"1,809.22",24/7 TAXI SERVICES LTD.
Children and Adult Services,Education,Transport,230008,Contract Hire,06-Oct-2015,3030541-91503,"1,307.40",24/7 TAXI SERVICES LTD.
Children and Adult Services,Education,Transport,230008,Contract Hire,06-Oct-2015,3030541-91504,995.06,24/7 TAXI SERVICES LTD.
Children and Adult Services,Education,Transport,230008,Contract Hire,06-Oct-2015,3030541-91508,"2,107.35",24/7 TAXI SERVICES LTD.
Neighbourhood Services,Technical Services,Supplies and Services,304221,Equipment and Materials,06-Oct-2015,3030561-22046685,964.33,AGGREGATE INDUSTRIES UK LTD.
Neighbourhood Services,Direct Services,Supplies and Services,304221,Equipment and Materials,06-Oct-2015,3030561-22046686,522.34,AGGREGATE INDUSTRIES UK LTD.
Neighbourhood Services,Technical Services,Supplies and Services,304221,Equipment and Materials,06-Oct-2015,3030561-22046687,706.00,AGGREGATE INDUSTRIES UK LTD.
Neighbourhood Services,Technical Services,Supplies and Services,304221,Equipment and Materials,06-Oct-2015,3030561-22046688,"2,828.35",AGGREGATE INDUSTRIES UK LTD.
Children and Adult Services,Education,Transport,230007,Contract Hire,06-Oct-2015,3030563-SAS0915ESH,945.00,AIRPORT CARS DURHAM
Children and Adult Services,Education,Transport,230007,Contract Hire,06-Oct-2015,3030563-SAS0915ESH/2,609.00,AIRPORT CARS DURHAM
Children and Adult Services,Head of Adults,Transport,230005,Contract Hire,06-Oct-2015,3030571-0015,545.00,ANDREW SIMPSON T/A ANDY`S CABS.
Children and Adult Services,Planning & Service Strategy,Supplies and Services,338089,Services,06-Oct-2015,3030579-1015,850.00,ARMSTRONG WILSON ASSOCIATES LTD.
Resources,I.C.T. Services,Supplies and Services,344033,Telephones,06-Oct-2015,3030585-11532397,797.65,AZZURRI COMMUNICATIONS LTD.
Children and Adult Services,Education,Transport,230008,Contract Hire,06-Oct-2015,3030594-10SEPTEMBER15,"1,608.20",BEELINE PRIVATE HIRE.
Children and Adult Services,Education,Transport,230008,Contract Hire,06-Oct-2015,3030594-9SEPTEMBER15,"1,406.60",BEELINE PRIVATE HIRE.
Neighbourhood Services,Direct Services,Transport,210057,Repair and Maintenance of Vehicles,06-Oct-2015,3030595-25160860,"1,375.51",BELL TRUCK SALES LTD.
Neighbourhood Services,Direct Services,Transport,210057,Repair and Maintenance of Vehicles,06-Oct-2015,3030595-25161136,617.21,BELL TRUCK SALES LTD.
Children and Adult Services,Head of Adults,Premises,125009,Rents,06-Oct-2015,3030611-15-166,"1,921.32",BULLION COMMUNITY RESOURCE CENTRE.
Neighbourhood Services,Direct Services,Transport,210057,Repair and Maintenance of Vehicles,06-Oct-2015,3030614-13261,744.50,CALDER TRAILER BOARDS.
Neighbourhood Services,Direct Services,Transport,210057,Repair and Maintenance of Vehicles,06-Oct-2015,3030621-463356,"2,960.00",CARRS BILLINGTON AGRICULTURE.
Children and Adult Services,Childrens Services,Employees,080025,Agency Staff,06-Oct-2015,3030630-2309617,510.00,CELSIAN.
Children and Adult Services,Childrens Services,Employees,080025,Agency Staff,06-Oct-2015,3030630-2313537,900.00,CELSIAN.
Children and Adult Services,Public Health,Third Party Payments,460802,Contract Payments,06-Oct-2015,3030642-7910013275,"8,972.17",CITY HOSPITALS SUNDERLAND NHS FOUNDATION TRUST.
Children and Adult Services,Public Health,Third Party Payments,460802,Contract Payments,06-Oct-2015,3030642-7910013280,"3,644.49",CITY HOSPITALS SUNDERLAND NHS FOUNDATION TRUST.
Children and Adult Services,Education,Transport,230007,Contract Hire,06-Oct-2015,3030643-45048,"1,484.07",CJ GRIERSON T/A GRIERSONS COACHES.
Children and Adult Services,Planning & Service Strategy,Employees,040149,Recruitment Instruction and Training,06-Oct-2015,3030674-4320,"2,266.00",DILYS JONES ASSOCIATES LTD.
Children and Adult Services,Childrens Services,Supplies and Services,338044,Services,06-Oct-2015,3030678-SC/CB181,712.04,DR SUSAN COOPER.
Children and Adult Services,Commissioning inc Supporting People,Third Party Payments,479111,Purchase of Care,06-Oct-2015,3030679-251,"198,118.55",DURHAM COUNTY CARERS SUPPORT.
Children and Adult Services,Commissioning inc Supporting People,Third Party Payments,479101,Purchase of Care,06-Oct-2015,3030679-252,"54,930.50",DURHAM COUNTY CARERS SUPPORT.
Children and Adult Services,Commissioning inc Supporting People,Third Party Payments,479101,Purchase of Care,06-Oct-2015,3030679-253,"20,519.50",DURHAM COUNTY CARERS SUPPORT.
Children and Adult Services,Commissioning inc Supporting People,Third Party Payments,479111,Purchase of Care,06-Oct-2015,3030679-254,"11,052.25",DURHAM COUNTY CARERS SUPPORT.
Children and Adult Services,Education,Transport,230007,Contract Hire,06-Oct-2015,3030697-0666,949.83,EN ROUTE TRAVEL.
Children and Adult Services,Education,Transport,230008,Contract Hire,06-Oct-2015,3030697-0667,"1,768.36",EN ROUTE TRAVEL.
Children and Adult Services,Head of Adults,Premises,120021,Energy Costs,06-Oct-2015,3030698-H11E3FD811,"1,293.42",EON UK PLC.
Children and Adult Services,Education,Transport,230008,Contract Hire,06-Oct-2015,3030707-E046-012,"2,464.00",FERRYHILL VILLAGE TRAVEL.
Children and Adult Services,Education,Transport,230008,Contract Hire,06-Oct-2015,3030707-W131-012,"1,030.00",FERRYHILL VILLAGE TRAVEL.
Neighbourhood Services,Direct Services,Transport,210057,Repair and Maintenance of Vehicles,06-Oct-2015,3030712-IN123928,626.50,FM STEELSTOCK LTD.
Children and Adult Services,Education,Transport,230008,Contract Hire,06-Oct-2015,3030720-005,"1,300.00",FRONT STREET TAXIS.
Neighbourhood Services,Direct Services,Stock,926004,Stock,06-Oct-2015,3030722-216344886,668.30,FUCHS LUBRICANTS (UK) PLC.
Neighbourhood Services,Direct Services,Transport,210057,Repair and Maintenance of Vehicles,06-Oct-2015,3030722-216349804,580.15,FUCHS LUBRICANTS (UK) PLC.
Children and Adult Services,Education,Transport,230007,Contract Hire,06-Oct-2015,3030726-17694,"2,806.40",GARNETTS LTD (COACHES).
Children and Adult Services,Education,Transport,230007,Contract Hire,06-Oct-2015,3030726-17695,"2,457.00",GARNETTS LTD (COACHES).
Children and Adult Services,Education,Transport,230007,Contract Hire,06-Oct-2015,3030726-17696,"8,533.60",GARNETTS LTD (COACHES).
Children and Adult Services,Education,Transport,230007,Contract Hire,06-Oct-2015,3030726-17697,"18,846.45",GARNETTS LTD (COACHES).
Children and Adult Services,Education,Transport,230007,Contract Hire,06-Oct-2015,3030726-17698,"2,734.83",GARNETTS LTD (COACHES).
Children and Adult Services,Education,Transport,230007,Contract Hire,06-Oct-2015,3030726-17749,"12,558.63",GARNETTS LTD (COACHES).
Children and Adult Services,Education,Transfer Payments,510028,School Children,06-Oct-2015,3030733-CAS-10-2015-011,"4,000.00",GIANT STEPS LTD.
Children and Adult Services,Education,Transport,230007,Contract Hire,06-Oct-2015,3030735-003,600.00,GLEN`S TAXI.
Children and Adult Services,Head of Adults,Transport,235073,Public Transport,06-Oct-2015,3030739-49056,502.70,GO NORTH EAST LTD.
Children and Adult Services,Education,Transport,230008,Contract Hire,06-Oct-2015,3030756-SEPT-A053,"1,300.00",HIPPY`S TAXI.
Neighbourhood Services,Direct Services,Third Party Payments,430100,Rendered by Private Contractors,06-Oct-2015,3030757-60529,520.00,HOGARTH COACHWORKS LTD.
Neighbourhood Services,Direct Services,Third Party Payments,430100,Rendered by Private Contractors,06-Oct-2015,3030757-60531,520.00,HOGARTH COACHWORKS LTD.
Neighbourhood Services,Direct Services,Third Party Payments,430100,Rendered by Private Contractors,06-Oct-2015,3030757-60588,520.00,HOGARTH COACHWORKS LTD.
Neighbourhood Services,Direct Services,Third Party Payments,430100,Rendered by Private Contractors,06-Oct-2015,3030757-60666,514.70,HOGARTH COACHWORKS LTD.
Children and Adult Services,Commissioning inc Supporting People,Third Party Payments,479111,Purchase of Care,06-Oct-2015,3030758-CES004,"3,333.33",HOMECARE SUPPORT LTD T/A THE HUMAN SUPPORT GROUP.
Children and Adult Services,Commissioning inc Supporting People,Third Party Payments,479111,Purchase of Care,06-Oct-2015,3030758-CES005,"3,333.33",HOMECARE SUPPORT LTD T/A THE HUMAN SUPPORT GROUP.
Children and Adult Services,Central/Other,Debtors,930133,Debtor IC+ Out of Hours - Home Care,06-Oct-2015,3030758-D0017,"8,333.33",HOMECARE SUPPORT LTD T/A THE HUMAN SUPPORT GROUP.
Assistant Chief Executive,Partnerships & Community Engagement Div.,Cap Exp on Grants & Other Financial Assistance (REFCUS),918401,Capital grants,06-Oct-2015,3030760-INS4&5,"15,960.00",HORDEN YOUTH & COMMUNITY ASSOCIATION.
Neighbourhood Services,Direct Services,Supplies and Services,304221,Equipment and Materials,06-Oct-2015,3030772-11564,550.00,JACK COUPE & SONS LTD T/A COUPE LINE.
Children and Adult Services,Education,Transport,230008,Contract Hire,06-Oct-2015,3030777-780,"1,743.80",JDS PRIVATE HIRE DURHAM.
Children and Adult Services,Education,Transport,230008,Contract Hire,06-Oct-2015,3030777-782,"1,608.20",JDS PRIVATE HIRE DURHAM.
Neighbourhood Services,Direct Services,Third Party Payments,430100,Rendered by Private Contractors,06-Oct-2015,3030785-B05718,"2,316.85",JOHN HART COMMERCIALS LTD.
Neighbourhood Services,Culture & Sport,Premises,150015,Apportioned Exps of Operational Blds,06-Oct-2015,3030786-1557642,"1,155.00",JOHN NIXON LTD.
Neighbourhood Services,Technical Services,Supplies and Services,304358,Equipment and Materials,06-Oct-2015,3030787-23890,925.00,JOHN R BUTTERFIELD LTD.
Neighbourhood Services,Technical Services,Supplies and Services,304358,Equipment and Materials,06-Oct-2015,3030787-23914,889.00,JOHN R BUTTERFIELD LTD.
Neighbourhood Services,Technical Services,Supplies and Services,304358,Equipment and Materials,06-Oct-2015,3030787-23915,912.00,JOHN R BUTTERFIELD LTD.
Neighbourhood Services,Technical Services,Supplies and Services,304358,Equipment and Materials,06-Oct-2015,3030787-23938,925.00,JOHN R BUTTERFIELD LTD.
Neighbourhood Services,Technical Services,Supplies and Services,304358,Equipment and Materials,06-Oct-2015,3030787-23939,912.00,JOHN R BUTTERFIELD LTD.
Neighbourhood Services,Technical Services,Supplies and Services,304358,Equipment and Materials,06-Oct-2015,3030787-23940,800.00,JOHN R BUTTERFIELD LTD.
Neighbourhood Services,Technical Services,Supplies and Services,304358,Equipment and Materials,06-Oct-2015,3030787-23941,"1,041.25",JOHN R BUTTERFIELD LTD.
Neighbourhood Services,Technical Services,Supplies and Services,304358,Equipment and Materials,06-Oct-2015,3030787-23943,"1,135.80",JOHN R BUTTERFIELD LTD.
Neighbourhood Services,Technical Services,Supplies and Services,304358,Equipment and Materials,06-Oct-2015,3030787-23944,703.00,JOHN R BUTTERFIELD LTD.
Neighbourhood Services,Technical Services,Supplies and Services,304358,Equipment and Materials,06-Oct-2015,3030787-23945,926.00,JOHN R BUTTERFIELD LTD.
Neighbourhood Services,Technical Services,Supplies and Services,304358,Equipment and Materials,06-Oct-2015,3030787-23967,750.00,JOHN R BUTTERFIELD LTD.
Neighbourhood Services,Technical Services,Supplies and Services,304358,Equipment and Materials,06-Oct-2015,3030787-23973,725.40,JOHN R BUTTERFIELD LTD.
Neighbourhood Services,Technical Services,Supplies and Services,304358,Equipment and Materials,06-Oct-2015,3030787-23992,"1,003.50",JOHN R BUTTERFIELD LTD.
Neighbourhood Services,Technical Services,Supplies and Services,304358,Equipment and Materials,06-Oct-2015,3030787-23993,560.70,JOHN R BUTTERFIELD LTD.
Neighbourhood Services,Technical Services,Supplies and Services,304358,Equipment and Materials,06-Oct-2015,3030787-23994,560.50,JOHN R BUTTERFIELD LTD.
Neighbourhood Services,Technical Services,Supplies and Services,304358,Equipment and Materials,06-Oct-2015,3030787-24015,765.00,JOHN R BUTTERFIELD LTD.
Neighbourhood Services,Technical Services,Supplies and Services,304358,Equipment and Materials,06-Oct-2015,3030787-24016,560.00,JOHN R BUTTERFIELD LTD.
Neighbourhood Services,Technical Services,Supplies and Services,304358,Equipment and Materials,06-Oct-2015,3030787-24018,718.20,JOHN R BUTTERFIELD LTD.
Neighbourhood Services,Technical Services,Supplies and Services,304358,Equipment and Materials,06-Oct-2015,3030787-24019,688.20,JOHN R BUTTERFIELD LTD.
Neighbourhood Services,Technical Services,Supplies and Services,304358,Equipment and Materials,06-Oct-2015,3030787-24020,703.00,JOHN R BUTTERFIELD LTD.
Neighbourhood Services,Technical Services,Supplies and Services,304358,Equipment and Materials,06-Oct-2015,3030787-24042,"1,096.00",JOHN R BUTTERFIELD LTD.
Neighbourhood Services,Technical Services,Supplies and Services,304358,Equipment and Materials,06-Oct-2015,3030787-24047,703.00,JOHN R BUTTERFIELD LTD.
Neighbourhood Services,Technical Services,Supplies and Services,304358,Equipment and Materials,06-Oct-2015,3030787-24048,740.40,JOHN R BUTTERFIELD LTD.
Neighbourhood Services,Technical Services,Supplies and Services,304358,Equipment and Materials,06-Oct-2015,3030787-24086,703.00,JOHN R BUTTERFIELD LTD.
Neighbourhood Services,Technical Services,Supplies and Services,304358,Equipment and Materials,06-Oct-2015,3030787-24089,755.70,JOHN R BUTTERFIELD LTD.
Children and Adult Services,Education,Transport,230008,Contract Hire,06-Oct-2015,3030790-81,"2,441.60",JOHNS TAXIS (CHESTER LE STREET).
Children and Adult Services,Education,Transport,230008,Contract Hire,06-Oct-2015,3030793-M03612,980.00,JOVIAL PRIVATE HIRE.
Children and Adult Services,Education,Transport,230008,Contract Hire,06-Oct-2015,3030793-N03012,"1,660.00",JOVIAL PRIVATE HIRE.
Regeneration & Economic Development,Economic Development and Housing,Cap Exp on Grants & Other Financial Assistance (REFCUS),918501,Exp assets not owned by authority,06-Oct-2015,3030796-RED-09-2015-166,"9,059.40",K HARRISON (BUILDER) NE LTD.
Children and Adult Services,Education,Transport,230008,Contract Hire,06-Oct-2015,3030800-010915,"1,090.26",KEVIN EDMUNDSON.
Neighbourhood Services,Technical Services,Supplies and Services,304358,Equipment and Materials,06-Oct-2015,3030801-1171,993.00,KEVIN SNOWDON GROUNDWORKS LTD.
Neighbourhood Services,Technical Services,Supplies and Services,304358,Equipment and Materials,06-Oct-2015,3030801-1174,"1,131.00",KEVIN SNOWDON GROUNDWORKS LTD.
Neighbourhood Services,Technical Services,Supplies and Services,304358,Equipment and Materials,06-Oct-2015,3030801-1175,536.50,KEVIN SNOWDON GROUNDWORKS LTD.
Neighbourhood Services,Technical Services,Supplies and Services,304358,Equipment and Materials,06-Oct-2015,3030801-1179,547.75,KEVIN SNOWDON GROUNDWORKS LTD.
Neighbourhood Services,Technical Services,Supplies and Services,304358,Equipment and Materials,06-Oct-2015,3030801-1180,"1,028.50",KEVIN SNOWDON GROUNDWORKS LTD.
Neighbourhood Services,Technical Services,Supplies and Services,304358,Equipment and Materials,06-Oct-2015,3030801-1182,565.50,KEVIN SNOWDON GROUNDWORKS LTD.
Neighbourhood Services,Technical Services,Supplies and Services,304358,Equipment and Materials,06-Oct-2015,3030825-35,"2,481.38",M & E & MR WALTON.
Children and Adult Services,Education,Transport,230008,Contract Hire,06-Oct-2015,3030828-27,"1,500.00",M BEHAN T/A M & M`S TAXIS.
Children and Adult Services,Education,Transport,230007,Contract Hire,06-Oct-2015,3030828-28,"1,200.00",M BEHAN T/A M & M`S TAXIS.
Children and Adult Services,Head of Adults,Supplies and Services,338365,Services,06-Oct-2015,3030833-0000157286,"1,060.21",MANGAR INTERNATIONAL LTD.
Children and Adult Services,Childrens Services,Supplies and Services,384199,Miscellaneous Expenses,06-Oct-2015,3030836-0010,840.00,MARGOT SKELTON T/A JITTABUGS DURHAM.
Children and Adult Services,Education,Transport,230008,Contract Hire,06-Oct-2015,3030839-380915,"1,900.00",MARK MUSGROVE T/A MARKS TAXIS.
Children and Adult Services,Education,Transport,230008,Contract Hire,06-Oct-2015,3030839-480915,966.00,MARK MUSGROVE T/A MARKS TAXIS.
Regeneration & Economic Development,Spatial Policy Planning Assets & Environment,Third Party Payments,440999,Other Third Party Payments,06-Oct-2015,3030847-3862,"3,700.00",MICROCOPY SYSTEMS LTD.
Children and Adult Services,Education,Transport,230008,Contract Hire,06-Oct-2015,3030852-582,"1,680.00",MOLLYS TAXIS.
Children and Adult Services,Education,Transport,230008,Contract Hire,06-Oct-2015,3030854-2014-129,"1,990.12",MR D KEMP T/A ACE EXECUTIVE.
Children and Adult Services,Education,Transport,230008,Contract Hire,06-Oct-2015,3030857-66182,"1,896.40",MR GN ROBBINS T/A GNR MINIBUS HIRE.
Children and Adult Services,Education,Transport,230008,Contract Hire,06-Oct-2015,3030857-66183,"1,690.70",MR GN ROBBINS T/A GNR MINIBUS HIRE.
Regeneration & Economic Development,Economic Development and Housing,Cap Exp on Grants & Other Financial Assistance (REFCUS),918401,Capital grants,06-Oct-2015,3030858-RED-10-2015-032,"41,000.00",REDACTED - PAYMENT TO INDIVIDUAL
Children and Adult Services,Education,Transport,230008,Contract Hire,06-Oct-2015,3030865-A057/09/15,"1,218.00",MR M ALLISON T/A MACBETH TAXIS/COACHES.
Children and Adult Services,Education,Transport,230008,Contract Hire,06-Oct-2015,3030865-N051/09/15,"1,600.00",MR M ALLISON T/A MACBETH TAXIS/COACHES.
Children and Adult Services,Education,Transport,230008,Contract Hire,06-Oct-2015,3030865-N053/09/15,"1,720.00",MR M ALLISON T/A MACBETH TAXIS/COACHES.
Children and Adult Services,Education,Transport,230008,Contract Hire,06-Oct-2015,3030873-179,"1,840.00",N FORBES.
Assistant Chief Executive,Policy & Communications Division,Supplies and Services,312010,Newspapers Books and Periodicals,06-Oct-2015,3030877-286791/0,"18,424.95",NATIONAL LEAFLET CO LTD.
Children and Adult Services,Education,Transport,230008,Contract Hire,06-Oct-2015,3030881-1-30/9/15,"1,100.00",NEIL PASSMOOR T/A NEIL`S TAXI.
Neighbourhood Services,Technical Services,Supplies and Services,338027,Services,06-Oct-2015,3030883-99,"63,519.65",NEPRO LTD.
Neighbourhood Services,Direct Services,Supplies and Services,384194,Miscellaneous Expenses,06-Oct-2015,3030887-42658,"2,375.00",NIRAMAX GROUP LTD.
Neighbourhood Services,Technical Services,Supplies and Services,304221,Equipment and Materials,06-Oct-2015,3030893-DI20223386,872.70,NORTHERN POWERGRID (NORTHEAST) LTD.
Neighbourhood Services,Direct Services,Third Party Payments,430100,Rendered by Private Contractors,06-Oct-2015,3030895-15090024,"2,940.40",NOVUS PROPERTY SOLUTIONS LTD.
Children and Adult Services,Education,Transport,230008,Contract Hire,06-Oct-2015,3030909-DCC37,"1,500.00",PAUL`S TAXIS..
Dedicated Schools Grant,Dedicated Schools Grant,Third Party Payments,425005,Rendered by Voluntary Organisations,06-Oct-2015,3030911-25567,"19,974.00",PERCY HEDLEY FOUNDATION.
Children and Adult Services,Education,Transport,230008,Contract Hire,06-Oct-2015,3030913-725,"3,436.00",PG TRIPS.
Children and Adult Services,Education,Transfer Payments,510026,School Children,06-Oct-2015,3030922-1,585.00,PLAYDAY NURSERY.
Children and Adult Services,Education,Transport,230008,Contract Hire,06-Oct-2015,3030924-1107,520.00,PODA LTD.
Children and Adult Services,Education,Transport,230008,Contract Hire,06-Oct-2015,3030924-1108,"1,500.00",PODA LTD.
Children and Adult Services,Education,Transport,230008,Contract Hire,06-Oct-2015,3030930-150902,"1,182.09",PRATTS TAXIS.
Dedicated Schools Grant,Dedicated Schools Grant,Transport,230010,Contract Hire,06-Oct-2015,3030930-150905,"1,393.00",PRATTS TAXIS.
Children and Adult Services,Education,Transport,230007,Contract Hire,06-Oct-2015,3030930-150906,"1,800.00",PRATTS TAXIS.
Children and Adult Services,Education,Transport,230007,Contract Hire,06-Oct-2015,3030931-300,"1,692.81",PREMIER PRIVATE HIRE.
Children and Adult Services,Head of Adults,Supplies and Services,384616,Miscellaneous Expenses,06-Oct-2015,3030937-1300000881,624.45,PROGRESS CARE HOUSING ASSOCIATION LTD.
Children and Adult Services,Head of Adults,Supplies and Services,384616,Miscellaneous Expenses,06-Oct-2015,3030937-1300001021,"1,040.75",PROGRESS CARE HOUSING ASSOCIATION LTD.
Children and Adult Services,Education,Transport,230007,Contract Hire,06-Oct-2015,3030940-651,"3,200.00",PYGALL COACH HIRE.
Children and Adult Services,Education,Transport,230007,Contract Hire,06-Oct-2015,3030940-652,"2,500.00",PYGALL COACH HIRE.
Children and Adult Services,Education,Transport,230007,Contract Hire,06-Oct-2015,3030940-653,"7,790.00",PYGALL COACH HIRE.
Children and Adult Services,Education,Transport,230007,Contract Hire,06-Oct-2015,3030940-654,"3,675.00",PYGALL COACH HIRE.
Children and Adult Services,Education,Transport,230007,Contract Hire,06-Oct-2015,3030940-655,"2,803.50",PYGALL COACH HIRE.
Children and Adult Services,Education,Transport,230007,Contract Hire,06-Oct-2015,3030940-656,"2,625.00",PYGALL COACH HIRE.
Children and Adult Services,Childrens Services,Employees,080025,Agency Staff,06-Oct-2015,3030948-0228555462,975.00,REED MANAGED SERVICES LTD.
Children and Adult Services,Childrens Services,Employees,080025,Agency Staff,06-Oct-2015,3030948-0228568729,682.50,REED MANAGED SERVICES LTD.
Children and Adult Services,Childrens Services,Employees,080025,Agency Staff,06-Oct-2015,3030948-0228598252,682.50,REED MANAGED SERVICES LTD.
Children and Adult Services,Childrens Services,Employees,080025,Agency Staff,06-Oct-2015,3030948-0228598253,550.00,REED MANAGED SERVICES LTD.
Neighbourhood Services,Direct Services,Transport,210057,Repair and Maintenance of Vehicles,06-Oct-2015,3030951-737127,606.68,RICKERBY LTD.
Children and Adult Services,Education,Transport,230008,Contract Hire,06-Oct-2015,3030957-405,"1,792.00",ROAD RUNNERS (NE) LTD.
Children and Adult Services,Education,Transport,230008,Contract Hire,06-Oct-2015,3030959-152,"2,140.78",ROBBIE`S PRIVATE HIRE.
Children and Adult Services,Education,Transport,230008,Contract Hire,06-Oct-2015,3030962-NO33-SEP15,"1,870.00",RONS TAXI (CHESTER LE ST).
Children and Adult Services,Education,Transport,230007,Contract Hire,06-Oct-2015,3030969-3080/15,"1,615.20",S & S TRAVEL LTD.
Children and Adult Services,Education,Transport,230008,Contract Hire,06-Oct-2015,3030969-SO11/34,"1,817.20",S & S TRAVEL LTD.
Children and Adult Services,Education,Transport,230008,Contract Hire,06-Oct-2015,3030969-W075/34,"1,796.00",S & S TRAVEL LTD.
Children and Adult Services,Education,Transport,230008,Contract Hire,06-Oct-2015,3030969-WO52/23,"3,463.80",S & S TRAVEL LTD.
Children and Adult Services,Education,Transport,230008,Contract Hire,06-Oct-2015,3030969-WO85/01,"1,800.00",S & S TRAVEL LTD.
Children and Adult Services,Education,Transport,230008,Contract Hire,06-Oct-2015,3030985-1-SEPT15,"1,200.00",SHARON`S TAXI.
Neighbourhood Services,Technical Services,Supplies and Services,304358,Equipment and Materials,06-Oct-2015,3030986-215068,581.20,SHIREHAVEN LTD.
Neighbourhood Services,Technical Services,Supplies and Services,304358,Equipment and Materials,06-Oct-2015,3030986-215069,569.40,SHIREHAVEN LTD.
Children and Adult Services,Education,Transport,230008,Contract Hire,06-Oct-2015,3030989-71852,"1,512.00",SHOTTON PRIVATE HIRE.
Children and Adult Services,Education,Transport,230008,Contract Hire,06-Oct-2015,3030989-71854,"1,512.00",SHOTTON PRIVATE HIRE.
Children and Adult Services,Education,Transport,230008,Contract Hire,06-Oct-2015,3030996-172A,"1,900.00",SJ MACKENZIE T/A SCOTTS TAXIS.
Children and Adult Services,Education,Transport,230008,Contract Hire,06-Oct-2015,3030996-173A,"2,310.00",SJ MACKENZIE T/A SCOTTS TAXIS.
Children and Adult Services,Education,Transport,230008,Contract Hire,06-Oct-2015,3030996-174A,"2,653.42",SJ MACKENZIE T/A SCOTTS TAXIS.
Children and Adult Services,Education,Transport,230008,Contract Hire,06-Oct-2015,3031002-137,864.80,SODA TAXIS.
Children and Adult Services,Education,Transport,230008,Contract Hire,06-Oct-2015,3031002-423,"1,120.00",SODA TAXIS.
Neighbourhood Services,Technical Services,Supplies and Services,304221,Equipment and Materials,06-Oct-2015,3031013-075212,"1,325.12",STONEGRAVE AGGREGATES LTD.
Neighbourhood Services,Technical Services,Supplies and Services,304221,Equipment and Materials,06-Oct-2015,3031016-1289,605.00,SUPAMOLE DIRECTIONAL DRILLING SPECIALISTS.
Neighbourhood Services,Technical Services,Supplies and Services,304221,Equipment and Materials,06-Oct-2015,3031016-1290,517.50,SUPAMOLE DIRECTIONAL DRILLING SPECIALISTS.
Children and Adult Services,Head of Adults,Transport,230005,Contract Hire,06-Oct-2015,3031021-5408B,"1,500.00",T MOORE & SON.
Children and Adult Services,Education,Transport,230006,Contract Hire,06-Oct-2015,3031024-DCC/2015/42,"1,220.00",TAYLOR`S TAXIS.
Children and Adult Services,Education,Transport,230006,Contract Hire,06-Oct-2015,3031024-DCC/2015/44,901.00,TAYLOR`S TAXIS.
Dedicated Schools Grant,Dedicated Schools Grant,Transport,230010,Contract Hire,06-Oct-2015,3031024-DCC/2015/45,"1,206.00",TAYLOR`S TAXIS.
Neighbourhood Services,Direct Services,Transport,210057,Repair and Maintenance of Vehicles,06-Oct-2015,3031034-96317352,884.42,TERBERG MATEC (UK) LTD.
Children and Adult Services,Education,Transport,230007,Contract Hire,06-Oct-2015,3031052-NO7515,507.57,TRANSPORT.ADVENTURE.XI.
Children and Adult Services,Childrens Services,Premises,150005,Apportioned Exps of Operational Blds,06-Oct-2015,3031061-DCC0021,697.19,TYNE VIEW PROPERTY MANAGEMENT LTD.
Children and Adult Services,Childrens Services,Employees,080025,Agency Staff,06-Oct-2015,3031073-171666,950.00,VISION FOR EDUCATION LTD.
Neighbourhood Services,Direct Services,Supplies and Services,304358,Equipment and Materials,06-Oct-2015,3031076-39796,"1,385.56",W MARLEY AGRICULTURAL CONTRACTORS LTD.
Neighbourhood Services,Direct Services,Supplies and Services,304358,Equipment and Materials,06-Oct-2015,3031076-39836,"1,708.71",W MARLEY AGRICULTURAL CONTRACTORS LTD.
Children and Adult Services,Education,Transport,230007,Contract Hire,06-Oct-2015,3031079-5313,646.00,WEARDALE PRIVATE HIRE.
Children and Adult Services,Education,Transport,230007,Contract Hire,06-Oct-2015,3031079-5314,"4,405.80",WEARDALE PRIVATE HIRE.
Children and Adult Services,Education,Transport,230007,Contract Hire,06-Oct-2015,3031079-5315,"3,274.02",WEARDALE PRIVATE HIRE.
Children and Adult Services,Head of Adults,Transport,230005,Contract Hire,06-Oct-2015,3031079-5325,"1,529.00",WEARDALE PRIVATE HIRE.
Neighbourhood Services,Direct Services,Premises,150015,Apportioned Exps of Operational Blds,06-Oct-2015,3031080-454577,643.50,WERNICK HIRE LTD.
Children and Adult Services,Childrens Services,Transport,235073,Public Transport,06-Oct-2015,3031086-25152,"1,036.30",WRIXON SECURITY SERVICES LTD T/A WRIXON CARE.
Regeneration & Economic Development,Economic Development and Housing,Supplies and Services,304337,Equipment and Materials,06-Oct-2015,3031090-17317,858.86,Y & L CO LTD.
Children and Adult Services,Education,Transport,230007,Contract Hire,07-Oct-2015,300963-17,"1,086.50",DAVID WILKINSON...
Regeneration & Economic Development,Economic Development and Housing,Creditors,952029,Creditor-returnable bonds,07-Oct-2015,300987-RED-10-2015-002,500.00,MARTINTRUX WHITECLIFFS OF DOVER LTD.
Regeneration & Economic Development,Spatial Policy Planning Assets & Environment,Income,720190,Fees and Charges,07-Oct-2015,301001-RED-10-2015-029,"8,085.00",REDACTED - PAYMENT TO INDIVIDUAL
Children and Adult Services,Education,Transport,230008,Contract Hire,07-Oct-2015,301004-250915,"1,425.00",REDACTED - PAYMENT TO INDIVIDUAL
Children and Adult Services,Head of Adults,Third Party Payments,478101,Purchase of Care,07-Oct-2015,301010-2268149,"1,232.44",REDACTED - PAYMENT TO INDIVIDUAL
Children and Adult Services,Childrens Services,Transport,230005,Contract Hire,07-Oct-2015,301036-8167,535.80,STATION TAXIS (SUNDERLAND).
Children and Adult Services,Head of Adults,Third Party Payments,470101,Purchase of Care,07-Oct-2015,3031097-2268235,"6,031.16",3 RED ADMIRAL COURT.
Children and Adult Services,Head of Adults,Third Party Payments,470101,Purchase of Care,07-Oct-2015,3031098-2268222,"1,970.88",A CHARLES THOMAS (CARE) LTD.
Children and Adult Services,Head of Adults,Third Party Payments,474101,Purchase of Care,07-Oct-2015,3031098-2268268,"2,064.08",A CHARLES THOMAS (CARE) LTD.
Children and Adult Services,Head of Adults,Third Party Payments,474101,Purchase of Care,07-Oct-2015,3031098-2268271,"2,064.08",A CHARLES THOMAS (CARE) LTD.
Children and Adult Services,Head of Adults,Third Party Payments,470101,Purchase of Care,07-Oct-2015,3031098-2268534,"1,970.88",A CHARLES THOMAS (CARE) LTD.
Children and Adult Services,Head of Adults,Third Party Payments,470101,Purchase of Care,07-Oct-2015,3031098-2268734,"1,970.88",A CHARLES THOMAS (CARE) LTD.
Children and Adult Services,Head of Adults,Third Party Payments,470101,Purchase of Care,07-Oct-2015,3031098-2269027,"1,970.88",A CHARLES THOMAS (CARE) LTD.
Children and Adult Services,Head of Adults,Third Party Payments,470101,Purchase of Care,07-Oct-2015,3031098-2269095,"1,970.88",A CHARLES THOMAS (CARE) LTD.
Children and Adult Services,Head of Adults,Third Party Payments,470101,Purchase of Care,07-Oct-2015,3031098-2269098,"1,970.88",A CHARLES THOMAS (CARE) LTD.
Children and Adult Services,Head of Adults,Third Party Payments,470101,Purchase of Care,07-Oct-2015,3031098-2269305,"1,970.88",A CHARLES THOMAS (CARE) LTD.
Children and Adult Services,Head of Adults,Third Party Payments,474101,Purchase of Care,07-Oct-2015,3031098-2269546,"2,064.08",A CHARLES THOMAS (CARE) LTD.
Children and Adult Services,Head of Adults,Third Party Payments,474101,Purchase of Care,07-Oct-2015,3031098-2269564,"2,064.08",A CHARLES THOMAS (CARE) LTD.
Children and Adult Services,Head of Adults,Third Party Payments,474101,Purchase of Care,07-Oct-2015,3031098-2269821,"2,064.08",A CHARLES THOMAS (CARE) LTD.
Children and Adult Services,Head of Adults,Third Party Payments,470101,Purchase of Care,07-Oct-2015,3031098-2270106,"1,970.88",A CHARLES THOMAS (CARE) LTD.
Children and Adult Services,Head of Adults,Third Party Payments,470101,Purchase of Care,07-Oct-2015,3031098-2270319,"1,970.88",A CHARLES THOMAS (CARE) LTD.
Children and Adult Services,Head of Adults,Third Party Payments,470101,Purchase of Care,07-Oct-2015,3031098-2270385,"1,970.88",A CHARLES THOMAS (CARE) LTD.
Children and Adult Services,Head of Adults,Third Party Payments,470101,Purchase of Care,07-Oct-2015,3031098-2270559,"1,970.88",A CHARLES THOMAS (CARE) LTD.
Children and Adult Services,Head of Adults,Third Party Payments,470101,Purchase of Care,07-Oct-2015,3031098-2270649,"1,970.88",A CHARLES THOMAS (CARE) LTD.
Children and Adult Services,Head of Adults,Third Party Payments,470101,Purchase of Care,07-Oct-2015,3031098-2271083,"1,970.88",A CHARLES THOMAS (CARE) LTD.
Children and Adult Services,Head of Adults,Third Party Payments,470101,Purchase of Care,07-Oct-2015,3031098-2271088,"1,970.88",A CHARLES THOMAS (CARE) LTD.
Children and Adult Services,Head of Adults,Third Party Payments,470101,Purchase of Care,07-Oct-2015,3031098-2271167,"1,970.88",A CHARLES THOMAS (CARE) LTD.
Children and Adult Services,Head of Adults,Third Party Payments,474101,Purchase of Care,07-Oct-2015,3031098-2271387,"2,064.08",A CHARLES THOMAS (CARE) LTD.
Children and Adult Services,Head of Adults,Third Party Payments,474101,Purchase of Care,07-Oct-2015,3031098-2271567,"2,064.08",A CHARLES THOMAS (CARE) LTD.
Children and Adult Services,Head of Adults,Third Party Payments,474101,Purchase of Care,07-Oct-2015,3031098-2271879,"2,064.08",A CHARLES THOMAS (CARE) LTD.
Children and Adult Services,Head of Adults,Third Party Payments,474101,Purchase of Care,07-Oct-2015,3031098-2272072,"1,105.75",A CHARLES THOMAS (CARE) LTD.
Children and Adult Services,Head of Adults,Third Party Payments,474101,Purchase of Care,07-Oct-2015,3031098-2272135,"2,064.08",A CHARLES THOMAS (CARE) LTD.
Children and Adult Services,Head of Adults,Third Party Payments,474101,Purchase of Care,07-Oct-2015,3031098-2272255,"1,032.04",A CHARLES THOMAS (CARE) LTD.
Children and Adult Services,Head of Adults,Third Party Payments,474101,Purchase of Care,07-Oct-2015,3031099-2268045,"2,303.28",ABBEYMOOR CLINIC.
Children and Adult Services,Head of Adults,Third Party Payments,474101,Purchase of Care,07-Oct-2015,3031099-2269803,"2,303.28",ABBEYMOOR CLINIC.
Children and Adult Services,Head of Adults,Third Party Payments,474101,Purchase of Care,07-Oct-2015,3031099-2271547,"1,630.87",ABBEYMOOR CLINIC.
Children and Adult Services,Head of Adults,Third Party Payments,474101,Purchase of Care,07-Oct-2015,3031099-2272517,"1,727.46",ABBEYMOOR CLINIC.
Children and Adult Services,Head of Adults,Third Party Payments,470101,Purchase of Care,07-Oct-2015,3031100-2268535,"1,970.88",ABBEYVALE.
Children and Adult Services,Head of Adults,Third Party Payments,470101,Purchase of Care,07-Oct-2015,3031100-2268570,"2,500.00",ABBEYVALE.
Children and Adult Services,Head of Adults,Third Party Payments,470101,Purchase of Care,07-Oct-2015,3031100-2268603,"1,970.88",ABBEYVALE.
Children and Adult Services,Head of Adults,Third Party Payments,471101,Purchase of Care,07-Oct-2015,3031100-2268613,"2,043.64",ABBEYVALE.
Children and Adult Services,Head of Adults,Third Party Payments,470101,Purchase of Care,07-Oct-2015,3031100-2268649,"1,970.88",ABBEYVALE.
Children and Adult Services,Head of Adults,Third Party Payments,471101,Purchase of Care,07-Oct-2015,3031100-2268716,"2,043.64",ABBEYVALE.
Children and Adult Services,Head of Adults,Third Party Payments,471101,Purchase of Care,07-Oct-2015,3031100-2268798,"2,539.28",ABBEYVALE.
Children and Adult Services,Head of Adults,Third Party Payments,471101,Purchase of Care,07-Oct-2015,3031100-2268916,"2,043.64",ABBEYVALE.
Children and Adult Services,Head of Adults,Third Party Payments,470101,Purchase of Care,07-Oct-2015,3031100-2268934,"2,030.88",ABBEYVALE.
Children and Adult Services,Head of Adults,Third Party Payments,471101,Purchase of Care,07-Oct-2015,3031100-2269015,"2,043.64",ABBEYVALE.
Children and Adult Services,Head of Adults,Third Party Payments,470101,Purchase of Care,07-Oct-2015,3031100-2269059,"1,970.88",ABBEYVALE.
Children and Adult Services,Head of Adults,Third Party Payments,470101,Purchase of Care,07-Oct-2015,3031100-2269069,"1,970.88",ABBEYVALE.
Children and Adult Services,Head of Adults,Third Party Payments,470101,Purchase of Care,07-Oct-2015,3031100-2269159,"2,500.00",ABBEYVALE.
Children and Adult Services,Head of Adults,Third Party Payments,471101,Purchase of Care,07-Oct-2015,3031100-2269200,"1,021.84",ABBEYVALE.
Children and Adult Services,Head of Adults,Third Party Payments,470101,Purchase of Care,07-Oct-2015,3031100-2269226,"2,500.00",ABBEYVALE.
Children and Adult Services,Head of Adults,Third Party Payments,471101,Purchase of Care,07-Oct-2015,3031100-2269267,"2,043.64",ABBEYVALE.
Children and Adult Services,Head of Adults,Third Party Payments,470101,Purchase of Care,07-Oct-2015,3031100-2269295,"1,970.88",ABBEYVALE.
Children and Adult Services,Head of Adults,Third Party Payments,470101,Purchase of Care,07-Oct-2015,3031100-2269437,"1,390.00",ABBEYVALE.
Children and Adult Services,Head of Adults,Third Party Payments,470101,Purchase of Care,07-Oct-2015,3031100-2269762,"1,970.88",ABBEYVALE.
Children and Adult Services,Head of Adults,Third Party Payments,471101,Purchase of Care,07-Oct-2015,3031100-2269907,"2,043.64",ABBEYVALE.
Children and Adult Services,Head of Adults,Third Party Payments,471101,Purchase of Care,07-Oct-2015,3031100-2270761,"2,043.64",ABBEYVALE.
Children and Adult Services,Head of Adults,Third Party Payments,470101,Purchase of Care,07-Oct-2015,3031100-2270958,"1,970.88",ABBEYVALE.
Children and Adult Services,Head of Adults,Third Party Payments,470101,Purchase of Care,07-Oct-2015,3031100-2270975,"1,970.88",ABBEYVALE.
Children and Adult Services,Head of Adults,Third Party Payments,471101,Purchase of Care,07-Oct-2015,3031100-2271280,"2,043.64",ABBEYVALE.
Children and Adult Services,Head of Adults,Third Party Payments,470101,Purchase of Care,07-Oct-2015,3031100-2271403,"1,337.38",ABBEYVALE.
Children and Adult Services,Head of Adults,Third Party Payments,470101,Purchase of Care,07-Oct-2015,3031100-2271662,"1,970.88",ABBEYVALE.
Children and Adult Services,Head of Adults,Third Party Payments,471101,Purchase of Care,07-Oct-2015,3031100-2271898,"2,043.64",ABBEYVALE.
Children and Adult Services,Head of Adults,Third Party Payments,471101,Purchase of Care,07-Oct-2015,3031100-2271973,"2,043.64",ABBEYVALE.
Children and Adult Services,Head of Adults,Third Party Payments,471101,Purchase of Care,07-Oct-2015,3031100-2272156,"2,043.64",ABBEYVALE.
Children and Adult Services,Head of Adults,Third Party Payments,470101,Purchase of Care,07-Oct-2015,3031101-2268325,"1,970.88",ABBOTTS COURT CARE HOME.
Children and Adult Services,Head of Adults,Third Party Payments,471101,Purchase of Care,07-Oct-2015,3031101-2268403,510.91,ABBOTTS COURT CARE HOME.
Children and Adult Services,Head of Adults,Third Party Payments,471101,Purchase of Care,07-Oct-2015,3031101-2268439,"2,043.64",ABBOTTS COURT CARE HOME.
Children and Adult Services,Head of Adults,Third Party Payments,470101,Purchase of Care,07-Oct-2015,3031101-2268865,"1,970.88",ABBOTTS COURT CARE HOME.
Children and Adult Services,Head of Adults,Third Party Payments,470101,Purchase of Care,07-Oct-2015,3031101-2268942,"1,970.88",ABBOTTS COURT CARE HOME.
Children and Adult Services,Head of Adults,Third Party Payments,471101,Purchase of Care,07-Oct-2015,3031101-2269104,"2,043.64",ABBOTTS COURT CARE HOME.
Children and Adult Services,Head of Adults,Third Party Payments,471101,Purchase of Care,07-Oct-2015,3031101-2269274,"2,043.64",ABBOTTS COURT CARE HOME.
Children and Adult Services,Head of Adults,Third Party Payments,471101,Purchase of Care,07-Oct-2015,3031101-2269402,"2,043.64",ABBOTTS COURT CARE HOME.
Children and Adult Services,Head of Adults,Third Party Payments,470101,Purchase of Care,07-Oct-2015,3031101-2269497,"1,970.88",ABBOTTS COURT CARE HOME.
Children and Adult Services,Head of Adults,Third Party Payments,470101,Purchase of Care,07-Oct-2015,3031101-2269591,"1,970.88",ABBOTTS COURT CARE HOME.
Children and Adult Services,Head of Adults,Third Party Payments,471101,Purchase of Care,07-Oct-2015,3031101-2269638,"2,043.64",ABBOTTS COURT CARE HOME.
Children and Adult Services,Head of Adults,Third Party Payments,470101,Purchase of Care,07-Oct-2015,3031101-2269675,"1,970.88",ABBOTTS COURT CARE HOME.
Children and Adult Services,Head of Adults,Third Party Payments,470101,Purchase of Care,07-Oct-2015,3031101-2269845,"1,970.88",ABBOTTS COURT CARE HOME.
Children and Adult Services,Head of Adults,Third Party Payments,470101,Purchase of Care,07-Oct-2015,3031101-2270089,"4,856.81",ABBOTTS COURT CARE HOME.
Children and Adult Services,Head of Adults,Third Party Payments,470101,Purchase of Care,07-Oct-2015,3031101-2270310,"1,970.88",ABBOTTS COURT CARE HOME.
Children and Adult Services,Head of Adults,Third Party Payments,470101,Purchase of Care,07-Oct-2015,3031101-2270365,"1,970.88",ABBOTTS COURT CARE HOME.
Children and Adult Services,Head of Adults,Third Party Payments,470101,Purchase of Care,07-Oct-2015,3031101-2270399,"1,970.88",ABBOTTS COURT CARE HOME.
Children and Adult Services,Head of Adults,Third Party Payments,470101,Purchase of Care,07-Oct-2015,3031101-2270454,"1,970.88",ABBOTTS COURT CARE HOME.
Children and Adult Services,Head of Adults,Third Party Payments,470101,Purchase of Care,07-Oct-2015,3031101-2270704,"1,970.88",ABBOTTS COURT CARE HOME.
Children and Adult Services,Head of Adults,Third Party Payments,470101,Purchase of Care,07-Oct-2015,3031101-2270760,"1,970.88",ABBOTTS COURT CARE HOME.
Children and Adult Services,Head of Adults,Third Party Payments,470101,Purchase of Care,07-Oct-2015,3031101-2270796,"1,970.88",ABBOTTS COURT CARE HOME.
Children and Adult Services,Head of Adults,Third Party Payments,471101,Purchase of Care,07-Oct-2015,3031101-2271001,"2,043.64",ABBOTTS COURT CARE HOME.
Children and Adult Services,Head of Adults,Third Party Payments,470101,Purchase of Care,07-Oct-2015,3031101-2271332,"1,970.88",ABBOTTS COURT CARE HOME.
Children and Adult Services,Head of Adults,Third Party Payments,470101,Purchase of Care,07-Oct-2015,3031101-2271951,"1,970.88",ABBOTTS COURT CARE HOME.
Children and Adult Services,Head of Adults,Third Party Payments,471101,Purchase of Care,07-Oct-2015,3031101-2271985,"2,043.64",ABBOTTS COURT CARE HOME.
Children and Adult Services,Head of Adults,Third Party Payments,470101,Purchase of Care,07-Oct-2015,3031102-2269233,"1,864.56",ACOMB COURT.
Children and Adult Services,Head of Adults,Third Party Payments,470101,Purchase of Care,07-Oct-2015,3031103-2268321,"1,865.32",ACORN GRANGE NURSING HOME.
Children and Adult Services,Head of Adults,Third Party Payments,471101,Purchase of Care,07-Oct-2015,3031103-2268354,"1,939.12",ACORN GRANGE NURSING HOME.
Children and Adult Services,Head of Adults,Third Party Payments,470101,Purchase of Care,07-Oct-2015,3031103-2268385,"1,865.32",ACORN GRANGE NURSING HOME.
Children and Adult Services,Head of Adults,Third Party Payments,471101,Purchase of Care,07-Oct-2015,3031103-2268739,"1,939.12",ACORN GRANGE NURSING HOME.
Children and Adult Services,Head of Adults,Third Party Payments,470101,Purchase of Care,07-Oct-2015,3031103-2268838,"1,199.13",ACORN GRANGE NURSING HOME.
Children and Adult Services,Head of Adults,Third Party Payments,471101,Purchase of Care,07-Oct-2015,3031103-2268863,"1,939.12",ACORN GRANGE NURSING HOME.
Children and Adult Services,Head of Adults,Third Party Payments,471101,Purchase of Care,07-Oct-2015,3031103-2268994,"1,939.12",ACORN GRANGE NURSING HOME.
Children and Adult Services,Head of Adults,Third Party Payments,470101,Purchase of Care,07-Oct-2015,3031103-2268999,"1,865.32",ACORN GRANGE NURSING HOME.
Children and Adult Services,Head of Adults,Third Party Payments,470101,Purchase of Care,07-Oct-2015,3031103-2269077,"1,865.32",ACORN GRANGE NURSING HOME.
Children and Adult Services,Head of Adults,Third Party Payments,470101,Purchase of Care,07-Oct-2015,3031103-2269127,"1,865.32",ACORN GRANGE NURSING HOME.
Children and Adult Services,Head of Adults,Third Party Payments,471101,Purchase of Care,07-Oct-2015,3031103-2269280,"1,939.12",ACORN GRANGE NURSING HOME.
Children and Adult Services,Head of Adults,Third Party Payments,471101,Purchase of Care,07-Oct-2015,3031103-2269294,"1,939.12",ACORN GRANGE NURSING HOME.
Children and Adult Services,Head of Adults,Third Party Payments,471101,Purchase of Care,07-Oct-2015,3031103-2269356,"1,939.12",ACORN GRANGE NURSING HOME.
Children and Adult Services,Head of Adults,Third Party Payments,471101,Purchase of Care,07-Oct-2015,3031103-2269373,"1,939.12",ACORN GRANGE NURSING HOME.
Children and Adult Services,Head of Adults,Third Party Payments,471101,Purchase of Care,07-Oct-2015,3031103-2269390,"1,939.12",ACORN GRANGE NURSING HOME.
Children and Adult Services,Head of Adults,Third Party Payments,470101,Purchase of Care,07-Oct-2015,3031103-2269419,"1,865.32",ACORN GRANGE NURSING HOME.
Children and Adult Services,Head of Adults,Third Party Payments,470101,Purchase of Care,07-Oct-2015,3031103-2269947,"1,865.32",ACORN GRANGE NURSING HOME.
Children and Adult Services,Head of Adults,Third Party Payments,470101,Purchase of Care,07-Oct-2015,3031103-2269986,"1,865.32",ACORN GRANGE NURSING HOME.
Children and Adult Services,Head of Adults,Third Party Payments,471101,Purchase of Care,07-Oct-2015,3031103-2270258,"1,315.83",ACORN GRANGE NURSING HOME.
Children and Adult Services,Head of Adults,Third Party Payments,470101,Purchase of Care,07-Oct-2015,3031103-2270908,599.56,ACORN GRANGE NURSING HOME.
Children and Adult Services,Head of Adults,Third Party Payments,471101,Purchase of Care,07-Oct-2015,3031103-2271205,"1,939.12",ACORN GRANGE NURSING HOME.
Children and Adult Services,Head of Adults,Third Party Payments,471101,Purchase of Care,07-Oct-2015,3031103-2271213,"1,939.12",ACORN GRANGE NURSING HOME.
Children and Adult Services,Head of Adults,Third Party Payments,471101,Purchase of Care,07-Oct-2015,3031103-2271269,"1,939.12",ACORN GRANGE NURSING HOME.
Children and Adult Services,Head of Adults,Third Party Payments,470101,Purchase of Care,07-Oct-2015,3031103-2271359,"1,865.32",ACORN GRANGE NURSING HOME.
Children and Adult Services,Head of Adults,Third Party Payments,471101,Purchase of Care,07-Oct-2015,3031103-2271806,"1,939.12",ACORN GRANGE NURSING HOME.
Children and Adult Services,Head of Adults,Third Party Payments,471101,Purchase of Care,07-Oct-2015,3031103-2271834,"1,939.12",ACORN GRANGE NURSING HOME.
Children and Adult Services,Head of Adults,Third Party Payments,471101,Purchase of Care,07-Oct-2015,3031103-2271837,969.56,ACORN GRANGE NURSING HOME.
Children and Adult Services,Head of Adults,Third Party Payments,471101,Purchase of Care,07-Oct-2015,3031103-2271909,"1,939.12",ACORN GRANGE NURSING HOME.
Children and Adult Services,Head of Adults,Third Party Payments,470101,Purchase of Care,07-Oct-2015,3031103-2272152,"1,865.32",ACORN GRANGE NURSING HOME.
Children and Adult Services,Head of Adults,Third Party Payments,471101,Purchase of Care,07-Oct-2015,3031103-2272153,"1,939.12",ACORN GRANGE NURSING HOME.
Children and Adult Services,Head of Adults,Third Party Payments,470101,Purchase of Care,07-Oct-2015,3031103-2272162,"1,865.32",ACORN GRANGE NURSING HOME.
Children and Adult Services,Head of Adults,Third Party Payments,471101,Purchase of Care,07-Oct-2015,3031104-2262924,"1,815.60",AILWYN HALL RESIDENTIAL CARE HOME.
Children and Adult Services,Head of Adults,Third Party Payments,471101,Purchase of Care,07-Oct-2015,3031104-2271848,"1,815.60",AILWYN HALL RESIDENTIAL CARE HOME.
Children and Adult Services,Head of Adults,Third Party Payments,470101,Purchase of Care,07-Oct-2015,3031105-2270768,"1,816.40",ALBANY CARE HOME.
Children and Adult Services,Head of Adults,Third Party Payments,470101,Purchase of Care,07-Oct-2015,3031106-2268076,"1,465.68",ALLIANCE CARE.
Children and Adult Services,Head of Adults,Third Party Payments,471101,Purchase of Care,07-Oct-2015,3031106-2268225,"2,043.64",ALLIANCE CARE.
Children and Adult Services,Head of Adults,Third Party Payments,470101,Purchase of Care,07-Oct-2015,3031106-2268228,"1,703.00",ALLIANCE CARE.
Children and Adult Services,Head of Adults,Third Party Payments,470101,Purchase of Care,07-Oct-2015,3031106-2268434,"1,970.88",ALLIANCE CARE.
Children and Adult Services,Head of Adults,Third Party Payments,470101,Purchase of Care,07-Oct-2015,3031106-2268587,"1,970.88",ALLIANCE CARE.
Children and Adult Services,Head of Adults,Third Party Payments,474101,Purchase of Care,07-Oct-2015,3031106-2268923,"1,399.28",ALLIANCE CARE.
Children and Adult Services,Head of Adults,Third Party Payments,470101,Purchase of Care,07-Oct-2015,3031106-2269052,"1,970.88",ALLIANCE CARE.
Children and Adult Services,Head of Adults,Third Party Payments,471101,Purchase of Care,07-Oct-2015,3031106-2269250,"1,450.00",ALLIANCE CARE.
Children and Adult Services,Head of Adults,Third Party Payments,470101,Purchase of Care,07-Oct-2015,3031106-2269298,"1,465.68",ALLIANCE CARE.
Children and Adult Services,Head of Adults,Third Party Payments,470101,Purchase of Care,07-Oct-2015,3031106-2269518,"1,970.88",ALLIANCE CARE.
Children and Adult Services,Head of Adults,Third Party Payments,470101,Purchase of Care,07-Oct-2015,3031106-2269592,"1,970.88",ALLIANCE CARE.
Children and Adult Services,Head of Adults,Third Party Payments,470101,Purchase of Care,07-Oct-2015,3031106-2269629,"1,337.04",ALLIANCE CARE.
Children and Adult Services,Head of Adults,Third Party Payments,470101,Purchase of Care,07-Oct-2015,3031106-2269729,"1,970.88",ALLIANCE CARE.
Children and Adult Services,Head of Adults,Third Party Payments,471101,Purchase of Care,07-Oct-2015,3031106-2269731,"1,262.72",ALLIANCE CARE.
Children and Adult Services,Head of Adults,Third Party Payments,471101,Purchase of Care,07-Oct-2015,3031106-2269746,"2,043.64",ALLIANCE CARE.
Children and Adult Services,Head of Adults,Third Party Payments,471101,Purchase of Care,07-Oct-2015,3031106-2269851,"2,043.64",ALLIANCE CARE.
Children and Adult Services,Head of Adults,Third Party Payments,474101,Purchase of Care,07-Oct-2015,3031106-2269899,"1,558.88",ALLIANCE CARE.
Children and Adult Services,Head of Adults,Third Party Payments,471101,Purchase of Care,07-Oct-2015,3031106-2269923,"2,043.64",ALLIANCE CARE.
Children and Adult Services,Head of Adults,Third Party Payments,470101,Purchase of Care,07-Oct-2015,3031106-2269941,"1,970.88",ALLIANCE CARE.
Children and Adult Services,Head of Adults,Third Party Payments,470101,Purchase of Care,07-Oct-2015,3031106-2270034,866.36,ALLIANCE CARE.
Children and Adult Services,Head of Adults,Debtors,930135,Debtor Residential Care - IC+ Rehabilitation,07-Oct-2015,3031106-2270094,"1,725.25",ALLIANCE CARE.
Children and Adult Services,Head of Adults,Third Party Payments,471101,Purchase of Care,07-Oct-2015,3031106-2270132,"1,454.44",ALLIANCE CARE.
Children and Adult Services,Head of Adults,Third Party Payments,470102,Purchase of Care,07-Oct-2015,3031106-2270227,621.09,ALLIANCE CARE.
Children and Adult Services,Head of Adults,Third Party Payments,474101,Purchase of Care,07-Oct-2015,3031106-2270266,"1,032.04",ALLIANCE CARE.
Children and Adult Services,Head of Adults,Third Party Payments,470101,Purchase of Care,07-Oct-2015,3031106-2270269,"1,453.60",ALLIANCE CARE.
Children and Adult Services,Head of Adults,Third Party Payments,474101,Purchase of Care,07-Oct-2015,3031106-2270305,"1,105.75",ALLIANCE CARE.
Children and Adult Services,Head of Adults,Third Party Payments,471101,Purchase of Care,07-Oct-2015,3031106-2270411,"1,021.80",ALLIANCE CARE.
Children and Adult Services,Head of Adults,Third Party Payments,470101,Purchase of Care,07-Oct-2015,3031106-2270419,"1,900.49",ALLIANCE CARE.
Children and Adult Services,Head of Adults,Third Party Payments,470102,Purchase of Care,07-Oct-2015,3031106-2270520,621.09,ALLIANCE CARE.
Children and Adult Services,Head of Adults,Third Party Payments,471101,Purchase of Care,07-Oct-2015,3031106-2270577,"1,538.44",ALLIANCE CARE.
Children and Adult Services,Head of Adults,Third Party Payments,474101,Purchase of Care,07-Oct-2015,3031106-2270654,"1,375.40",ALLIANCE CARE.
Children and Adult Services,Head of Adults,Third Party Payments,471101,Purchase of Care,07-Oct-2015,3031106-2270702,"2,043.64",ALLIANCE CARE.
Children and Adult Services,Head of Adults,Third Party Payments,470101,Purchase of Care,07-Oct-2015,3031106-2270801,"1,443.88",ALLIANCE CARE.
Children and Adult Services,Head of Adults,Debtors,930135,Debtor Residential Care - IC+ Rehabilitation,07-Oct-2015,3031106-2270939,759.11,ALLIANCE CARE.
Children and Adult Services,Head of Adults,Third Party Payments,470101,Purchase of Care,07-Oct-2015,3031106-2271003,"1,970.88",ALLIANCE CARE.
Children and Adult Services,Head of Adults,Third Party Payments,470101,Purchase of Care,07-Oct-2015,3031106-2271024,"1,808.31",ALLIANCE CARE.
Children and Adult Services,Head of Adults,Third Party Payments,470101,Purchase of Care,07-Oct-2015,3031106-2271113,"1,241.76",ALLIANCE CARE.
Children and Adult Services,Head of Adults,Third Party Payments,471101,Purchase of Care,07-Oct-2015,3031106-2271206,"2,043.64",ALLIANCE CARE.
Children and Adult Services,Head of Adults,Third Party Payments,471101,Purchase of Care,07-Oct-2015,3031106-2271314,"2,043.64",ALLIANCE CARE.
Children and Adult Services,Head of Adults,Third Party Payments,470101,Purchase of Care,07-Oct-2015,3031106-2271525,"1,689.32",ALLIANCE CARE.
Children and Adult Services,Head of Adults,Third Party Payments,470101,Purchase of Care,07-Oct-2015,3031106-2271751,915.05,ALLIANCE CARE.
Children and Adult Services,Head of Adults,Debtors,930135,Debtor Residential Care - IC+ Rehabilitation,07-Oct-2015,3031106-2271753,897.13,ALLIANCE CARE.
Children and Adult Services,Head of Adults,Debtors,930135,Debtor Residential Care - IC+ Rehabilitation,07-Oct-2015,3031106-2271768,966.14,ALLIANCE CARE.
Children and Adult Services,Head of Adults,Debtors,930135,Debtor Residential Care - IC+ Rehabilitation,07-Oct-2015,3031106-2271791,897.13,ALLIANCE CARE.
Children and Adult Services,Head of Adults,Third Party Payments,470101,Purchase of Care,07-Oct-2015,3031106-2271900,"1,005.32",ALLIANCE CARE.
Children and Adult Services,Head of Adults,Third Party Payments,474101,Purchase of Care,07-Oct-2015,3031106-2271982,"2,064.08",ALLIANCE CARE.
Children and Adult Services,Head of Adults,Third Party Payments,470101,Purchase of Care,07-Oct-2015,3031106-2271994,"1,970.88",ALLIANCE CARE.
Children and Adult Services,Head of Adults,Third Party Payments,470101,Purchase of Care,07-Oct-2015,3031106-2272055,"1,970.88",ALLIANCE CARE.
Children and Adult Services,Head of Adults,Debtors,930136,Debtor Nursing Care - IC+ Nursing,07-Oct-2015,3031106-2272283,794.98,ALLIANCE CARE.
Children and Adult Services,Head of Adults,Third Party Payments,471101,Purchase of Care,07-Oct-2015,3031106-2272288,802.85,ALLIANCE CARE.
Children and Adult Services,Head of Adults,Third Party Payments,470101,Purchase of Care,07-Oct-2015,3031106-2272291,915.05,ALLIANCE CARE.
Children and Adult Services,Head of Adults,Third Party Payments,470101,Purchase of Care,07-Oct-2015,3031106-2272421,"1,104.16",ALLIANCE CARE.
Children and Adult Services,Head of Adults,Third Party Payments,474101,Purchase of Care,07-Oct-2015,3031107-2272522,666.78,ALLIANCE CARE.
Children and Adult Services,Head of Adults,Third Party Payments,470101,Purchase of Care,07-Oct-2015,3031107-2272526,639.64,ALLIANCE CARE.
Children and Adult Services,Head of Adults,Third Party Payments,470101,Purchase of Care,07-Oct-2015,3031107-2272528,919.91,ALLIANCE CARE.
Children and Adult Services,Head of Adults,Third Party Payments,474101,Purchase of Care,07-Oct-2015,3031107-2272530,"1,259.48",ALLIANCE CARE.
Children and Adult Services,Head of Adults,Third Party Payments,474101,Purchase of Care,07-Oct-2015,3031107-2272532,567.46,ALLIANCE CARE.
Children and Adult Services,Head of Adults,Third Party Payments,474101,Purchase of Care,07-Oct-2015,3031107-2272534,"1,185.39",ALLIANCE CARE.
Children and Adult Services,Head of Adults,Third Party Payments,470101,Purchase of Care,07-Oct-2015,3031107-2272535,"1,310.76",ALLIANCE CARE.
Children and Adult Services,Head of Adults,Third Party Payments,470101,Purchase of Care,07-Oct-2015,3031108-2255612,"1,661.12",AMELIA HOUSE.
Children and Adult Services,Head of Adults,Third Party Payments,470101,Purchase of Care,07-Oct-2015,3031108-2269188,"1,661.12",AMELIA HOUSE.
Children and Adult Services,Head of Adults,Third Party Payments,471101,Purchase of Care,07-Oct-2015,3031109-2271570,"2,132.08",AMERIND GROVE NURSING HOME.
Children and Adult Services,Head of Adults,Third Party Payments,470101,Purchase of Care,07-Oct-2015,3031110-2270050,"1,824.00",ANCHOR HOUSING ASSOCIATION.
Children and Adult Services,Head of Adults,Third Party Payments,470101,Purchase of Care,07-Oct-2015,3031110-2271254,"1,824.00",ANCHOR HOUSING ASSOCIATION.
Children and Adult Services,Head of Adults,Third Party Payments,470101,Purchase of Care,07-Oct-2015,3031110-2271761,"1,824.00",ANCHOR HOUSING ASSOCIATION.
Children and Adult Services,Head of Adults,Third Party Payments,474101,Purchase of Care,07-Oct-2015,3031111-2268933,"1,620.48",ANN CHARLTON LODGE.
Children and Adult Services,Head of Adults,Third Party Payments,470101,Purchase of Care,07-Oct-2015,3031112-2269921,"1,608.11",ARK HOUSE REHAB LTD.
Children and Adult Services,Head of Adults,Third Party Payments,470101,Purchase of Care,07-Oct-2015,3031112-2270751,"1,940.57",ARK HOUSE REHAB LTD.
Children and Adult Services,Head of Adults,Third Party Payments,471101,Purchase of Care,07-Oct-2015,3031113-2268625,"1,400.32",ASCOT CARE NORTHEAST LTD.
Children and Adult Services,Head of Adults,Third Party Payments,474101,Purchase of Care,07-Oct-2015,3031113-2269229,"1,361.36",ASCOT CARE NORTHEAST LTD.
Children and Adult Services,Head of Adults,Third Party Payments,470101,Purchase of Care,07-Oct-2015,3031113-2269720,"1,865.32",ASCOT CARE NORTHEAST LTD.
Children and Adult Services,Head of Adults,Third Party Payments,471101,Purchase of Care,07-Oct-2015,3031113-2270007,"1,433.92",ASCOT CARE NORTHEAST LTD.
Children and Adult Services,Head of Adults,Third Party Payments,470101,Purchase of Care,07-Oct-2015,3031113-2270018,"1,073.60",ASCOT CARE NORTHEAST LTD.
Children and Adult Services,Head of Adults,Third Party Payments,470101,Purchase of Care,07-Oct-2015,3031113-2270079,550.67,ASCOT CARE NORTHEAST LTD.
Children and Adult Services,Head of Adults,Third Party Payments,471101,Purchase of Care,07-Oct-2015,3031113-2270364,"1,561.16",ASCOT CARE NORTHEAST LTD.
Children and Adult Services,Head of Adults,Third Party Payments,470101,Purchase of Care,07-Oct-2015,3031113-2270530,"1,865.32",ASCOT CARE NORTHEAST LTD.
Children and Adult Services,Head of Adults,Third Party Payments,470101,Purchase of Care,07-Oct-2015,3031113-2270630,"1,360.12",ASCOT CARE NORTHEAST LTD.
Children and Adult Services,Head of Adults,Third Party Payments,470101,Purchase of Care,07-Oct-2015,3031113-2270719,"1,360.12",ASCOT CARE NORTHEAST LTD.
Children and Adult Services,Head of Adults,Third Party Payments,470102,Purchase of Care,07-Oct-2015,3031113-2270943,761.79,ASCOT CARE NORTHEAST LTD.
Children and Adult Services,Head of Adults,Third Party Payments,470101,Purchase of Care,07-Oct-2015,3031113-2270964,"1,269.96",ASCOT CARE NORTHEAST LTD.
Children and Adult Services,Head of Adults,Third Party Payments,471101,Purchase of Care,07-Oct-2015,3031113-2271061,959.52,ASCOT CARE NORTHEAST LTD.
Children and Adult Services,Head of Adults,Third Party Payments,470101,Purchase of Care,07-Oct-2015,3031113-2271142,"1,342.60",ASCOT CARE NORTHEAST LTD.
Children and Adult Services,Head of Adults,Third Party Payments,470101,Purchase of Care,07-Oct-2015,3031113-2271242,"1,360.12",ASCOT CARE NORTHEAST LTD.
Children and Adult Services,Head of Adults,Third Party Payments,470101,Purchase of Care,07-Oct-2015,3031113-2271321,"1,212.68",ASCOT CARE NORTHEAST LTD.
Children and Adult Services,Head of Adults,Third Party Payments,470101,Purchase of Care,07-Oct-2015,3031113-2271611,974.04,ASCOT CARE NORTHEAST LTD.
Children and Adult Services,Head of Adults,Third Party Payments,470101,Purchase of Care,07-Oct-2015,3031113-2271637,"1,360.12",ASCOT CARE NORTHEAST LTD.
Children and Adult Services,Head of Adults,Third Party Payments,470101,Purchase of Care,07-Oct-2015,3031113-2271716,"1,315.92",ASCOT CARE NORTHEAST LTD.
Children and Adult Services,Head of Adults,Third Party Payments,470101,Purchase of Care,07-Oct-2015,3031113-2271833,"1,865.32",ASCOT CARE NORTHEAST LTD.
Children and Adult Services,Head of Adults,Third Party Payments,474101,Purchase of Care,07-Oct-2015,3031113-2271844,"1,158.76",ASCOT CARE NORTHEAST LTD.
Children and Adult Services,Head of Adults,Third Party Payments,474101,Purchase of Care,07-Oct-2015,3031113-2271935,"1,010.24",ASCOT CARE NORTHEAST LTD.
Children and Adult Services,Head of Adults,Third Party Payments,474101,Purchase of Care,07-Oct-2015,3031113-2272051,"1,331.68",ASCOT CARE NORTHEAST LTD.
Children and Adult Services,Head of Adults,Third Party Payments,470101,Purchase of Care,07-Oct-2015,3031114-2268820,"1,102.00",ASHLEIGH HOUSE CARE HOME.
Children and Adult Services,Head of Adults,Third Party Payments,470101,Purchase of Care,07-Oct-2015,3031114-2269216,950.00,ASHLEIGH HOUSE CARE HOME.
Children and Adult Services,Head of Adults,Third Party Payments,470101,Purchase of Care,07-Oct-2015,3031114-2269371,950.00,ASHLEIGH HOUSE CARE HOME.
Children and Adult Services,Head of Adults,Third Party Payments,470101,Purchase of Care,07-Oct-2015,3031115-2268551,"3,564.00",AUTISM CARE UK (4) LTD.
Children and Adult Services,Head of Adults,Third Party Payments,470101,Purchase of Care,07-Oct-2015,3031115-2269324,"4,244.80",AUTISM CARE UK (4) LTD.
Children and Adult Services,Head of Adults,Third Party Payments,470101,Purchase of Care,07-Oct-2015,3031115-2269325,"1,742.44",AUTISM CARE UK (4) LTD.
Children and Adult Services,Head of Adults,Third Party Payments,470101,Purchase of Care,07-Oct-2015,3031115-2269326,568.96,AUTISM CARE UK (4) LTD.
Children and Adult Services,Head of Adults,Third Party Payments,470101,Purchase of Care,07-Oct-2015,3031116-2268419,"6,478.68",AUTISM NORTH.
Children and Adult Services,Head of Adults,Third Party Payments,470101,Purchase of Care,07-Oct-2015,3031117-2268701,"9,318.00",AUTISM NORTH.
Children and Adult Services,Head of Adults,Third Party Payments,470101,Purchase of Care,07-Oct-2015,3031118-2268035,"1,865.32",AYCLIFFE CARE HOME.
Children and Adult Services,Head of Adults,Third Party Payments,471101,Purchase of Care,07-Oct-2015,3031118-2268209,"1,939.12",AYCLIFFE CARE HOME.
Children and Adult Services,Head of Adults,Third Party Payments,471101,Purchase of Care,07-Oct-2015,3031118-2268267,"1,939.12",AYCLIFFE CARE HOME.
Children and Adult Services,Head of Adults,Third Party Payments,470101,Purchase of Care,07-Oct-2015,3031118-2268275,"1,865.32",AYCLIFFE CARE HOME.
Children and Adult Services,Head of Adults,Third Party Payments,470101,Purchase of Care,07-Oct-2015,3031118-2268592,"1,865.32",AYCLIFFE CARE HOME.
Children and Adult Services,Head of Adults,Third Party Payments,471101,Purchase of Care,07-Oct-2015,3031118-2268733,"1,939.12",AYCLIFFE CARE HOME.
Children and Adult Services,Head of Adults,Third Party Payments,470101,Purchase of Care,07-Oct-2015,3031118-2268831,"1,865.32",AYCLIFFE CARE HOME.
Children and Adult Services,Head of Adults,Third Party Payments,474101,Purchase of Care,07-Oct-2015,3031118-2268928,979.24,AYCLIFFE CARE HOME.
Children and Adult Services,Head of Adults,Third Party Payments,470101,Purchase of Care,07-Oct-2015,3031118-2269169,"1,865.32",AYCLIFFE CARE HOME.
Children and Adult Services,Head of Adults,Third Party Payments,474101,Purchase of Care,07-Oct-2015,3031118-2269260,"1,958.48",AYCLIFFE CARE HOME.
Children and Adult Services,Head of Adults,Third Party Payments,470101,Purchase of Care,07-Oct-2015,3031118-2269271,"1,865.32",AYCLIFFE CARE HOME.
Children and Adult Services,Head of Adults,Third Party Payments,470101,Purchase of Care,07-Oct-2015,3031118-2269494,"1,865.32",AYCLIFFE CARE HOME.
Children and Adult Services,Head of Adults,Third Party Payments,471101,Purchase of Care,07-Oct-2015,3031118-2269641,"1,939.12",AYCLIFFE CARE HOME.
Children and Adult Services,Head of Adults,Third Party Payments,474101,Purchase of Care,07-Oct-2015,3031118-2269642,979.24,AYCLIFFE CARE HOME.
Children and Adult Services,Head of Adults,Third Party Payments,471101,Purchase of Care,07-Oct-2015,3031118-2269780,"1,939.12",AYCLIFFE CARE HOME.
Children and Adult Services,Head of Adults,Third Party Payments,470101,Purchase of Care,07-Oct-2015,3031118-2269878,"1,865.32",AYCLIFFE CARE HOME.
Children and Adult Services,Head of Adults,Third Party Payments,474101,Purchase of Care,07-Oct-2015,3031118-2269924,"1,958.48",AYCLIFFE CARE HOME.
Children and Adult Services,Head of Adults,Third Party Payments,474101,Purchase of Care,07-Oct-2015,3031118-2269948,"1,958.48",AYCLIFFE CARE HOME.
Children and Adult Services,Head of Adults,Third Party Payments,470101,Purchase of Care,07-Oct-2015,3031118-2270147,"1,865.32",AYCLIFFE CARE HOME.
Children and Adult Services,Head of Adults,Third Party Payments,471101,Purchase of Care,07-Oct-2015,3031118-2270238,"1,939.12",AYCLIFFE CARE HOME.
Children and Adult Services,Head of Adults,Third Party Payments,471101,Purchase of Care,07-Oct-2015,3031118-2270393,"1,939.12",AYCLIFFE CARE HOME.
Children and Adult Services,Head of Adults,Third Party Payments,471101,Purchase of Care,07-Oct-2015,3031118-2270408,"1,939.12",AYCLIFFE CARE HOME.
Children and Adult Services,Head of Adults,Third Party Payments,470101,Purchase of Care,07-Oct-2015,3031118-2270420,"1,865.32",AYCLIFFE CARE HOME.
Children and Adult Services,Head of Adults,Third Party Payments,474101,Purchase of Care,07-Oct-2015,3031118-2270580,"1,818.58",AYCLIFFE CARE HOME.
Children and Adult Services,Head of Adults,Third Party Payments,471101,Purchase of Care,07-Oct-2015,3031118-2270680,"1,939.12",AYCLIFFE CARE HOME.
Children and Adult Services,Head of Adults,Third Party Payments,470101,Purchase of Care,07-Oct-2015,3031118-2270687,"1,865.32",AYCLIFFE CARE HOME.
Children and Adult Services,Head of Adults,Third Party Payments,471101,Purchase of Care,07-Oct-2015,3031118-2270774,"1,939.12",AYCLIFFE CARE HOME.
Children and Adult Services,Head of Adults,Third Party Payments,474101,Purchase of Care,07-Oct-2015,3031118-2270790,"1,958.48",AYCLIFFE CARE HOME.
Children and Adult Services,Head of Adults,Third Party Payments,471101,Purchase of Care,07-Oct-2015,3031118-2271000,"1,939.12",AYCLIFFE CARE HOME.
Children and Adult Services,Head of Adults,Third Party Payments,470101,Purchase of Care,07-Oct-2015,3031118-2271028,"1,865.32",AYCLIFFE CARE HOME.
Children and Adult Services,Head of Adults,Third Party Payments,474101,Purchase of Care,07-Oct-2015,3031118-2271074,979.24,AYCLIFFE CARE HOME.
Children and Adult Services,Head of Adults,Third Party Payments,470101,Purchase of Care,07-Oct-2015,3031118-2271274,932.68,AYCLIFFE CARE HOME.
Children and Adult Services,Head of Adults,Third Party Payments,471101,Purchase of Care,07-Oct-2015,3031118-2271335,"1,939.12",AYCLIFFE CARE HOME.
Children and Adult Services,Head of Adults,Third Party Payments,471101,Purchase of Care,07-Oct-2015,3031118-2271384,"1,939.12",AYCLIFFE CARE HOME.
Children and Adult Services,Head of Adults,Third Party Payments,470101,Purchase of Care,07-Oct-2015,3031118-2271457,"1,865.32",AYCLIFFE CARE HOME.
Children and Adult Services,Head of Adults,Third Party Payments,474101,Purchase of Care,07-Oct-2015,3031118-2271615,"1,958.48",AYCLIFFE CARE HOME.
Children and Adult Services,Head of Adults,Third Party Payments,474101,Purchase of Care,07-Oct-2015,3031118-2271635,"1,958.48",AYCLIFFE CARE HOME.
Children and Adult Services,Head of Adults,Third Party Payments,471101,Purchase of Care,07-Oct-2015,3031118-2272015,"1,939.12",AYCLIFFE CARE HOME.
Children and Adult Services,Head of Adults,Third Party Payments,470101,Purchase of Care,07-Oct-2015,3031118-2272037,"1,865.32",AYCLIFFE CARE HOME.
Children and Adult Services,Head of Adults,Third Party Payments,474101,Purchase of Care,07-Oct-2015,3031118-2272154,979.24,AYCLIFFE CARE HOME.
Children and Adult Services,Head of Adults,Third Party Payments,470101,Purchase of Care,07-Oct-2015,3031118-2272553,"1,532.22",AYCLIFFE CARE HOME.
Children and Adult Services,Head of Adults,Third Party Payments,470101,Purchase of Care,07-Oct-2015,3031119-2256578,"1,764.00",AYRESOME COURT NURSING HOME.
Children and Adult Services,Head of Adults,Third Party Payments,470101,Purchase of Care,07-Oct-2015,3031119-2261304,"1,764.00",AYRESOME COURT NURSING HOME.
Children and Adult Services,Head of Adults,Third Party Payments,470101,Purchase of Care,07-Oct-2015,3031119-2270138,"1,764.00",AYRESOME COURT NURSING HOME.
Children and Adult Services,Head of Adults,Third Party Payments,471101,Purchase of Care,07-Oct-2015,3031120-2268851,"1,642.20",BARCHESTER HEALTHCARE HOMES LTD.
Children and Adult Services,Head of Adults,Third Party Payments,471101,Purchase of Care,07-Oct-2015,3031121-2269110,"1,894.20",BARCHESTER HEALTHCARE HOMES LTD.
Children and Adult Services,Head of Adults,Third Party Payments,474101,Purchase of Care,07-Oct-2015,3031122-2269796,"1,984.00",BARCHESTER HEALTHCARE HOMES LTD.
Children and Adult Services,Head of Adults,Third Party Payments,474101,Purchase of Care,07-Oct-2015,3031123-2268092,"2,136.00",BARCHESTER HEALTHCARE HOMES LTD.
Children and Adult Services,Head of Adults,Third Party Payments,474101,Purchase of Care,07-Oct-2015,3031123-2268161,"1,958.48",BARCHESTER HEALTHCARE HOMES LTD.
Children and Adult Services,Head of Adults,Third Party Payments,474101,Purchase of Care,07-Oct-2015,3031123-2268289,"1,748.64",BARCHESTER HEALTHCARE HOMES LTD.
Children and Adult Services,Head of Adults,Third Party Payments,474101,Purchase of Care,07-Oct-2015,3031123-2268398,"1,958.48",BARCHESTER HEALTHCARE HOMES LTD.
Children and Adult Services,Head of Adults,Third Party Payments,474101,Purchase of Care,07-Oct-2015,3031123-2268614,"1,958.48",BARCHESTER HEALTHCARE HOMES LTD.
Children and Adult Services,Head of Adults,Third Party Payments,474101,Purchase of Care,07-Oct-2015,3031123-2268683,"1,958.48",BARCHESTER HEALTHCARE HOMES LTD.
Children and Adult Services,Head of Adults,Third Party Payments,474101,Purchase of Care,07-Oct-2015,3031123-2268892,"1,958.48",BARCHESTER HEALTHCARE HOMES LTD.
Children and Adult Services,Head of Adults,Third Party Payments,474101,Purchase of Care,07-Oct-2015,3031123-2268930,"1,958.48",BARCHESTER HEALTHCARE HOMES LTD.
Children and Adult Services,Head of Adults,Third Party Payments,474101,Purchase of Care,07-Oct-2015,3031123-2269395,"1,958.48",BARCHESTER HEALTHCARE HOMES LTD.
Children and Adult Services,Head of Adults,Third Party Payments,474101,Purchase of Care,07-Oct-2015,3031123-2269667,"1,958.48",BARCHESTER HEALTHCARE HOMES LTD.
Children and Adult Services,Head of Adults,Third Party Payments,474101,Purchase of Care,07-Oct-2015,3031123-2269771,"2,136.00",BARCHESTER HEALTHCARE HOMES LTD.
Children and Adult Services,Head of Adults,Third Party Payments,474101,Purchase of Care,07-Oct-2015,3031123-2269872,"1,958.48",BARCHESTER HEALTHCARE HOMES LTD.
Children and Adult Services,Head of Adults,Third Party Payments,474101,Purchase of Care,07-Oct-2015,3031123-2269885,"1,958.48",BARCHESTER HEALTHCARE HOMES LTD.
Children and Adult Services,Head of Adults,Third Party Payments,474101,Purchase of Care,07-Oct-2015,3031123-2269963,"2,136.00",BARCHESTER HEALTHCARE HOMES LTD.
Children and Adult Services,Head of Adults,Third Party Payments,474101,Purchase of Care,07-Oct-2015,3031123-2270044,979.24,BARCHESTER HEALTHCARE HOMES LTD.
Children and Adult Services,Head of Adults,Third Party Payments,474101,Purchase of Care,07-Oct-2015,3031123-2270109,"2,136.00",BARCHESTER HEALTHCARE HOMES LTD.
Children and Adult Services,Head of Adults,Third Party Payments,474101,Purchase of Care,07-Oct-2015,3031123-2270177,979.24,BARCHESTER HEALTHCARE HOMES LTD.
Children and Adult Services,Head of Adults,Third Party Payments,474101,Purchase of Care,07-Oct-2015,3031123-2270229,979.24,BARCHESTER HEALTHCARE HOMES LTD.
Children and Adult Services,Head of Adults,Third Party Payments,474101,Purchase of Care,07-Oct-2015,3031123-2270349,"1,958.48",BARCHESTER HEALTHCARE HOMES LTD.
Children and Adult Services,Head of Adults,Third Party Payments,474101,Purchase of Care,07-Oct-2015,3031123-2270502,"1,958.48",BARCHESTER HEALTHCARE HOMES LTD.
Children and Adult Services,Head of Adults,Third Party Payments,474101,Purchase of Care,07-Oct-2015,3031123-2270662,979.24,BARCHESTER HEALTHCARE HOMES LTD.
Children and Adult Services,Head of Adults,Third Party Payments,474101,Purchase of Care,07-Oct-2015,3031123-2270670,"1,958.48",BARCHESTER HEALTHCARE HOMES LTD.
Children and Adult Services,Head of Adults,Third Party Payments,470101,Purchase of Care,07-Oct-2015,3031123-2270717,"3,182.00",BARCHESTER HEALTHCARE HOMES LTD.
Children and Adult Services,Head of Adults,Third Party Payments,474101,Purchase of Care,07-Oct-2015,3031123-2270769,"1,958.48",BARCHESTER HEALTHCARE HOMES LTD.
Children and Adult Services,Head of Adults,Third Party Payments,474101,Purchase of Care,07-Oct-2015,3031123-2271308,"1,271.64",BARCHESTER HEALTHCARE HOMES LTD.
Children and Adult Services,Head of Adults,Third Party Payments,474101,Purchase of Care,07-Oct-2015,3031123-2271674,"2,600.00",BARCHESTER HEALTHCARE HOMES LTD.
Children and Adult Services,Head of Adults,Third Party Payments,474101,Purchase of Care,07-Oct-2015,3031123-2271853,979.24,BARCHESTER HEALTHCARE HOMES LTD.
Children and Adult Services,Head of Adults,Third Party Payments,474101,Purchase of Care,07-Oct-2015,3031123-2271913,"1,958.48",BARCHESTER HEALTHCARE HOMES LTD.
Children and Adult Services,Head of Adults,Third Party Payments,474101,Purchase of Care,07-Oct-2015,3031123-2271922,"1,958.48",BARCHESTER HEALTHCARE HOMES LTD.
Children and Adult Services,Head of Adults,Third Party Payments,474101,Purchase of Care,07-Oct-2015,3031123-2271977,"1,958.48",BARCHESTER HEALTHCARE HOMES LTD.
Children and Adult Services,Head of Adults,Third Party Payments,474101,Purchase of Care,07-Oct-2015,3031123-2272074,"1,958.48",BARCHESTER HEALTHCARE HOMES LTD.
Children and Adult Services,Head of Adults,Third Party Payments,474101,Purchase of Care,07-Oct-2015,3031123-2272116,"1,958.48",BARCHESTER HEALTHCARE HOMES LTD.
Children and Adult Services,Head of Adults,Third Party Payments,474101,Purchase of Care,07-Oct-2015,3031123-2272144,"1,958.48",BARCHESTER HEALTHCARE HOMES LTD.
Children and Adult Services,Head of Adults,Third Party Payments,471101,Purchase of Care,07-Oct-2015,3031124-2268917,"1,872.00",BARCHESTER HEALTHCARE HOMES LTD.
Children and Adult Services,Head of Adults,Third Party Payments,471101,Purchase of Care,07-Oct-2015,3031124-2269615,"1,872.00",BARCHESTER HEALTHCARE HOMES LTD.
Children and Adult Services,Head of Adults,Third Party Payments,471101,Purchase of Care,07-Oct-2015,3031124-2269678,"1,872.00",BARCHESTER HEALTHCARE HOMES LTD.
Children and Adult Services,Head of Adults,Third Party Payments,471101,Purchase of Care,07-Oct-2015,3031124-2270637,"1,872.00",BARCHESTER HEALTHCARE HOMES LTD.
Children and Adult Services,Head of Adults,Third Party Payments,471101,Purchase of Care,07-Oct-2015,3031124-2270922,"1,872.00",BARCHESTER HEALTHCARE HOMES LTD.
Children and Adult Services,Head of Adults,Third Party Payments,470101,Purchase of Care,07-Oct-2015,3031124-2270987,"1,816.00",BARCHESTER HEALTHCARE HOMES LTD.
Children and Adult Services,Head of Adults,Third Party Payments,471101,Purchase of Care,07-Oct-2015,3031124-2271294,"1,872.00",BARCHESTER HEALTHCARE HOMES LTD.
Children and Adult Services,Head of Adults,Third Party Payments,471101,Purchase of Care,07-Oct-2015,3031124-2271333,"1,872.00",BARCHESTER HEALTHCARE HOMES LTD.
Children and Adult Services,Head of Adults,Third Party Payments,474101,Purchase of Care,07-Oct-2015,3031125-2268078,"1,836.72",BARNES COURT NURSING HOME.
Children and Adult Services,Head of Adults,Third Party Payments,470101,Purchase of Care,07-Oct-2015,3031126-2267982,866.04,BEACONSFIELD COURT.
Children and Adult Services,Head of Adults,Third Party Payments,470101,Purchase of Care,07-Oct-2015,3031126-2269353,"1,865.32",BEACONSFIELD COURT.
Children and Adult Services,Head of Adults,Third Party Payments,470101,Purchase of Care,07-Oct-2015,3031126-2269481,"1,865.32",BEACONSFIELD COURT.
Children and Adult Services,Head of Adults,Third Party Payments,470101,Purchase of Care,07-Oct-2015,3031126-2269483,"1,865.32",BEACONSFIELD COURT.
Children and Adult Services,Head of Adults,Third Party Payments,470101,Purchase of Care,07-Oct-2015,3031126-2269719,"1,865.32",BEACONSFIELD COURT.
Children and Adult Services,Head of Adults,Third Party Payments,470101,Purchase of Care,07-Oct-2015,3031126-2270279,"1,398.99",BEACONSFIELD COURT.
Children and Adult Services,Head of Adults,Third Party Payments,470101,Purchase of Care,07-Oct-2015,3031126-2270528,"1,865.32",BEACONSFIELD COURT.
Children and Adult Services,Head of Adults,Third Party Payments,470101,Purchase of Care,07-Oct-2015,3031126-2270617,"1,865.32",BEACONSFIELD COURT.
Children and Adult Services,Head of Adults,Third Party Payments,470101,Purchase of Care,07-Oct-2015,3031126-2270652,"1,865.32",BEACONSFIELD COURT.
Children and Adult Services,Head of Adults,Third Party Payments,470101,Purchase of Care,07-Oct-2015,3031126-2270797,"1,865.32",BEACONSFIELD COURT.
Children and Adult Services,Head of Adults,Third Party Payments,470101,Purchase of Care,07-Oct-2015,3031126-2271262,"1,865.32",BEACONSFIELD COURT.
Children and Adult Services,Head of Adults,Third Party Payments,470101,Purchase of Care,07-Oct-2015,3031126-2271707,"1,865.32",BEACONSFIELD COURT.
Children and Adult Services,Head of Adults,Third Party Payments,470101,Purchase of Care,07-Oct-2015,3031126-2271764,"1,865.32",BEACONSFIELD COURT.
Children and Adult Services,Head of Adults,Third Party Payments,470101,Purchase of Care,07-Oct-2015,3031126-2271896,"1,865.32",BEACONSFIELD COURT.
Children and Adult Services,Head of Adults,Third Party Payments,470101,Purchase of Care,07-Oct-2015,3031126-2271901,"1,865.32",BEACONSFIELD COURT.
Children and Adult Services,Head of Adults,Third Party Payments,470101,Purchase of Care,07-Oct-2015,3031126-2271902,"1,865.32",BEACONSFIELD COURT.
Children and Adult Services,Head of Adults,Third Party Payments,470101,Purchase of Care,07-Oct-2015,3031126-2272036,"1,865.32",BEACONSFIELD COURT.
Children and Adult Services,Head of Adults,Third Party Payments,470101,Purchase of Care,07-Oct-2015,3031126-2272347,532.95,BEACONSFIELD COURT.
Children and Adult Services,Head of Adults,Third Party Payments,470101,Purchase of Care,07-Oct-2015,3031127-2268194,"1,865.32",BEAMISH RESIDENTIAL HOME.
Children and Adult Services,Head of Adults,Third Party Payments,470101,Purchase of Care,07-Oct-2015,3031127-2268458,"1,321.76",BEAMISH RESIDENTIAL HOME.
Children and Adult Services,Head of Adults,Third Party Payments,470101,Purchase of Care,07-Oct-2015,3031127-2268468,"1,300.80",BEAMISH RESIDENTIAL HOME.
Children and Adult Services,Head of Adults,Third Party Payments,470101,Purchase of Care,07-Oct-2015,3031127-2269023,"1,865.32",BEAMISH RESIDENTIAL HOME.
Children and Adult Services,Head of Adults,Third Party Payments,470101,Purchase of Care,07-Oct-2015,3031127-2269040,"1,352.56",BEAMISH RESIDENTIAL HOME.
Children and Adult Services,Head of Adults,Third Party Payments,470101,Purchase of Care,07-Oct-2015,3031127-2269883,"1,308.12",BEAMISH RESIDENTIAL HOME.
Children and Adult Services,Head of Adults,Third Party Payments,470101,Purchase of Care,07-Oct-2015,3031127-2270009,"1,865.32",BEAMISH RESIDENTIAL HOME.
Children and Adult Services,Head of Adults,Third Party Payments,470101,Purchase of Care,07-Oct-2015,3031127-2270472,836.44,BEAMISH RESIDENTIAL HOME.
Children and Adult Services,Head of Adults,Third Party Payments,470101,Purchase of Care,07-Oct-2015,3031127-2270642,"1,223.92",BEAMISH RESIDENTIAL HOME.
Children and Adult Services,Head of Adults,Third Party Payments,470101,Purchase of Care,07-Oct-2015,3031127-2271089,"1,865.32",BEAMISH RESIDENTIAL HOME.
Children and Adult Services,Head of Adults,Third Party Payments,470101,Purchase of Care,07-Oct-2015,3031127-2271144,"1,865.32",BEAMISH RESIDENTIAL HOME.
Children and Adult Services,Head of Adults,Third Party Payments,470101,Purchase of Care,07-Oct-2015,3031127-2271362,932.68,BEAMISH RESIDENTIAL HOME.
Children and Adult Services,Head of Adults,Third Party Payments,470101,Purchase of Care,07-Oct-2015,3031127-2271560,"1,865.32",BEAMISH RESIDENTIAL HOME.
Children and Adult Services,Head of Adults,Third Party Payments,470101,Purchase of Care,07-Oct-2015,3031127-2271881,"1,089.32",BEAMISH RESIDENTIAL HOME.
Children and Adult Services,Head of Adults,Third Party Payments,470101,Purchase of Care,07-Oct-2015,3031127-2271959,"1,865.32",BEAMISH RESIDENTIAL HOME.
Children and Adult Services,Head of Adults,Third Party Payments,470101,Purchase of Care,07-Oct-2015,3031127-2272038,"1,865.32",BEAMISH RESIDENTIAL HOME.
Children and Adult Services,Head of Adults,Third Party Payments,470101,Purchase of Care,07-Oct-2015,3031127-2272068,"1,353.19",BEAMISH RESIDENTIAL HOME.
Children and Adult Services,Head of Adults,Third Party Payments,471101,Purchase of Care,07-Oct-2015,3031128-2268318,"1,733.24",BEAULEY LODGE CARE HOME.
Children and Adult Services,Head of Adults,Third Party Payments,470101,Purchase of Care,07-Oct-2015,3031128-2269085,"1,073.08",BEAULEY LODGE CARE HOME.
Children and Adult Services,Head of Adults,Third Party Payments,471101,Purchase of Care,07-Oct-2015,3031128-2269585,"1,242.44",BEAULEY LODGE CARE HOME.
Children and Adult Services,Head of Adults,Third Party Payments,470101,Purchase of Care,07-Oct-2015,3031128-2270261,"1,659.60",BEAULEY LODGE CARE HOME.
Children and Adult Services,Head of Adults,Third Party Payments,470101,Purchase of Care,07-Oct-2015,3031128-2270277,"1,659.60",BEAULEY LODGE CARE HOME.
Children and Adult Services,Head of Adults,Third Party Payments,471101,Purchase of Care,07-Oct-2015,3031128-2271178,"1,238.02",BEAULEY LODGE CARE HOME.
Children and Adult Services,Head of Adults,Third Party Payments,470101,Purchase of Care,07-Oct-2015,3031128-2271819,"1,659.60",BEAULEY LODGE CARE HOME.
Children and Adult Services,Head of Adults,Third Party Payments,470101,Purchase of Care,07-Oct-2015,3031129-2268498,"1,970.88",BEDDELL HOUSE.
Children and Adult Services,Head of Adults,Third Party Payments,470101,Purchase of Care,07-Oct-2015,3031129-2268586,"1,970.88",BEDDELL HOUSE.
Children and Adult Services,Head of Adults,Third Party Payments,470101,Purchase of Care,07-Oct-2015,3031129-2268597,"1,970.88",BEDDELL HOUSE.
Children and Adult Services,Head of Adults,Third Party Payments,470101,Purchase of Care,07-Oct-2015,3031129-2269045,"1,970.88",BEDDELL HOUSE.
Children and Adult Services,Head of Adults,Third Party Payments,470101,Purchase of Care,07-Oct-2015,3031129-2269148,"1,970.88",BEDDELL HOUSE.
Children and Adult Services,Head of Adults,Third Party Payments,470101,Purchase of Care,07-Oct-2015,3031129-2269545,"1,618.93",BEDDELL HOUSE.
Children and Adult Services,Head of Adults,Third Party Payments,470101,Purchase of Care,07-Oct-2015,3031129-2269552,"1,970.88",BEDDELL HOUSE.
Children and Adult Services,Head of Adults,Third Party Payments,470101,Purchase of Care,07-Oct-2015,3031129-2269768,"1,970.88",BEDDELL HOUSE.
Children and Adult Services,Head of Adults,Third Party Payments,470101,Purchase of Care,07-Oct-2015,3031129-2270028,"1,970.88",BEDDELL HOUSE.
Children and Adult Services,Head of Adults,Third Party Payments,470101,Purchase of Care,07-Oct-2015,3031129-2270852,"1,970.88",BEDDELL HOUSE.
Children and Adult Services,Head of Adults,Third Party Payments,470101,Purchase of Care,07-Oct-2015,3031129-2271295,"1,970.88",BEDDELL HOUSE.
Children and Adult Services,Head of Adults,Third Party Payments,470101,Purchase of Care,07-Oct-2015,3031129-2271843,"1,970.88",BEDDELL HOUSE.
Children and Adult Services,Head of Adults,Third Party Payments,470101,Purchase of Care,07-Oct-2015,3031129-2272016,"1,970.88",BEDDELL HOUSE.
Children and Adult Services,Head of Adults,Third Party Payments,470101,Purchase of Care,07-Oct-2015,3031130-2269026,"1,824.00",BELLE VUE HEALTHCARE LTD.
Children and Adult Services,Head of Adults,Third Party Payments,470101,Purchase of Care,07-Oct-2015,3031131-2268130,"1,548.52",BENAMY HOUSE.
Children and Adult Services,Head of Adults,Third Party Payments,470101,Purchase of Care,07-Oct-2015,3031131-2268134,"1,548.52",BENAMY HOUSE.
Children and Adult Services,Head of Adults,Third Party Payments,470101,Purchase of Care,07-Oct-2015,3031131-2268192,"1,870.32",BENAMY HOUSE.
Children and Adult Services,Head of Adults,Third Party Payments,470101,Purchase of Care,07-Oct-2015,3031131-2268205,"1,870.32",BENAMY HOUSE.
Children and Adult Services,Head of Adults,Third Party Payments,470101,Purchase of Care,07-Oct-2015,3031131-2268273,"1,548.52",BENAMY HOUSE.
Children and Adult Services,Head of Adults,Third Party Payments,474101,Purchase of Care,07-Oct-2015,3031132-2270514,949.60,BENFIELD HALL RESIDENTIAL CARE.
Children and Adult Services,Head of Adults,Third Party Payments,474101,Purchase of Care,07-Oct-2015,3031132-2271460,949.60,BENFIELD HALL RESIDENTIAL CARE.
Children and Adult Services,Head of Adults,Third Party Payments,474101,Purchase of Care,07-Oct-2015,3031132-2271462,949.60,BENFIELD HALL RESIDENTIAL CARE.
Children and Adult Services,Head of Adults,Third Party Payments,474101,Purchase of Care,07-Oct-2015,3031132-2271464,"1,899.16",BENFIELD HALL RESIDENTIAL CARE.
Children and Adult Services,Head of Adults,Third Party Payments,474101,Purchase of Care,07-Oct-2015,3031132-2271466,949.60,BENFIELD HALL RESIDENTIAL CARE.
Children and Adult Services,Head of Adults,Third Party Payments,474101,Purchase of Care,07-Oct-2015,3031132-2271468,"1,393.96",BENFIELD HALL RESIDENTIAL CARE.
Children and Adult Services,Head of Adults,Third Party Payments,474101,Purchase of Care,07-Oct-2015,3031132-2271470,949.60,BENFIELD HALL RESIDENTIAL CARE.
Children and Adult Services,Head of Adults,Third Party Payments,474101,Purchase of Care,07-Oct-2015,3031132-2271472,"1,899.16",BENFIELD HALL RESIDENTIAL CARE.
Children and Adult Services,Head of Adults,Third Party Payments,470101,Purchase of Care,07-Oct-2015,3031132-2271947,"1,808.20",BENFIELD HALL RESIDENTIAL CARE.
Children and Adult Services,Head of Adults,Third Party Payments,478101,Purchase of Care,07-Oct-2015,3031133-2269197,"1,232.44",REDACTED - PAYMENT TO INDIVIDUAL
Children and Adult Services,Head of Adults,Third Party Payments,478101,Purchase of Care,07-Oct-2015,3031133-2270262,"1,232.44",REDACTED - PAYMENT TO INDIVIDUAL
Children and Adult Services,Head of Adults,Third Party Payments,470101,Purchase of Care,07-Oct-2015,3031134-2268292,"1,865.32",BISHOPSGATE LODGE.
Children and Adult Services,Head of Adults,Third Party Payments,474101,Purchase of Care,07-Oct-2015,3031134-2268604,"1,958.48",BISHOPSGATE LODGE.
Children and Adult Services,Head of Adults,Third Party Payments,470101,Purchase of Care,07-Oct-2015,3031134-2268756,"1,865.32",BISHOPSGATE LODGE.
Children and Adult Services,Head of Adults,Third Party Payments,470101,Purchase of Care,07-Oct-2015,3031134-2268885,"1,865.32",BISHOPSGATE LODGE.
Children and Adult Services,Head of Adults,Third Party Payments,470101,Purchase of Care,07-Oct-2015,3031134-2268968,"1,865.32",BISHOPSGATE LODGE.
Children and Adult Services,Head of Adults,Third Party Payments,474101,Purchase of Care,07-Oct-2015,3031134-2269201,"1,958.48",BISHOPSGATE LODGE.
Children and Adult Services,Head of Adults,Third Party Payments,474101,Purchase of Care,07-Oct-2015,3031134-2269227,"1,958.48",BISHOPSGATE LODGE.
Children and Adult Services,Head of Adults,Third Party Payments,470101,Purchase of Care,07-Oct-2015,3031134-2269284,"1,865.32",BISHOPSGATE LODGE.
Children and Adult Services,Head of Adults,Third Party Payments,470101,Purchase of Care,07-Oct-2015,3031134-2269394,"1,865.32",BISHOPSGATE LODGE.
Children and Adult Services,Head of Adults,Third Party Payments,471101,Purchase of Care,07-Oct-2015,3031134-2269443,"1,939.12",BISHOPSGATE LODGE.
Children and Adult Services,Head of Adults,Third Party Payments,470101,Purchase of Care,07-Oct-2015,3031134-2269614,"1,865.32",BISHOPSGATE LODGE.
Children and Adult Services,Head of Adults,Third Party Payments,471101,Purchase of Care,07-Oct-2015,3031134-2269670,"1,939.12",BISHOPSGATE LODGE.
Children and Adult Services,Head of Adults,Debtors,930135,Debtor Residential Care - IC+ Rehabilitation,07-Oct-2015,3031134-2269758,621.09,BISHOPSGATE LODGE.
Children and Adult Services,Head of Adults,Third Party Payments,470101,Purchase of Care,07-Oct-2015,3031134-2269782,"1,865.32",BISHOPSGATE LODGE.
Children and Adult Services,Head of Adults,Third Party Payments,470101,Purchase of Care,07-Oct-2015,3031134-2269817,"1,865.32",BISHOPSGATE LODGE.
Children and Adult Services,Head of Adults,Third Party Payments,471101,Purchase of Care,07-Oct-2015,3031134-2269909,"1,939.12",BISHOPSGATE LODGE.
Children and Adult Services,Head of Adults,Third Party Payments,474101,Purchase of Care,07-Oct-2015,3031134-2269974,"1,958.48",BISHOPSGATE LODGE.
Children and Adult Services,Head of Adults,Third Party Payments,470101,Purchase of Care,07-Oct-2015,3031134-2269976,"1,865.32",BISHOPSGATE LODGE.
Children and Adult Services,Head of Adults,Third Party Payments,470102,Purchase of Care,07-Oct-2015,3031134-2270078,"1,242.18",BISHOPSGATE LODGE.
Children and Adult Services,Head of Adults,Third Party Payments,471101,Purchase of Care,07-Oct-2015,3031134-2270292,"1,939.12",BISHOPSGATE LODGE.
Children and Adult Services,Head of Adults,Third Party Payments,470101,Purchase of Care,07-Oct-2015,3031134-2270406,"1,865.32",BISHOPSGATE LODGE.
Children and Adult Services,Head of Adults,Third Party Payments,470101,Purchase of Care,07-Oct-2015,3031134-2270500,"1,865.32",BISHOPSGATE LODGE.
Children and Adult Services,Head of Adults,Third Party Payments,474101,Purchase of Care,07-Oct-2015,3031134-2271035,"1,958.48",BISHOPSGATE LODGE.
Children and Adult Services,Head of Adults,Third Party Payments,470101,Purchase of Care,07-Oct-2015,3031134-2271149,"1,865.32",BISHOPSGATE LODGE.
Children and Adult Services,Head of Adults,Third Party Payments,470101,Purchase of Care,07-Oct-2015,3031134-2271174,732.80,BISHOPSGATE LODGE.
Children and Adult Services,Head of Adults,Third Party Payments,470101,Purchase of Care,07-Oct-2015,3031134-2271229,"1,865.32",BISHOPSGATE LODGE.
Children and Adult Services,Head of Adults,Third Party Payments,470101,Purchase of Care,07-Oct-2015,3031134-2271348,"1,865.32",BISHOPSGATE LODGE.
Children and Adult Services,Head of Adults,Third Party Payments,470101,Purchase of Care,07-Oct-2015,3031134-2271435,"1,865.32",BISHOPSGATE LODGE.
Children and Adult Services,Head of Adults,Third Party Payments,470101,Purchase of Care,07-Oct-2015,3031134-2271541,"1,665.46",BISHOPSGATE LODGE.
Children and Adult Services,Head of Adults,Third Party Payments,470101,Purchase of Care,07-Oct-2015,3031134-2271908,"1,865.32",BISHOPSGATE LODGE.
Children and Adult Services,Head of Adults,Third Party Payments,470101,Purchase of Care,07-Oct-2015,3031134-2271944,"1,865.32",BISHOPSGATE LODGE.
Children and Adult Services,Head of Adults,Third Party Payments,471101,Purchase of Care,07-Oct-2015,3031134-2272009,"1,939.12",BISHOPSGATE LODGE.
Children and Adult Services,Head of Adults,Third Party Payments,470101,Purchase of Care,07-Oct-2015,3031135-2270721,"2,600.00",BONHOMIE HOUSE.
Children and Adult Services,Head of Adults,Third Party Payments,470101,Purchase of Care,07-Oct-2015,3031136-2268359,"3,672.00",BOWES COURT CARE HOME.
Children and Adult Services,Head of Adults,Third Party Payments,474101,Purchase of Care,07-Oct-2015,3031136-2268412,"4,800.00",BOWES COURT CARE HOME.
Children and Adult Services,Head of Adults,Third Party Payments,474101,Purchase of Care,07-Oct-2015,3031136-2268433,"2,400.00",BOWES COURT CARE HOME.
Children and Adult Services,Head of Adults,Third Party Payments,470101,Purchase of Care,07-Oct-2015,3031136-2269354,"2,300.00",BOWES COURT CARE HOME.
Children and Adult Services,Head of Adults,Third Party Payments,470101,Purchase of Care,07-Oct-2015,3031136-2269355,"5,082.00",BOWES COURT CARE HOME.
Children and Adult Services,Head of Adults,Third Party Payments,470101,Purchase of Care,07-Oct-2015,3031136-2269514,"2,222.00",BOWES COURT CARE HOME.
Children and Adult Services,Head of Adults,Third Party Payments,470101,Purchase of Care,07-Oct-2015,3031136-2269515,"1,008.00",BOWES COURT CARE HOME.
Children and Adult Services,Head of Adults,Third Party Payments,474101,Purchase of Care,07-Oct-2015,3031136-2269750,"1,905.84",BOWES COURT CARE HOME.
Children and Adult Services,Head of Adults,Third Party Payments,474101,Purchase of Care,07-Oct-2015,3031136-2271291,"2,525.00",BOWES COURT CARE HOME.
Children and Adult Services,Head of Adults,Third Party Payments,474101,Purchase of Care,07-Oct-2015,3031136-2272079,"2,500.00",BOWES COURT CARE HOME.
Children and Adult Services,Head of Adults,Third Party Payments,470101,Purchase of Care,07-Oct-2015,3031137-2268362,"2,033.04",BRANCEPETH COURT.
Children and Adult Services,Head of Adults,Third Party Payments,470101,Purchase of Care,07-Oct-2015,3031137-2268363,"2,033.04",BRANCEPETH COURT.
Children and Adult Services,Head of Adults,Third Party Payments,470101,Purchase of Care,07-Oct-2015,3031137-2268364,"2,033.04",BRANCEPETH COURT.
Children and Adult Services,Head of Adults,Third Party Payments,470101,Purchase of Care,07-Oct-2015,3031137-2268365,"2,033.04",BRANCEPETH COURT.
Children and Adult Services,Head of Adults,Third Party Payments,474101,Purchase of Care,07-Oct-2015,3031137-2268516,"2,064.08",BRANCEPETH COURT.
Children and Adult Services,Head of Adults,Third Party Payments,470101,Purchase of Care,07-Oct-2015,3031137-2268588,"2,033.04",BRANCEPETH COURT.
Children and Adult Services,Head of Adults,Third Party Payments,474101,Purchase of Care,07-Oct-2015,3031137-2268637,"2,064.08",BRANCEPETH COURT.
Children and Adult Services,Head of Adults,Third Party Payments,470101,Purchase of Care,07-Oct-2015,3031137-2268758,"2,033.04",BRANCEPETH COURT.
Children and Adult Services,Head of Adults,Third Party Payments,470101,Purchase of Care,07-Oct-2015,3031137-2269640,"1,970.88",BRANCEPETH COURT.
Children and Adult Services,Head of Adults,Third Party Payments,474101,Purchase of Care,07-Oct-2015,3031137-2269832,"2,064.08",BRANCEPETH COURT.
Children and Adult Services,Head of Adults,Third Party Payments,470101,Purchase of Care,07-Oct-2015,3031137-2269853,"1,970.88",BRANCEPETH COURT.
Children and Adult Services,Head of Adults,Third Party Payments,470101,Purchase of Care,07-Oct-2015,3031137-2270340,"1,970.88",BRANCEPETH COURT.
Children and Adult Services,Head of Adults,Third Party Payments,474101,Purchase of Care,07-Oct-2015,3031137-2270561,"2,064.08",BRANCEPETH COURT.
Children and Adult Services,Head of Adults,Third Party Payments,470101,Purchase of Care,07-Oct-2015,3031137-2270937,"2,033.04",BRANCEPETH COURT.
Children and Adult Services,Head of Adults,Third Party Payments,470101,Purchase of Care,07-Oct-2015,3031137-2271065,"1,970.88",BRANCEPETH COURT.
Children and Adult Services,Head of Adults,Third Party Payments,470101,Purchase of Care,07-Oct-2015,3031137-2271105,"1,970.88",BRANCEPETH COURT.
Children and Adult Services,Head of Adults,Third Party Payments,470101,Purchase of Care,07-Oct-2015,3031137-2271244,"2,033.04",BRANCEPETH COURT.
Children and Adult Services,Head of Adults,Third Party Payments,470101,Purchase of Care,07-Oct-2015,3031137-2272020,"1,970.88",BRANCEPETH COURT.
Children and Adult Services,Head of Adults,Third Party Payments,470101,Purchase of Care,07-Oct-2015,3031137-2272260,844.66,BRANCEPETH COURT.
Children and Adult Services,Head of Adults,Third Party Payments,470101,Purchase of Care,07-Oct-2015,3031137-2272261,"2,033.04",BRANCEPETH COURT.
Children and Adult Services,Head of Adults,Third Party Payments,474101,Purchase of Care,07-Oct-2015,3031137-2272418,"2,241.56",BRANCEPETH COURT.
Children and Adult Services,Head of Adults,Third Party Payments,470101,Purchase of Care,07-Oct-2015,3031138-2268028,"2,157.36",BRIDGEWOOD TRUST LTD.
Children and Adult Services,Head of Adults,Third Party Payments,470101,Purchase of Care,07-Oct-2015,3031139-2268226,"1,465.68",BROOMHOUSE CARE LTD.
Children and Adult Services,Head of Adults,Third Party Payments,471101,Purchase of Care,07-Oct-2015,3031139-2268717,"1,086.96",BROOMHOUSE CARE LTD.
Children and Adult Services,Head of Adults,Third Party Payments,470101,Purchase of Care,07-Oct-2015,3031139-2268866,"1,465.68",BROOMHOUSE CARE LTD.
Children and Adult Services,Head of Adults,Third Party Payments,470101,Purchase of Care,07-Oct-2015,3031139-2269116,"1,465.68",BROOMHOUSE CARE LTD.
Children and Adult Services,Head of Adults,Third Party Payments,471101,Purchase of Care,07-Oct-2015,3031139-2269160,"1,590.44",BROOMHOUSE CARE LTD.
Children and Adult Services,Head of Adults,Third Party Payments,470101,Purchase of Care,07-Oct-2015,3031139-2269625,"1,970.88",BROOMHOUSE CARE LTD.
Children and Adult Services,Head of Adults,Third Party Payments,471101,Purchase of Care,07-Oct-2015,3031139-2269919,"1,339.24",BROOMHOUSE CARE LTD.
Children and Adult Services,Head of Adults,Third Party Payments,470101,Purchase of Care,07-Oct-2015,3031139-2270154,"1,226.08",BROOMHOUSE CARE LTD.
Children and Adult Services,Head of Adults,Third Party Payments,471101,Purchase of Care,07-Oct-2015,3031139-2270445,"2,043.64",BROOMHOUSE CARE LTD.
Children and Adult Services,Head of Adults,Third Party Payments,471101,Purchase of Care,07-Oct-2015,3031139-2270868,"1,224.16",BROOMHOUSE CARE LTD.
Children and Adult Services,Head of Adults,Third Party Payments,470101,Purchase of Care,07-Oct-2015,3031139-2270923,"1,354.00",BROOMHOUSE CARE LTD.
Children and Adult Services,Head of Adults,Third Party Payments,471101,Purchase of Care,07-Oct-2015,3031139-2270924,"2,043.64",BROOMHOUSE CARE LTD.
Children and Adult Services,Head of Adults,Third Party Payments,471101,Purchase of Care,07-Oct-2015,3031139-2271744,"2,043.64",BROOMHOUSE CARE LTD.
Children and Adult Services,Head of Adults,Third Party Payments,471101,Purchase of Care,07-Oct-2015,3031139-2271912,"2,043.64",BROOMHOUSE CARE LTD.
Children and Adult Services,Head of Adults,Third Party Payments,474101,Purchase of Care,07-Oct-2015,3031140-2268050,"1,950.52",BUPA CARE SERVICES.
Children and Adult Services,Head of Adults,Third Party Payments,474101,Purchase of Care,07-Oct-2015,3031140-2268059,"1,628.72",BUPA CARE SERVICES.
Children and Adult Services,Head of Adults,Third Party Payments,474101,Purchase of Care,07-Oct-2015,3031141-2268914,"1,715.08",BURLINGTON CARE LTD T/A MOORLANDS CARE HOME.
Children and Adult Services,Head of Adults,Third Party Payments,478101,Purchase of Care,07-Oct-2015,3031142-2269308,"1,371.04",REDACTED - PAYMENT TO INDIVIDUAL
Children and Adult Services,Head of Adults,Third Party Payments,471101,Purchase of Care,07-Oct-2015,3031143-2270335,"1,678.40",CARE UK..
Children and Adult Services,Head of Adults,Third Party Payments,471101,Purchase of Care,07-Oct-2015,3031143-2271337,"1,678.40",CARE UK..
Children and Adult Services,Head of Adults,Third Party Payments,470101,Purchase of Care,07-Oct-2015,3031144-2268985,"1,824.00",CARE UK..
Children and Adult Services,Head of Adults,Third Party Payments,474101,Purchase of Care,07-Oct-2015,3031144-2270282,"1,824.00",CARE UK..
Children and Adult Services,Head of Adults,Third Party Payments,470101,Purchase of Care,07-Oct-2015,3031145-2268191,"2,461.68",CARELINE LIFESTYLES LTD.
Children and Adult Services,Head of Adults,Third Party Payments,474101,Purchase of Care,07-Oct-2015,3031146-2270606,"2,300.00",CARELINE LIFESTYLES LTD.
Children and Adult Services,Head of Adults,Third Party Payments,474101,Purchase of Care,07-Oct-2015,3031146-2270705,"5,400.00",CARELINE LIFESTYLES LTD.
Children and Adult Services,Head of Adults,Third Party Payments,474101,Purchase of Care,07-Oct-2015,3031146-2272012,"3,908.00",CARELINE LIFESTYLES LTD.
Children and Adult Services,Head of Adults,Third Party Payments,474101,Purchase of Care,07-Oct-2015,3031147-2268589,"2,808.00",CARELINE LIFESTYLES LTD.
Children and Adult Services,Head of Adults,Third Party Payments,474101,Purchase of Care,07-Oct-2015,3031147-2268606,"4,800.00",CARELINE LIFESTYLES LTD.
Children and Adult Services,Head of Adults,Third Party Payments,470101,Purchase of Care,07-Oct-2015,3031148-2268806,"2,500.00",CARELINE LIFESTYLES LTD.
Children and Adult Services,Head of Adults,Third Party Payments,474101,Purchase of Care,07-Oct-2015,3031148-2270914,"2,694.00",CARELINE LIFESTYLES LTD.
Children and Adult Services,Head of Adults,Third Party Payments,470101,Purchase of Care,07-Oct-2015,3031149-2268256,"1,325.64",CHILTON CARE CENTRE.
Children and Adult Services,Head of Adults,Third Party Payments,471101,Purchase of Care,07-Oct-2015,3031149-2268299,"1,538.44",CHILTON CARE CENTRE.
Children and Adult Services,Head of Adults,Third Party Payments,471101,Purchase of Care,07-Oct-2015,3031149-2268304,"1,538.44",CHILTON CARE CENTRE.
Children and Adult Services,Head of Adults,Third Party Payments,470101,Purchase of Care,07-Oct-2015,3031149-2268618,"1,970.88",CHILTON CARE CENTRE.
Children and Adult Services,Head of Adults,Third Party Payments,471101,Purchase of Care,07-Oct-2015,3031149-2268699,"1,538.44",CHILTON CARE CENTRE.
Children and Adult Services,Head of Adults,Third Party Payments,470101,Purchase of Care,07-Oct-2015,3031149-2268803,"1,476.52",CHILTON CARE CENTRE.
Children and Adult Services,Head of Adults,Third Party Payments,471101,Purchase of Care,07-Oct-2015,3031149-2268855,"2,043.64",CHILTON CARE CENTRE.
Children and Adult Services,Head of Adults,Third Party Payments,471101,Purchase of Care,07-Oct-2015,3031149-2268962,"2,043.64",CHILTON CARE CENTRE.
Children and Adult Services,Head of Adults,Third Party Payments,471101,Purchase of Care,07-Oct-2015,3031149-2269018,"1,230.60",CHILTON CARE CENTRE.
Children and Adult Services,Head of Adults,Third Party Payments,471101,Purchase of Care,07-Oct-2015,3031149-2269135,"1,538.44",CHILTON CARE CENTRE.
Children and Adult Services,Head of Adults,Third Party Payments,470101,Purchase of Care,07-Oct-2015,3031149-2269239,"1,970.88",CHILTON CARE CENTRE.
Children and Adult Services,Head of Adults,Third Party Payments,471101,Purchase of Care,07-Oct-2015,3031149-2269296,"2,043.64",CHILTON CARE CENTRE.
Children and Adult Services,Head of Adults,Third Party Payments,470101,Purchase of Care,07-Oct-2015,3031149-2269639,"1,421.56",CHILTON CARE CENTRE.
Children and Adult Services,Head of Adults,Third Party Payments,470101,Purchase of Care,07-Oct-2015,3031149-2270019,"1,406.76",CHILTON CARE CENTRE.
Children and Adult Services,Head of Adults,Third Party Payments,470101,Purchase of Care,07-Oct-2015,3031149-2270055,"1,387.84",CHILTON CARE CENTRE.
Children and Adult Services,Head of Adults,Third Party Payments,471101,Purchase of Care,07-Oct-2015,3031149-2270228,"2,043.64",CHILTON CARE CENTRE.
Children and Adult Services,Head of Adults,Third Party Payments,471101,Purchase of Care,07-Oct-2015,3031149-2270318,"1,203.84",CHILTON CARE CENTRE.
Children and Adult Services,Head of Adults,Third Party Payments,471101,Purchase of Care,07-Oct-2015,3031149-2270351,"1,538.44",CHILTON CARE CENTRE.
Children and Adult Services,Head of Adults,Third Party Payments,471101,Purchase of Care,07-Oct-2015,3031149-2270513,"2,043.64",CHILTON CARE CENTRE.
Children and Adult Services,Head of Adults,Third Party Payments,471101,Purchase of Care,07-Oct-2015,3031149-2270640,"1,443.08",CHILTON CARE CENTRE.
Children and Adult Services,Head of Adults,Third Party Payments,470101,Purchase of Care,07-Oct-2015,3031149-2270827,"1,970.88",CHILTON CARE CENTRE.
Children and Adult Services,Head of Adults,Third Party Payments,470101,Purchase of Care,07-Oct-2015,3031149-2271081,"1,465.68",CHILTON CARE CENTRE.
Children and Adult Services,Head of Adults,Third Party Payments,470101,Purchase of Care,07-Oct-2015,3031149-2271204,"1,437.96",CHILTON CARE CENTRE.
Children and Adult Services,Head of Adults,Third Party Payments,471101,Purchase of Care,07-Oct-2015,3031149-2271234,"1,512.56",CHILTON CARE CENTRE.
Children and Adult Services,Head of Adults,Third Party Payments,470101,Purchase of Care,07-Oct-2015,3031149-2271664,"1,441.80",CHILTON CARE CENTRE.
Children and Adult Services,Head of Adults,Third Party Payments,470101,Purchase of Care,07-Oct-2015,3031149-2271671,"1,465.68",CHILTON CARE CENTRE.
Children and Adult Services,Head of Adults,Third Party Payments,471101,Purchase of Care,07-Oct-2015,3031149-2271770,"1,970.65",CHILTON CARE CENTRE.
Children and Adult Services,Head of Adults,Third Party Payments,471101,Purchase of Care,07-Oct-2015,3031149-2271836,"1,173.72",CHILTON CARE CENTRE.
Children and Adult Services,Head of Adults,Third Party Payments,470101,Purchase of Care,07-Oct-2015,3031149-2272296,"1,407.77",CHILTON CARE CENTRE.
Children and Adult Services,Head of Adults,Third Party Payments,470101,Purchase of Care,07-Oct-2015,3031149-2272300,703.88,CHILTON CARE CENTRE.
Children and Adult Services,Head of Adults,Third Party Payments,470101,Purchase of Care,07-Oct-2015,3031150-2268459,"1,970.88",CHURCH VIEW CARE HOME.
Children and Adult Services,Head of Adults,Third Party Payments,471101,Purchase of Care,07-Oct-2015,3031150-2268460,"2,043.64",CHURCH VIEW CARE HOME.
Children and Adult Services,Head of Adults,Third Party Payments,470101,Purchase of Care,07-Oct-2015,3031150-2268564,"1,970.88",CHURCH VIEW CARE HOME.
Children and Adult Services,Head of Adults,Third Party Payments,470101,Purchase of Care,07-Oct-2015,3031150-2268949,"1,970.88",CHURCH VIEW CARE HOME.
Children and Adult Services,Head of Adults,Third Party Payments,471101,Purchase of Care,07-Oct-2015,3031150-2269161,"2,043.64",CHURCH VIEW CARE HOME.
Children and Adult Services,Head of Adults,Third Party Payments,471101,Purchase of Care,07-Oct-2015,3031150-2269217,"2,043.64",CHURCH VIEW CARE HOME.
Children and Adult Services,Head of Adults,Third Party Payments,471101,Purchase of Care,07-Oct-2015,3031150-2269342,"2,043.64",CHURCH VIEW CARE HOME.
Children and Adult Services,Head of Adults,Third Party Payments,471101,Purchase of Care,07-Oct-2015,3031150-2269343,717.92,CHURCH VIEW CARE HOME.
Children and Adult Services,Head of Adults,Third Party Payments,470101,Purchase of Care,07-Oct-2015,3031150-2269485,"1,970.88",CHURCH VIEW CARE HOME.
Children and Adult Services,Head of Adults,Third Party Payments,470101,Purchase of Care,07-Oct-2015,3031150-2269653,"1,970.88",CHURCH VIEW CARE HOME.
Children and Adult Services,Head of Adults,Third Party Payments,471101,Purchase of Care,07-Oct-2015,3031150-2269672,"2,043.64",CHURCH VIEW CARE HOME.
Children and Adult Services,Head of Adults,Third Party Payments,471101,Purchase of Care,07-Oct-2015,3031150-2269749,"2,043.64",CHURCH VIEW CARE HOME.
Children and Adult Services,Head of Adults,Third Party Payments,471101,Purchase of Care,07-Oct-2015,3031150-2269770,"2,043.64",CHURCH VIEW CARE HOME.
Children and Adult Services,Head of Adults,Third Party Payments,471101,Purchase of Care,07-Oct-2015,3031150-2269875,"2,043.64",CHURCH VIEW CARE HOME.
Children and Adult Services,Head of Adults,Third Party Payments,471101,Purchase of Care,07-Oct-2015,3031150-2269908,"2,043.64",CHURCH VIEW CARE HOME.
Children and Adult Services,Head of Adults,Third Party Payments,470101,Purchase of Care,07-Oct-2015,3031150-2270320,"1,970.88",CHURCH VIEW CARE HOME.
Children and Adult Services,Head of Adults,Third Party Payments,471101,Purchase of Care,07-Oct-2015,3031150-2270877,"2,043.64",CHURCH VIEW CARE HOME.
Children and Adult Services,Head of Adults,Third Party Payments,470101,Purchase of Care,07-Oct-2015,3031150-2270878,"1,970.88",CHURCH VIEW CARE HOME.
Children and Adult Services,Head of Adults,Third Party Payments,471101,Purchase of Care,07-Oct-2015,3031150-2271052,"1,021.84",CHURCH VIEW CARE HOME.
Children and Adult Services,Head of Adults,Third Party Payments,470101,Purchase of Care,07-Oct-2015,3031150-2271101,"1,970.88",CHURCH VIEW CARE HOME.
Children and Adult Services,Head of Adults,Third Party Payments,470101,Purchase of Care,07-Oct-2015,3031150-2271217,"1,970.88",CHURCH VIEW CARE HOME.
Children and Adult Services,Head of Adults,Third Party Payments,471101,Purchase of Care,07-Oct-2015,3031150-2271219,"2,043.64",CHURCH VIEW CARE HOME.
Children and Adult Services,Head of Adults,Third Party Payments,471101,Purchase of Care,07-Oct-2015,3031150-2271228,"2,043.64",CHURCH VIEW CARE HOME.
Children and Adult Services,Head of Adults,Third Party Payments,470101,Purchase of Care,07-Oct-2015,3031150-2271417,"1,478.16",CHURCH VIEW CARE HOME.
Children and Adult Services,Head of Adults,Third Party Payments,471101,Purchase of Care,07-Oct-2015,3031150-2271607,"2,043.64",CHURCH VIEW CARE HOME.
Children and Adult Services,Head of Adults,Third Party Payments,470101,Purchase of Care,07-Oct-2015,3031150-2271859,"1,970.88",CHURCH VIEW CARE HOME.
Children and Adult Services,Head of Adults,Third Party Payments,470101,Purchase of Care,07-Oct-2015,3031150-2271872,"1,970.88",CHURCH VIEW CARE HOME.
Children and Adult Services,Head of Adults,Third Party Payments,471101,Purchase of Care,07-Oct-2015,3031150-2272149,"2,043.64",CHURCH VIEW CARE HOME.
Children and Adult Services,Head of Adults,Third Party Payments,471101,Purchase of Care,07-Oct-2015,3031150-2272272,875.84,CHURCH VIEW CARE HOME.
Children and Adult Services,Head of Adults,Third Party Payments,470101,Purchase of Care,07-Oct-2015,3031150-2272273,"1,759.71",CHURCH VIEW CARE HOME.
Children and Adult Services,Head of Adults,Third Party Payments,471101,Purchase of Care,07-Oct-2015,3031151-2268305,"1,939.12",CHURCH VIEW RESIDENTIAL CARE HOME.
Children and Adult Services,Head of Adults,Third Party Payments,470101,Purchase of Care,07-Oct-2015,3031151-2268561,"1,865.32",CHURCH VIEW RESIDENTIAL CARE HOME.
Children and Adult Services,Head of Adults,Third Party Payments,471101,Purchase of Care,07-Oct-2015,3031151-2268680,"1,939.12",CHURCH VIEW RESIDENTIAL CARE HOME.
Children and Adult Services,Head of Adults,Third Party Payments,471101,Purchase of Care,07-Oct-2015,3031151-2268702,"1,939.12",CHURCH VIEW RESIDENTIAL CARE HOME.
Children and Adult Services,Head of Adults,Third Party Payments,470101,Purchase of Care,07-Oct-2015,3031151-2268742,"1,865.32",CHURCH VIEW RESIDENTIAL CARE HOME.
Children and Adult Services,Head of Adults,Third Party Payments,471101,Purchase of Care,07-Oct-2015,3031151-2268955,"1,939.12",CHURCH VIEW RESIDENTIAL CARE HOME.
Children and Adult Services,Head of Adults,Third Party Payments,471101,Purchase of Care,07-Oct-2015,3031151-2269068,"1,939.12",CHURCH VIEW RESIDENTIAL CARE HOME.
Children and Adult Services,Head of Adults,Third Party Payments,470101,Purchase of Care,07-Oct-2015,3031151-2269094,"1,865.32",CHURCH VIEW RESIDENTIAL CARE HOME.
Children and Adult Services,Head of Adults,Third Party Payments,470101,Purchase of Care,07-Oct-2015,3031151-2269341,"1,865.32",CHURCH VIEW RESIDENTIAL CARE HOME.
Children and Adult Services,Head of Adults,Third Party Payments,471101,Purchase of Care,07-Oct-2015,3031151-2269477,"1,939.12",CHURCH VIEW RESIDENTIAL CARE HOME.
Children and Adult Services,Head of Adults,Third Party Payments,470101,Purchase of Care,07-Oct-2015,3031151-2269590,"1,865.32",CHURCH VIEW RESIDENTIAL CARE HOME.
Children and Adult Services,Head of Adults,Third Party Payments,470101,Purchase of Care,07-Oct-2015,3031151-2269650,"1,865.32",CHURCH VIEW RESIDENTIAL CARE HOME.
Children and Adult Services,Head of Adults,Third Party Payments,471101,Purchase of Care,07-Oct-2015,3031151-2269836,"1,939.12",CHURCH VIEW RESIDENTIAL CARE HOME.
Children and Adult Services,Head of Adults,Third Party Payments,471101,Purchase of Care,07-Oct-2015,3031151-2269880,"1,939.12",CHURCH VIEW RESIDENTIAL CARE HOME.
Children and Adult Services,Head of Adults,Third Party Payments,471101,Purchase of Care,07-Oct-2015,3031151-2269970,"1,939.12",CHURCH VIEW RESIDENTIAL CARE HOME.
Children and Adult Services,Head of Adults,Third Party Payments,470101,Purchase of Care,07-Oct-2015,3031151-2270275,"1,865.32",CHURCH VIEW RESIDENTIAL CARE HOME.
Children and Adult Services,Head of Adults,Third Party Payments,470101,Purchase of Care,07-Oct-2015,3031151-2270280,"1,865.32",CHURCH VIEW RESIDENTIAL CARE HOME.
Children and Adult Services,Head of Adults,Third Party Payments,471101,Purchase of Care,07-Oct-2015,3031151-2270291,"1,939.12",CHURCH VIEW RESIDENTIAL CARE HOME.
Children and Adult Services,Head of Adults,Third Party Payments,471101,Purchase of Care,07-Oct-2015,3031151-2270450,"1,939.12",CHURCH VIEW RESIDENTIAL CARE HOME.
Children and Adult Services,Head of Adults,Third Party Payments,470101,Purchase of Care,07-Oct-2015,3031151-2270460,"1,865.32",CHURCH VIEW RESIDENTIAL CARE HOME.
Children and Adult Services,Head of Adults,Third Party Payments,470101,Purchase of Care,07-Oct-2015,3031151-2270527,"1,865.32",CHURCH VIEW RESIDENTIAL CARE HOME.
Children and Adult Services,Head of Adults,Third Party Payments,470101,Purchase of Care,07-Oct-2015,3031151-2270656,"1,865.32",CHURCH VIEW RESIDENTIAL CARE HOME.
Children and Adult Services,Head of Adults,Third Party Payments,471101,Purchase of Care,07-Oct-2015,3031151-2270667,"1,939.12",CHURCH VIEW RESIDENTIAL CARE HOME.
Children and Adult Services,Head of Adults,Third Party Payments,471101,Purchase of Care,07-Oct-2015,3031151-2270777,"1,939.12",CHURCH VIEW RESIDENTIAL CARE HOME.
Children and Adult Services,Head of Adults,Third Party Payments,470101,Purchase of Care,07-Oct-2015,3031151-2270781,"1,865.32",CHURCH VIEW RESIDENTIAL CARE HOME.
Children and Adult Services,Head of Adults,Third Party Payments,470101,Purchase of Care,07-Oct-2015,3031151-2270804,"1,865.32",CHURCH VIEW RESIDENTIAL CARE HOME.
Children and Adult Services,Head of Adults,Third Party Payments,470101,Purchase of Care,07-Oct-2015,3031151-2270903,799.42,CHURCH VIEW RESIDENTIAL CARE HOME.
Children and Adult Services,Head of Adults,Third Party Payments,470101,Purchase of Care,07-Oct-2015,3031151-2270965,"1,865.32",CHURCH VIEW RESIDENTIAL CARE HOME.
Children and Adult Services,Head of Adults,Third Party Payments,471101,Purchase of Care,07-Oct-2015,3031151-2270982,"1,939.12",CHURCH VIEW RESIDENTIAL CARE HOME.
Children and Adult Services,Head of Adults,Third Party Payments,470101,Purchase of Care,07-Oct-2015,3031151-2271045,"1,865.32",CHURCH VIEW RESIDENTIAL CARE HOME.
Children and Adult Services,Head of Adults,Third Party Payments,471101,Purchase of Care,07-Oct-2015,3031151-2271048,"1,939.12",CHURCH VIEW RESIDENTIAL CARE HOME.
Children and Adult Services,Head of Adults,Third Party Payments,471101,Purchase of Care,07-Oct-2015,3031151-2271050,"1,939.12",CHURCH VIEW RESIDENTIAL CARE HOME.
Children and Adult Services,Head of Adults,Third Party Payments,470101,Purchase of Care,07-Oct-2015,3031151-2271169,"1,865.32",CHURCH VIEW RESIDENTIAL CARE HOME.
Children and Adult Services,Head of Adults,Third Party Payments,471101,Purchase of Care,07-Oct-2015,3031151-2271811,"1,939.12",CHURCH VIEW RESIDENTIAL CARE HOME.
Children and Adult Services,Head of Adults,Third Party Payments,471101,Purchase of Care,07-Oct-2015,3031151-2271943,969.56,CHURCH VIEW RESIDENTIAL CARE HOME.
Children and Adult Services,Head of Adults,Third Party Payments,471101,Purchase of Care,07-Oct-2015,3031151-2271955,"1,939.12",CHURCH VIEW RESIDENTIAL CARE HOME.
Children and Adult Services,Head of Adults,Third Party Payments,470101,Purchase of Care,07-Oct-2015,3031151-2272140,932.68,CHURCH VIEW RESIDENTIAL CARE HOME.
Children and Adult Services,Head of Adults,Third Party Payments,471101,Purchase of Care,07-Oct-2015,3031151-2272147,"1,939.12",CHURCH VIEW RESIDENTIAL CARE HOME.
Children and Adult Services,Head of Adults,Third Party Payments,474101,Purchase of Care,07-Oct-2015,3031152-2269651,"1,910.60",CLEVELAND PARK CARE HOME.
Children and Adult Services,Head of Adults,Third Party Payments,471101,Purchase of Care,07-Oct-2015,3031153-2268992,"1,780.00",COVENT HOUSE.
Children and Adult Services,Head of Adults,Third Party Payments,474101,Purchase of Care,07-Oct-2015,3031153-2269375,"1,824.00",COVENT HOUSE.
Children and Adult Services,Head of Adults,Third Party Payments,471101,Purchase of Care,07-Oct-2015,3031153-2269539,890.00,COVENT HOUSE.
Children and Adult Services,Head of Adults,Third Party Payments,474101,Purchase of Care,07-Oct-2015,3031153-2269593,"1,752.00",COVENT HOUSE.
Children and Adult Services,Head of Adults,Third Party Payments,471101,Purchase of Care,07-Oct-2015,3031153-2270193,"1,780.00",COVENT HOUSE.
Children and Adult Services,Head of Adults,Third Party Payments,474101,Purchase of Care,07-Oct-2015,3031153-2270366,"1,752.00",COVENT HOUSE.
Children and Adult Services,Head of Adults,Third Party Payments,474101,Purchase of Care,07-Oct-2015,3031153-2271661,"1,752.00",COVENT HOUSE.
Children and Adult Services,Head of Adults,Third Party Payments,474101,Purchase of Care,07-Oct-2015,3031153-2271933,"1,824.00",COVENT HOUSE.
Children and Adult Services,Head of Adults,Third Party Payments,470101,Purchase of Care,07-Oct-2015,3031153-2272335,"1,001.14",COVENT HOUSE.
Children and Adult Services,Head of Adults,Third Party Payments,471101,Purchase of Care,07-Oct-2015,3031154-2268609,"2,043.64",CRAIGARRAN CARE HOME WITH NURSING.
Children and Adult Services,Head of Adults,Third Party Payments,471101,Purchase of Care,07-Oct-2015,3031154-2268651,"2,043.64",CRAIGARRAN CARE HOME WITH NURSING.
Children and Adult Services,Head of Adults,Third Party Payments,470101,Purchase of Care,07-Oct-2015,3031154-2268661,"1,970.88",CRAIGARRAN CARE HOME WITH NURSING.
Children and Adult Services,Head of Adults,Third Party Payments,474101,Purchase of Care,07-Oct-2015,3031154-2268687,737.17,CRAIGARRAN CARE HOME WITH NURSING.
Children and Adult Services,Head of Adults,Third Party Payments,474101,Purchase of Care,07-Oct-2015,3031154-2268723,"2,064.08",CRAIGARRAN CARE HOME WITH NURSING.
Children and Adult Services,Head of Adults,Third Party Payments,471101,Purchase of Care,07-Oct-2015,3031154-2268884,"2,043.64",CRAIGARRAN CARE HOME WITH NURSING.
Children and Adult Services,Head of Adults,Third Party Payments,470101,Purchase of Care,07-Oct-2015,3031154-2269119,"1,970.88",CRAIGARRAN CARE HOME WITH NURSING.
Children and Adult Services,Head of Adults,Third Party Payments,474101,Purchase of Care,07-Oct-2015,3031154-2269149,"2,064.08",CRAIGARRAN CARE HOME WITH NURSING.
Children and Adult Services,Head of Adults,Third Party Payments,471101,Purchase of Care,07-Oct-2015,3031154-2269237,"2,043.64",CRAIGARRAN CARE HOME WITH NURSING.
Children and Adult Services,Head of Adults,Third Party Payments,474101,Purchase of Care,07-Oct-2015,3031154-2269339,"2,064.08",CRAIGARRAN CARE HOME WITH NURSING.
Children and Adult Services,Head of Adults,Third Party Payments,474101,Purchase of Care,07-Oct-2015,3031154-2269472,"2,064.08",CRAIGARRAN CARE HOME WITH NURSING.
Children and Adult Services,Head of Adults,Third Party Payments,470101,Purchase of Care,07-Oct-2015,3031154-2269632,"1,970.88",CRAIGARRAN CARE HOME WITH NURSING.
Children and Adult Services,Head of Adults,Third Party Payments,474101,Purchase of Care,07-Oct-2015,3031154-2270799,"2,064.08",CRAIGARRAN CARE HOME WITH NURSING.
Children and Adult Services,Head of Adults,Third Party Payments,474101,Purchase of Care,07-Oct-2015,3031154-2270842,"2,064.08",CRAIGARRAN CARE HOME WITH NURSING.
Children and Adult Services,Head of Adults,Third Party Payments,470101,Purchase of Care,07-Oct-2015,3031154-2271107,"1,970.88",CRAIGARRAN CARE HOME WITH NURSING.
Children and Adult Services,Head of Adults,Third Party Payments,470101,Purchase of Care,07-Oct-2015,3031154-2271125,"1,970.88",CRAIGARRAN CARE HOME WITH NURSING.
Children and Adult Services,Head of Adults,Third Party Payments,474101,Purchase of Care,07-Oct-2015,3031154-2271271,"2,064.08",CRAIGARRAN CARE HOME WITH NURSING.
Children and Adult Services,Head of Adults,Third Party Payments,474101,Purchase of Care,07-Oct-2015,3031154-2271275,"2,064.08",CRAIGARRAN CARE HOME WITH NURSING.
Children and Adult Services,Head of Adults,Third Party Payments,474101,Purchase of Care,07-Oct-2015,3031154-2271630,"2,064.08",CRAIGARRAN CARE HOME WITH NURSING.
Children and Adult Services,Head of Adults,Third Party Payments,471101,Purchase of Care,07-Oct-2015,3031154-2271644,"2,043.64",CRAIGARRAN CARE HOME WITH NURSING.
Children and Adult Services,Head of Adults,Third Party Payments,471101,Purchase of Care,07-Oct-2015,3031154-2271743,"2,043.64",CRAIGARRAN CARE HOME WITH NURSING.
Children and Adult Services,Head of Adults,Third Party Payments,470101,Purchase of Care,07-Oct-2015,3031154-2271788,"2,182.05",CRAIGARRAN CARE HOME WITH NURSING.
Children and Adult Services,Head of Adults,Third Party Payments,471101,Purchase of Care,07-Oct-2015,3031154-2271907,"2,043.64",CRAIGARRAN CARE HOME WITH NURSING.
Children and Adult Services,Head of Adults,Third Party Payments,474101,Purchase of Care,07-Oct-2015,3031154-2271971,"2,064.08",CRAIGARRAN CARE HOME WITH NURSING.
Children and Adult Services,Head of Adults,Third Party Payments,474101,Purchase of Care,07-Oct-2015,3031154-2272023,"2,064.08",CRAIGARRAN CARE HOME WITH NURSING.
Children and Adult Services,Head of Adults,Third Party Payments,471101,Purchase of Care,07-Oct-2015,3031154-2272123,"1,021.80",CRAIGARRAN CARE HOME WITH NURSING.
Children and Adult Services,Head of Adults,Third Party Payments,470101,Purchase of Care,07-Oct-2015,3031155-2268088,"1,465.68",CROFT HOUSE RESIDENTIAL HOME.
Children and Adult Services,Head of Adults,Third Party Payments,470101,Purchase of Care,07-Oct-2015,3031155-2268126,"1,970.88",CROFT HOUSE RESIDENTIAL HOME.
Children and Adult Services,Head of Adults,Third Party Payments,474101,Purchase of Care,07-Oct-2015,3031155-2268768,"2,064.08",CROFT HOUSE RESIDENTIAL HOME.
Children and Adult Services,Head of Adults,Third Party Payments,471101,Purchase of Care,07-Oct-2015,3031155-2268897,"1,493.84",CROFT HOUSE RESIDENTIAL HOME.
Children and Adult Services,Head of Adults,Third Party Payments,470101,Purchase of Care,07-Oct-2015,3031155-2268973,"2,210.20",CROFT HOUSE RESIDENTIAL HOME.
Children and Adult Services,Head of Adults,Third Party Payments,471101,Purchase of Care,07-Oct-2015,3031155-2269089,"1,461.96",CROFT HOUSE RESIDENTIAL HOME.
Children and Adult Services,Head of Adults,Third Party Payments,471101,Purchase of Care,07-Oct-2015,3031155-2269165,"1,221.08",CROFT HOUSE RESIDENTIAL HOME.
Children and Adult Services,Head of Adults,Third Party Payments,470101,Purchase of Care,07-Oct-2015,3031155-2269292,913.16,CROFT HOUSE RESIDENTIAL HOME.
Children and Adult Services,Head of Adults,Third Party Payments,470101,Purchase of Care,07-Oct-2015,3031155-2269302,"1,465.68",CROFT HOUSE RESIDENTIAL HOME.
Children and Adult Services,Head of Adults,Third Party Payments,470101,Purchase of Care,07-Oct-2015,3031155-2269307,"1,970.88",CROFT HOUSE RESIDENTIAL HOME.
Children and Adult Services,Head of Adults,Third Party Payments,470101,Purchase of Care,07-Oct-2015,3031155-2269384,"1,465.68",CROFT HOUSE RESIDENTIAL HOME.
Children and Adult Services,Head of Adults,Third Party Payments,474101,Purchase of Care,07-Oct-2015,3031155-2269843,"2,064.08",CROFT HOUSE RESIDENTIAL HOME.
Children and Adult Services,Head of Adults,Third Party Payments,470101,Purchase of Care,07-Oct-2015,3031155-2269861,"1,970.88",CROFT HOUSE RESIDENTIAL HOME.
Children and Adult Services,Head of Adults,Third Party Payments,474101,Purchase of Care,07-Oct-2015,3031155-2269895,"1,247.88",CROFT HOUSE RESIDENTIAL HOME.
Children and Adult Services,Head of Adults,Third Party Payments,474101,Purchase of Care,07-Oct-2015,3031155-2269930,"2,064.08",CROFT HOUSE RESIDENTIAL HOME.
Children and Adult Services,Head of Adults,Third Party Payments,474101,Purchase of Care,07-Oct-2015,3031155-2270182,"2,064.08",CROFT HOUSE RESIDENTIAL HOME.
Children and Adult Services,Head of Adults,Third Party Payments,474101,Purchase of Care,07-Oct-2015,3031155-2270211,"2,241.56",CROFT HOUSE RESIDENTIAL HOME.
Children and Adult Services,Head of Adults,Third Party Payments,474101,Purchase of Care,07-Oct-2015,3031155-2270272,"2,064.08",CROFT HOUSE RESIDENTIAL HOME.
Children and Adult Services,Head of Adults,Third Party Payments,471101,Purchase of Care,07-Oct-2015,3031155-2270477,"2,043.64",CROFT HOUSE RESIDENTIAL HOME.
Children and Adult Services,Head of Adults,Third Party Payments,470101,Purchase of Care,07-Oct-2015,3031155-2270491,"1,970.88",CROFT HOUSE RESIDENTIAL HOME.
Children and Adult Services,Head of Adults,Third Party Payments,471101,Purchase of Care,07-Oct-2015,3031155-2270496,"1,021.80",CROFT HOUSE RESIDENTIAL HOME.
Children and Adult Services,Head of Adults,Third Party Payments,471101,Purchase of Care,07-Oct-2015,3031155-2270925,"2,043.64",CROFT HOUSE RESIDENTIAL HOME.
Children and Adult Services,Head of Adults,Third Party Payments,474101,Purchase of Care,07-Oct-2015,3031155-2271391,"2,064.08",CROFT HOUSE RESIDENTIAL HOME.
Children and Adult Services,Head of Adults,Third Party Payments,474101,Purchase of Care,07-Oct-2015,3031155-2271576,"2,064.08",CROFT HOUSE RESIDENTIAL HOME.
Children and Adult Services,Head of Adults,Third Party Payments,474101,Purchase of Care,07-Oct-2015,3031155-2271582,"2,064.08",CROFT HOUSE RESIDENTIAL HOME.
Children and Adult Services,Head of Adults,Third Party Payments,471101,Purchase of Care,07-Oct-2015,3031155-2271610,"2,043.64",CROFT HOUSE RESIDENTIAL HOME.
Children and Adult Services,Head of Adults,Third Party Payments,474101,Purchase of Care,07-Oct-2015,3031155-2271747,"2,064.08",CROFT HOUSE RESIDENTIAL HOME.
Children and Adult Services,Head of Adults,Third Party Payments,471101,Purchase of Care,07-Oct-2015,3031155-2272174,"2,043.64",CROFT HOUSE RESIDENTIAL HOME.
Children and Adult Services,Head of Adults,Third Party Payments,470101,Purchase of Care,07-Oct-2015,3031156-2268030,"1,303.00",CROFT UNIT.
Children and Adult Services,Head of Adults,Third Party Payments,470101,Purchase of Care,07-Oct-2015,3031156-2268048,"1,808.20",CROFT UNIT.
Children and Adult Services,Head of Adults,Third Party Payments,470101,Purchase of Care,07-Oct-2015,3031156-2268185,"1,808.20",CROFT UNIT.
Children and Adult Services,Head of Adults,Third Party Payments,470101,Purchase of Care,07-Oct-2015,3031156-2268274,"1,808.20",CROFT UNIT.
Children and Adult Services,Head of Adults,Third Party Payments,470101,Purchase of Care,07-Oct-2015,3031156-2268330,"1,808.20",CROFT UNIT.
Children and Adult Services,Head of Adults,Third Party Payments,470101,Purchase of Care,07-Oct-2015,3031156-2268444,"1,125.88",CROFT UNIT.
Children and Adult Services,Head of Adults,Third Party Payments,470101,Purchase of Care,07-Oct-2015,3031156-2269111,"1,214.00",CROFT UNIT.
Children and Adult Services,Head of Adults,Third Party Payments,470101,Purchase of Care,07-Oct-2015,3031156-2269433,"1,790.32",CROFT UNIT.
Children and Adult Services,Head of Adults,Third Party Payments,470101,Purchase of Care,07-Oct-2015,3031156-2270052,"2,755.88",CROFT UNIT.
Children and Adult Services,Head of Adults,Third Party Payments,470101,Purchase of Care,07-Oct-2015,3031156-2270100,"2,428.00",CROFT UNIT.
Children and Adult Services,Head of Adults,Third Party Payments,470101,Purchase of Care,07-Oct-2015,3031156-2270242,"1,808.20",CROFT UNIT.
Children and Adult Services,Head of Adults,Third Party Payments,470101,Purchase of Care,07-Oct-2015,3031156-2270625,"2,428.00",CROFT UNIT.
Children and Adult Services,Head of Adults,Third Party Payments,470101,Purchase of Care,07-Oct-2015,3031156-2271121,"2,100.00",CROFT UNIT.
Children and Adult Services,Head of Adults,Third Party Payments,470101,Purchase of Care,07-Oct-2015,3031156-2272292,"1,083.93",CROFT UNIT.
Children and Adult Services,Head of Adults,Third Party Payments,470101,Purchase of Care,07-Oct-2015,3031156-2272294,737.73,CROFT UNIT.
Children and Adult Services,Head of Adults,Third Party Payments,471101,Purchase of Care,07-Oct-2015,3031157-2268301,"1,985.60",DAIRY LANE CARE CENTRE.
Children and Adult Services,Head of Adults,Third Party Payments,470101,Purchase of Care,07-Oct-2015,3031158-2268251,"1,970.88",DEFOE COURT.
Children and Adult Services,Head of Adults,Third Party Payments,474101,Purchase of Care,07-Oct-2015,3031158-2268335,"2,064.08",DEFOE COURT.
Children and Adult Services,Head of Adults,Third Party Payments,470101,Purchase of Care,07-Oct-2015,3031158-2268510,"1,970.88",DEFOE COURT.
Children and Adult Services,Head of Adults,Third Party Payments,470101,Purchase of Care,07-Oct-2015,3031158-2268880,"1,970.88",DEFOE COURT.
Children and Adult Services,Head of Adults,Third Party Payments,474101,Purchase of Care,07-Oct-2015,3031158-2269021,"2,064.08",DEFOE COURT.
Children and Adult Services,Head of Adults,Third Party Payments,470101,Purchase of Care,07-Oct-2015,3031158-2269184,985.44,DEFOE COURT.
Children and Adult Services,Head of Adults,Third Party Payments,470101,Purchase of Care,07-Oct-2015,3031158-2269531,"1,970.88",DEFOE COURT.
Children and Adult Services,Head of Adults,Third Party Payments,470101,Purchase of Care,07-Oct-2015,3031158-2269609,633.49,DEFOE COURT.
Children and Adult Services,Head of Adults,Third Party Payments,470101,Purchase of Care,07-Oct-2015,3031158-2269741,"1,970.88",DEFOE COURT.
Children and Adult Services,Head of Adults,Third Party Payments,474101,Purchase of Care,07-Oct-2015,3031158-2269981,"2,064.08",DEFOE COURT.
Children and Adult Services,Head of Adults,Third Party Payments,474101,Purchase of Care,07-Oct-2015,3031158-2270048,"2,064.08",DEFOE COURT.
Children and Adult Services,Head of Adults,Third Party Payments,474101,Purchase of Care,07-Oct-2015,3031158-2270358,"2,064.08",DEFOE COURT.
Children and Adult Services,Head of Adults,Third Party Payments,470101,Purchase of Care,07-Oct-2015,3031158-2270440,"1,970.88",DEFOE COURT.
Children and Adult Services,Head of Adults,Third Party Payments,470101,Purchase of Care,07-Oct-2015,3031158-2270497,"1,970.88",DEFOE COURT.
Children and Adult Services,Head of Adults,Third Party Payments,470101,Purchase of Care,07-Oct-2015,3031158-2270555,"1,970.88",DEFOE COURT.
Children and Adult Services,Head of Adults,Third Party Payments,470101,Purchase of Care,07-Oct-2015,3031158-2270579,"1,830.10",DEFOE COURT.
Children and Adult Services,Head of Adults,Third Party Payments,470101,Purchase of Care,07-Oct-2015,3031158-2270715,"1,970.88",DEFOE COURT.
Children and Adult Services,Head of Adults,Third Party Payments,471101,Purchase of Care,07-Oct-2015,3031158-2271040,"2,043.64",DEFOE COURT.
Children and Adult Services,Head of Adults,Third Party Payments,474101,Purchase of Care,07-Oct-2015,3031158-2271140,"2,064.08",DEFOE COURT.
Children and Adult Services,Head of Adults,Third Party Payments,474101,Purchase of Care,07-Oct-2015,3031158-2271193,"2,064.08",DEFOE COURT.
Children and Adult Services,Head of Adults,Third Party Payments,474101,Purchase of Care,07-Oct-2015,3031158-2271340,"2,064.08",DEFOE COURT.
Children and Adult Services,Head of Adults,Third Party Payments,471101,Purchase of Care,07-Oct-2015,3031158-2271591,"1,021.84",DEFOE COURT.
Children and Adult Services,Head of Adults,Third Party Payments,470101,Purchase of Care,07-Oct-2015,3031158-2271701,"1,970.88",DEFOE COURT.
Children and Adult Services,Head of Adults,Third Party Payments,470101,Purchase of Care,07-Oct-2015,3031158-2271889,"1,970.88",DEFOE COURT.
Children and Adult Services,Head of Adults,Third Party Payments,470101,Purchase of Care,07-Oct-2015,3031158-2271965,"1,970.88",DEFOE COURT.
Children and Adult Services,Head of Adults,Third Party Payments,470101,Purchase of Care,07-Oct-2015,3031158-2272398,"2,463.60",DEFOE COURT.
Children and Adult Services,Head of Adults,Third Party Payments,470101,Purchase of Care,07-Oct-2015,3031159-2268312,"1,970.88",DERWENT CARE HOME.
